Workbook

Sheet Index
B1: Massachusetts Department of Elementary and Secondary Education
B2: FY24 Charter and Virtual School End of Year Financial Report Summary
B3: Last Updated: July 2025
B5: Data Context
B6: This data was collected via the FY2024 Charter School End of Year Financial Report (24CSEOYFR) and FY24 Virtual School End of Year Financial Report (24VSEOYFR) as well as SIMS and EPIMS databases.
B8: Technical Tips
B9: Please be sure to enable macros before using this file. You will receive a Security Warning message at the top of this page that reads "Macros have been disabled". Please click "Enable Content".
B11: Instructions for Viewing Data
B12: Use the drop-down menu to select a charter or virtual school that was operating in FY24 or a statewide summary total then navigate to any of the first three tabs linked below. There is additional statewide summary data provided in tabs 4 and 5.
C15: =VLOOKUP(E15, CSORDER, 2, FALSE) ->  | D15: =VLOOKUP(E15, CSORDER, 3, FALSE) ->  | E15: 1
B18: 1. Statement of Net Position
B19: 2. Statement of Revenues, Expenses and Change in Net Position
B20: 3. Schedule of Functional Expenses
B22: In addition, statewide summary data is available for the following:
B23: 4. Expenditures Per Pupil
B24: 5. Average Teacher Salaries
B26: For researchers, the following raw data sets are available:
B27: BAL24_raw (Balance Sheet Data)
B28: INC24_raw (Income Statement Data)
B29: FE24_raw (Schedule of Functional Expenses Data)
B30: FTE_raw (Student FTE Enrollment Data)
B31: EPIMS24_raw (Teacher FTE Enrollment Data)

Sheet 1. Statement of Net Position
A1: NAME: | B1: =SCHOOLNAME ->  | F1: LEA | G1: =LEA -> 
C2: Return to Index
A3: Statement of Net Position
A4: For the Year Ended June 30, 2024
F6: =B1 ->  | G6: Charter/Virtual School Foundation (Component Unit) | H6: 2024 Total (Memorandum Only) | J6: Line | K6: Rec. Acct#
C7: ASSETS
C8: Current Assets
A9: 01 | C9: Cash and Cash Equivalents | D9: Assets that are cash or can be converted into cash immediately. | F9: =VLOOKUP($G$1&$A9, BAL, 6,FALSE) ->  | G9: =VLOOKUP($G$1&$A9, BAL, 7,FALSE) ->  | H9: =VLOOKUP($G$1&$A9, BAL, 8,FALSE) ->  | J9: =A9 -> 01 | K9: 10XX
A10: 02 | C10: Accounts Receivable net of doubtful accounts | D10: A school's claim for money, goods and services from customers and other entities. | J10: 02 | K10: 11XX
A11: 03 | C11: Grants Receivable - State | D11: Claims for goods and services provided under state awarded contracts. | J11: 03 | K11: 11XX
A12: 04 | C12: Grants Receivable - Federal | D12: Claims for goods and services provided under federal awarded contracts. | J12: 04 | K12: 11XX
A13: 05 | C13: Grants Receivable - Private | D13: Claims for goods and services provided from private awards received. | J13: 05 | K13: 11XX
A14: 06 | C14: Contributions Receivable | D14: Unconditional promises to give by private individuals or corporations. | J14: 06 | K14: 11XX
A15: 07 | C15: Due from related parties | D15: Amounts to be received from related parties. | J15: 07 | K15: 12XX
A16: 08 | C16: Prepaid Expenses / Inventory | D16: An expense paid but not incurred as of year end. Also include short-term inventories of supplies such as uniforms. | J16: 08 | K16: 13XX
A17: 09 | C17: Short-Term Investments | D17: Readily marketable security for which the intention of the school is the conversion to cash in the short term. | J17: 09 | K17: 14XX
A18: 10 | C18: Deposit (Security, Other) | D18: Security deposits for leases, or other deposits. | F18: =VLOOKUP($G$1&$A19, BAL, 6,FALSE) ->  | G18: =VLOOKUP($G$1&$A19, BAL, 7,FALSE) ->  | H18: =VLOOKUP($G$1&$A19, BAL, 8,FALSE) ->  | J18: =A19 -> 11 | K18: 15XX
A19: 11 | C19: Restricted Current Assets | D19: Current assets restricted by external sources for future purchases. | J19: 11 | K19: 15XX
A20: 12 | C20: TOTAL CURRENT ASSETS | D20: Calculates automatically. | J20: 12 | K20: NA
C21: Noncurrent Assets
C22: Capital Assets
A23: 13 | C23: - Land and Buildings | D23: Value of land and building inclusive of remodeling, reconditioning, or altering the building purchased to make it available for the purpose for which it was acquired, including construction in progress. | F23: =VLOOKUP($G$1&$A23, BAL, 6,FALSE) ->  | G23: =VLOOKUP($G$1&$A23, BAL, 7,FALSE) ->  | H23: =VLOOKUP($G$1&$A23, BAL, 8,FALSE) ->  | J23: =A23 -> 13 | K23: 15XX
A24: 14 | C24: - Building/Leasehold Improvement | D24: Value of improvements on leased property that revert back to the owners upon termination of the lease. | J24: 14 | K24: 15XX
A25: 15 | C25: - Furniture and Equipment | D25: Value of furniture and equipment that meet the school's capitalization policy. | J25: 15 | K25: 15XX
A26: 16 | C26: - Less Accumulated Depreciation | D26: The aggregate, at a given point in time, of the depreciation charges made during the useful life of the fixed asset. Enter as a negative number. | J26: 16 | K26: 16XX
A27: 17 | C27: Net Capital Assets | D27: Calculates automatically. | J27: 17 | K27: NA
A28: 19 | C28: Restricted Noncurrent Assets | D28: Noncurrent assets restricted by external sources for future purchases. | J28: 19 | K28: 10XX
A29: 19 | C29: Long-Term Investments | D29: Investments that do not meet the criteria of "Short-Term Investments" above. | J29: 19 | K29: 14XX
A30: 20 | C30: Building Acquisition / Financing Costs / Deferred Expenses | D30: Costs related to building acquisition, construction, and/or financing costs which are amortized. Also include long-term pre-paid leases or expenses which are amortized. | J30: 20 | K30: 14XX
A31: 21 | C31: Long-Term Grants / Contributions Receivable | D31: Please enter a brief description in the highlighted green cell, if applicable. | J31: 21 | K31: 14XX
A32: 22 | C32: TOTAL NONCURRENT ASSETS | D32: Calculates automatically. | J32: 22 | K32: NA
A33: 23 | C33: TOTAL ASSETS | D33: Calculates automatically. | J33: 23 | K33: NA
C35: LIABILITIES AND NET ASSETS
C36: Current Liabilities
A37: 24 | C37: Accounts Payable | D37: Obligations for goods or services purchased for which invoices have been received. | F37: =VLOOKUP($G$1&$A37, BAL, 6,FALSE) ->  | G37: =VLOOKUP($G$1&$A37, BAL, 7,FALSE) ->  | H37: =VLOOKUP($G$1&$A37, BAL, 8,FALSE) ->  | J37: =A37 -> 24 | K37: 20XX
A38: 25 | C38: Accrued Expenses / Accrued Payroll | D38: An unpaid expense incurred that has not been paid as of the end of the period, including accrued payroll. | J38: 25 | K38: 21XX
A39: 26 | C39: Deferred Revenue | D39: Cash received for services not performed (i.e., grant funds received that were not expended). | J39: 26 | K39: 22XX
A40: 27 | C40: Due to related parties | D40: Amounts due to related parties such as the school's component unit. | J40: 27 | K40: 23XX
A41: 28 | C41: Current Debt Payable | D41: Debt obligations due within one year of financial statement date. | J41: 28 | K41: 24XX
A42: 29 | C42: Current Lease Obligations Payable | D42: Lease obligations due within one year of financial statement date. | J42: 29 | K42: 24XX
A43: 30 | C43: TOTAL CURRENT LIABILITIES | D43: Calculates automatically. | J43: 30 | K43: NA
C44: Noncurrent Liabilities
A45: 31 | C45: Noncurrent Lease Obligations | D45: Lease obligations due after one year of financial statement date. | F45: =VLOOKUP($G$1&$A45, BAL, 6,FALSE) ->  | G45: =VLOOKUP($G$1&$A45, BAL, 7,FALSE) ->  | H45: =VLOOKUP($G$1&$A45, BAL, 8,FALSE) ->  | J45: =A45 -> 31 | K45: 26XX
A46: 32 | C46: Long-Term Debt | D46: Debt obligations due after one year of financial statement date. | F46: =VLOOKUP($G$1&$A46, BAL, 6,FALSE) ->  | G46: =VLOOKUP($G$1&$A46, BAL, 7,FALSE) ->  | H46: =VLOOKUP($G$1&$A46, BAL, 8,FALSE) ->  | J46: =A46 -> 32 | K46: 26XX
A47: 33 | C47: Deferred Revenue | D47: Cash received for services not performed (i.e., grant funds received that were not expended). | F47: =VLOOKUP($G$1&$A47, BAL, 6,FALSE) ->  | G47: =VLOOKUP($G$1&$A47, BAL, 7,FALSE) ->  | H47: =VLOOKUP($G$1&$A47, BAL, 8,FALSE) ->  | J47: =A47 -> 33 | K47: 2XXX
A48: 34 | C48: TOTAL NONCURRENT LIABILITIES | D48: Calculates automatically. | F48: =VLOOKUP($G$1&$A48, BAL, 6,FALSE) ->  | G48: =VLOOKUP($G$1&$A48, BAL, 7,FALSE) ->  | H48: =VLOOKUP($G$1&$A48, BAL, 8,FALSE) ->  | J48: =A48 -> 34 | K48: NA
A49: 35 | C49: TOTAL LIABILITIES | D49: Calculates automatically. | F49: =VLOOKUP($G$1&$A49, BAL, 6,FALSE) ->  | G49: =VLOOKUP($G$1&$A49, BAL, 7,FALSE) ->  | H49: =VLOOKUP($G$1&$A49, BAL, 8,FALSE) ->  | J49: =A49 -> 35 | K49: NA
C51: NET ASSETS
A52: 36 | C52: Investment in capital assets (net of related debt) | D52: Represents capital assets reduced by accumulated depreciation and any outstanding debt used to acquire, construct or improve those assets. | F52: =VLOOKUP($G$1&$A52, BAL, 6,FALSE) ->  | G52: =VLOOKUP($G$1&$A52, BAL, 7,FALSE) ->  | H52: =VLOOKUP($G$1&$A52, BAL, 8,FALSE) ->  | J52: =A52 -> 36 | K52: 3XXX
A53: 37 | C53: Temporarily Restricted | D53: Net assets that are temporarily restricted by a funder or the school's Board for a specific purpose. | J53: 37 | K53: 32XX
A54: 38 | C54: Permanently Restricted | D54: Net assets that are restricted by an outside agency or person, as contrasted with assets over which the entity has control and discretion. E.g., a donor scholarship fund. | J54: 38 | K54: 33XX
A55: 39 | C55: Unrestricted (non-capital) | D55: Net assets that do not meet the definitions of any of the above categories. | J55: 39 | K55: 30XX
A56: 40 | C56: TOTAL NET ASSETS | D56: Calculates automatically. | J56: 40 | K56: NA
A57: 41 | C57: TOTAL LIABILITIES AND NET ASSETS | D57: Calculates automatically. MUST RECONCILE WITH LINE 23 (TOTAL ASSETS) | J57: 41 | K57: NA

Sheet 2. Stmt Rev, Exp and Change
B1: NAME: | C1: =SCHOOLNAME ->  | F1: LEA | G1: =LEA ->  | M1: =3 -> 3
C2: Return to Index
A3: Statement of Revenues, Expenses and Change in Net Position
A4: =YEAREND -> For the Year Ended June 30, 2024
D6: Restricted – The use of these funds are restricted to a particular purpose or project. Unrestricted – These use of these funds are unrestricted and came be used toward any purpose. | F6: =C1 ->  | G6: Charter/Virtual School Foundation (Component Unit) | H6: ='1. Statement of Net Position'!H6 -> 2024 Total (Memorandum Only) | J6: Line | K6: Rec. Acct#
C7: REVENUES
A8: 01 | C8: Tuition | D8: Total tuition paid to the charter/virtual school by either the Commonwealth or sending school district, inclusive of local transportation and facilities reimbursement embedded in Commonwealth tuition payments. This should include any reimbursements received for local transportation reimbursement, if applicable. | F8: =VLOOKUP($G$1&$A8, INC, 6,FALSE) ->  | H8: =VLOOKUP($G$1&$A8, INC, 8,FALSE) ->  | J8: =A8 -> 01 | K8: 4000
A9: 2a | B9: ^ | C9: Grants - State - passed through ESE | D9: Grants awarded through the ESE. | G9: =VLOOKUP($G$1&$A9, INC, 7,FALSE) ->  | J9: 2a | K9: 41XX
A10: 2b | B10: ^ | C10: Grants - State - other non-ESE pass-through | D10: Grants awarded directly by the Commonwealth of MA. | J10: 2b | K10: 41XX
A11: 03 | B11: ^ | C11: Grants - Federal - Passed through ESE | D11: Grants from federal sources that pass through ESE such as Title I, IDEA, Charter School Start-Up Assistance, etc. | J11: 03 | K11: 41XX
A12: 04 | B12: ^ | C12: Grants - Federal - Direct or other pass-through | D12: Grants from federal sources awarded directly from federal agencies or passed-through other agencies. | J12: 04 | K12: 41XX
A13: 5a | B13: ^ | C13: Grants - Private (restricted) | D13: Grants awarded by private (non-governmental) foundations, corporations, or individuals that are restricted. | J13: 5a | K13: 41XX
A14: 5b | C14: Grants - Private (unrestricted) | D14: Grants awarded by private (non-governmental) foundations, corporations, or individuals that are unrestricted. | J14: 5b | K14: 41XX
A15: 06 | B15: ^ | C15: Nutrition Funding - State | D15: Funding for nutrition programs is split between the federal and state governments. | J15: 06 | K15: 42XX
A16: 07 | B16: ^ | C16: Nutrition Funding - Federal | D16: Funding for nutrition programs is split between the federal and state governments. | J16: 07 | K16: 42XX
A17: 08 | C17: Nutrition Funding - Fees | D17: Fees collected from students for nutrition programs. | J17: 08 | K17: 42XX
A18: 09 | C18: Other Program / Student Activity Fees | D18: Any fees that the school collects for transportation, uniforms, etc. | F18: =VLOOKUP($G$1&$A19, INC, 6,FALSE) ->  | G18: =VLOOKUP($G$1&$A19, INC, 7,FALSE) ->  | H18: =VLOOKUP($G$1&$A19, INC, 8,FALSE) ->  | J18: =A19 -> 10 | K18: 43XX
A19: 10 | C19: Regional Transportation Aid | D19: Reimbursements from the Commonwealth for regional transportation costs, if applicable. | J19: 10 | K19: 45XX
A20: 11 | C20: Medicaid Reimbursements | D20: Reimbursement from Medicaid | J20: 11 | K20: 45XX
A21: 12 | C21: Circuit Breaker Reimbursements | D21: Reimbursements from the Commonwealth for high-cost special education students, if applicable. | J21: 12 | K21: 45XX
A22: 13a | C22: Contributions, in-kind, host district | D22: Recorded monetary value of in-kind donations for services that would otherwise have been purchased, provided by the school's host district (e.g. transportation, food). | J22: 13a | K22: 44XX
A23: 13b | C23: Contributions, in-kind, other | D23: Recorded monetary value of in-kind donations for services that would otherwise have been purchased, provided by individuals/organizations other than the host district. | G23: =VLOOKUP($G$1&$A23, INC, 7,FALSE) ->  | J23: 13b | K23: 44XX
A24: 13c | C24: Contributions, on-behalf, pension | D24: In accordance with GASB 68, recorded retirement payments to former retired School’s employees. | J24: 13c | K24: 44XX
A25: 14 | C25: Contributions, from Component Unit (restricted) | D25: Restricted contributions made to the School by the Component Unit | J25: 14 | K25: 44XX
A26: 14b | C26: Contributions, from Component Unit (unrestricted) | D26: Unrestricted contributions made to the School by the Component Unit | J26: 14b | K26: 44XX
A27: 15 | C27: Contributions / Fundraising (restricted) | D27: Restricted donations from individuals, businesses, or corporations. | J27: 15 | K27: 44XX
A28: 15b | C28: Contributions / Fundraising (unrestricted) | D28: Unrestricted donations from individuals, businesses, or corporations. | J28: 15b | K28: 44XX
A29: 16 | C29: Interest / Investment Income (restricted) | D29: Restricted income generated from interest/investments. | J29: 16 | K29: 47XX
A30: 16a | C30: Interest / Investment Income (unrestricted) | D30: Unrestricted income generated from interest/investments. | J30: 16b | K30: 47XX
A31: 17 | C31: Rental Income | D31: Income generated from rental of space. | J31: =A31 -> 17 | K31: 46XX
A32: 19 | C32: Loan Forgiveness or Other Reimbursement | D32: Revenue recorded for loan forgiveness or other credit. | J32: =A32 -> 19 | K32: 4XXX
A33: 19 | C33: Miscellaneous Income | D33: Miscellaneous Income. | J33: =A33 -> 19 | K33: 4XXX
A34: 20 | C34: TOTAL REVENUES | D34: Calculates automatically. | J34: =A34 -> 20 | K34: NA
B35: ^ | C35: Non-"General Fund" revenue sources
C37: EXPENSES
A38: 21 | C38: Administration | D38: School figures will be populated from the Sch_FuncExp sheet. | F38: =VLOOKUP($G$1&$A38, INC, 6,FALSE) ->  | H38: =VLOOKUP($G$1&$A38, INC, 8,FALSE) ->  | J38: =A38 -> 21 | K38: NA
A39: 22 | C39: Instructional Services | D39: School figures will be populated from the Sch_FuncExp sheet. | J39: 22 | K39: NA
A40: 23 | C40: Pupil Services | D40: School figures will be populated from the Sch_FuncExp sheet. | J40: 23 | K40: NA
A41: 24 | C41: Operation & Maintenance of Plant | D41: School figures will be populated from the Sch_FuncExp sheet. | J41: 24 | K41: NA
A42: 25 | C42: Fixed Charges | D42: School figures will be populated from the Sch_FuncExp sheet. | J42: 25 | K42: NA
A43: 26 | C43: Community Services | D43: School figures will be populated from the Sch_FuncExp sheet. | J43: 26 | K43: NA
A44: 27 | C44: Non-Operating Financing Expenses | D44: School figures will be populated from the Sch_FuncExp sheet. | J44: 27 | K44: NA
A45: 28 | C45: Component Unit Expenses | D45: Aggregate operating expenses for the Component Unit. | G45: =VLOOKUP($G$1&$A45, INC, 7,FALSE) ->  | J45: 28 | K45: NA
A46: 29 | C46: Contributions to School | D46: Contributions made by the Component Unit to the School | G46: =VLOOKUP($G$1&$A46, INC, 7,FALSE) ->  | J46: 29 | K46: NA
A47: 30 | C47: TOTAL EXPENSES | D47: Calculates automatically. | F47: =VLOOKUP($G$1&$A47, INC, 6,FALSE) ->  | G47: =VLOOKUP($G$1&$A47, INC, 7,FALSE) ->  | J47: 30 | K47: NA
A49: 31 | C49: TOTAL GAIN/(LOSS) | D49: Calculates automatically. | F49: =VLOOKUP($G$1&$A49, INC, 6,FALSE) ->  | G49: =VLOOKUP($G$1&$A49, INC, 7,FALSE) ->  | H49: =VLOOKUP($G$1&$A49, INC, 8,FALSE) ->  | J49: =A49 -> 31 | K49: NA
A50: 32 | C50: Gain/Loss on Sale of Asset or Lease Transaction | D50: Gain/Loss recorded on sale of school assets or lease transaction. | F50: =VLOOKUP($G$1&$A50, INC, 6,FALSE) ->  | G50: =VLOOKUP($G$1&$A50, INC, 7,FALSE) ->  | H50: =VLOOKUP($G$1&$A50, INC, 8,FALSE) ->  | J50: =A50 -> 32 | K50: 5XXX
A51: 33 | C51: Other Gain/Loss | D51: Other Gain or Loss that is a non-recurring, unusual occurrence such as a prior-period adjustment | F51: =VLOOKUP($G$1&$A51, INC, 6,FALSE) ->  | G51: =VLOOKUP($G$1&$A51, INC, 7,FALSE) ->  | H51: =VLOOKUP($G$1&$A51, INC, 8,FALSE) ->  | J51: =A51 -> 33 | K51: 5XXX
A52: 34 | C52: TOTAL CHANGES IN NET ASSETS: | D52: Calculates automatically. | F52: =VLOOKUP($G$1&$A52, INC, 6,FALSE) ->  | G52: =VLOOKUP($G$1&$A52, INC, 7,FALSE) ->  | H52: =VLOOKUP($G$1&$A52, INC, 8,FALSE) ->  | J52: =A52 -> 34 | K52: NA
A54: 35 | C54: NET ASSETS AT BEGINNING OF YEAR | D54: Please enter values from previous year's audit. | F54: =VLOOKUP($G$1&$A54, INC, 6,FALSE) ->  | G54: =VLOOKUP($G$1&$A54, INC, 7,FALSE) ->  | H54: =VLOOKUP($G$1&$A54, INC, 8,FALSE) ->  | J54: =A54 -> 35 | K54: NA
A55: 36 | C55: NET ASSETS AT END OF YEAR | D55: Calculates automatically. MUST RECONCILE WITH BALANCE SHEET LINE 40 (TOTAL NET ASSETS) | F55: =VLOOKUP($G$1&$A55, INC, 6,FALSE) ->  | G55: =VLOOKUP($G$1&$A55, INC, 7,FALSE) ->  | H55: =VLOOKUP($G$1&$A55, INC, 8,FALSE) ->  | J55: =A55 -> 36 | K55: NA
F56: 0 | G56: 0 | H56: 0

Sheet 3. Schedule of Func Exp
B1: NAME: | C1: =SCHOOLNAME ->  | H1: LEA: | I1: =LEA -> 
C2: Return to Index
A3: Schedule of Functional Expenses
A4: =YEAREND -> For the Year Ended June 30, 2024
F5: 6 | G5: 7 | H5: 8 | I5: 9 | J5: 10 | K5: 11 | L5: 12 | M5: 13 | N5: 14 | O5: 15 | P5: 16 | Q5: 17 | R5: 18 | S5: 19 | T5: 20 | U5: 21
F6: "General" Fund (Charter School Tuition) | I6: State | K6: Federal
F7: 1 | G7: 2 | H7: 3 | I7: 4 | J7: 4a | K7: 5 | L7: 5a | M7: 5b | N7: 5c | O7: 5d | P7: 5e | Q7: 5f | R7: 5g | S7: 5h | T7: 6 | U7: 7
F8: General Education | G8: Special Education | H8: Undistributed (not assigned to a program) | I8: State Grants & Nutrition Reimbursement | J8: State Coronavirus Prevention Fund | K8: Charter School Program FC 532 or 534 | L8: ESSER 1 FC 113 | M8: ESSER II FC115 | N8: ESSER III FC 119 | O8: ESSER SEA Reserve Grants | P8: GEER Funded Grants | Q8: CvRF FC 102 and CvRF School Nutrition | R8: CvRF RLTE FC118 | S8: All Other Federal Grants & Nutrition Reimbursement | T8: Private Grants & Contributions | U8: TOTAL
A9: Line | C9: Functional Category | F9: Expenses | G9: Expenses | H9: Expenses | I9: Expenses | J9: Expenses | K9: Expenses | L9: Expenses | M9: Expenses | N9: Expenses | O9: Expenses | P9: Expenses | Q9: Expenses | R9: Expenses | S9: Expenses | T9: Expenses | U9: Expenses
A11: 100 | C11: Administration | D11: Administration - Calculates automatically. | F11: =VLOOKUP($I$1&$A11, FE, $F$5, FALSE) ->  | G11: =VLOOKUP($I$1&$A11, FE, $G$5, FALSE) ->  | H11: =VLOOKUP($I$1&$A11, FE, $H$5, FALSE) ->  | I11: =VLOOKUP($I$1&$A11, FE, $I$5, FALSE) ->  | J11: =VLOOKUP($I$1&$A11, FE, $J$5, FALSE) ->  | K11: =VLOOKUP($I$1&$A11, FE, $K$5, FALSE) ->  | L11: =VLOOKUP($I$1&$A11, FE, $L$5, FALSE) ->  | M11: =VLOOKUP($I$1&$A11, FE, $M$5, FALSE) ->  | N11: =VLOOKUP($I$1&$A11, FE, $N$5, FALSE) ->  | O11: =VLOOKUP($I$1&$A11, FE, $O$5, FALSE) ->  | P11: =VLOOKUP($I$1&$A11, FE, $P$5, FALSE) ->  | Q11: =VLOOKUP($I$1&$A11, FE, $Q$5, FALSE) ->  | R11: =VLOOKUP($I$1&$A11, FE, $R$5, FALSE) ->  | S11: =VLOOKUP($I$1&$A11, FE, $S$5, FALSE) ->  | T11: =VLOOKUP($I$1&$A11, FE, $T$5, FALSE) ->  | U11: =VLOOKUP($I$1&$A11, FE, $U$5, FALSE) -> 
A12: 110 | C12: Subtotal - Board of Trustees | D12: Calculates automatically
A13: 111 | C13: Contracted Services | D13: Contracted professional services, including all related expenses covered by the contract. (Ex: board training consultant, facilitator for board retreat, board attorney) Do not include auditor see Non-Instructional Administration-Contracted Services.
A14: 112 | C14: Travel and other expenses | D14: Travel and other expenses for board members such as dues, subscriptions and memberships. (Ex: board member travels to charter school conference, dues for board-specific professional association).
A15: 120 | C15: Subtotal - School Leaders | D15: Calculates automatically
A16: 121 | C16: Salaries - Professional | D16: Salaries for non-instructional school-wide administrative personnel (Ex: executive director). Principals and Instructional Leaders should be noted in Instructional Services. If role is instructional and administrative, split accordingly.
A17: 122 | C17: Contracted Services | D17: Contracted professional services, including all related expenses covered by the contract. (Ex: interim school leader)
A18: 120a | C18: Subtotal - Non-Instructional Administration and Support Staff | D18: Calculates automatically
A19: 121a | C19: Salaries - Professional and Support Staff | D19: Salaries for non-instructional school-wide administrative personnel, excluding school leaders, legal, and development staff. (Ex: Business and Finance, Human Resources, Information Technology, Student Recruitment and Enrollment/Registrar, Enrollment Director, SIMS administrator, and respective Support Staff). Principals and Instructional Leaders should be noted in Instructional Services. If role is instructional and administrative, split accordingly.
A20: 122a | C20: Contracted Services - Professional and Support Staff | D20: Contracted professional services, including all related expenses covered by the contract, excluding school leaders, legal, and development staff. (Ex: auditor, licensing for district wide software - Microsoft, Anti virus).
A21: 123 | C21: Recruitment/Advertising | D21: Recruiting/advertising for students, staff, and board members. (Ex: brochures, newspaper advertising, web based staff recruitment such as School Spring, radio, advertising for bids).
A22: 124 | C22: Travel, Dues, and other expenses | D22: Travel and other expenses for all non-instructional administrative and support staff, dues such as charter school association dues, professional dues, subscriptions, memberships, professional development and conferences.
A23: 125 | C23: Supplies and Materials | D23: Materials and items of an expendable nature. Unit price of less than $5000. (Ex: office furniture, office supplies, non-instructional computers and software).
A24: 126 | C24: Depreciation - non instructional | D24: Annual depreciation expense for capitalized costs (Ex: district wide information management, computers, furniture).
A25: 130 | C25: Legal
A26: 131 | C26: Salaries - Professional | D26: Salaries for non-instructional legal personnel such as in-house attorney, paralegal, or other staff working on legal matters.
A27: 132 | C27: Contracted Services | D27: Contracted legal professional services, including all related expenses covered by the contract. (Ex: attorney fees, expert witness and consultation fees, filing and copy fees, travel etc.)
A28: 133 | C28: Legal Settlements | D28: Funds paid toward legal settlements only. (Due to employee/landlord/contractor/tenant etc issues or lawsuits)
A29: 170 | C29: Subtotal - Development (Private) | D29: Calculates automatically
A30: 170a | C30: Salaries - Professional - Private | D30: Salaries apportioned to private development personnel (this could be % of a salary). (Ex: grant writer and fundraiser).
A31: 170b | C31: Contracted Services - Private | D31: Contracts apportioned to professional services for private development (including all related expenses covered by the contract). (Ex: contracted fundraiser, contracted grant writer).
A32: 170c | C32: Fundraising - Private | D32: Expenses related to private fundraising. (Ex: invitations to fundraiser, fundraising software, space rental for fundraising event).
A33: 171 | C33: Subtotal - Development (Public) | D33: Calculates automatically
A34: 171a | C34: Salaries - Professional - Public | D34: Salaries apportioned to public development personnel (this could be a % of a salary). (Ex: grant writer and fundraiser).
A35: 171b | C35: Contracted Services - Public | D35: Contracts apportioned to professional services for public development (including all related expenses covered by the contract). (Ex: contracted grant writer).
A37: 200 | C37: Instructional Services | D37: Calculates automatically | F37: =VLOOKUP($I$1&$A37, FE, $F$5, FALSE) ->  | G37: =VLOOKUP($I$1&$A37, FE, $G$5, FALSE) ->  | H37: =VLOOKUP($I$1&$A37, FE, $H$5, FALSE) ->  | I37: =VLOOKUP($I$1&$A37, FE, $I$5, FALSE) ->  | J37: =VLOOKUP($I$1&$A37, FE, $J$5, FALSE) ->  | K37: =VLOOKUP($I$1&$A37, FE, $K$5, FALSE) ->  | L37: =VLOOKUP($I$1&$A37, FE, $L$5, FALSE) ->  | M37: =VLOOKUP($I$1&$A37, FE, $M$5, FALSE) ->  | N37: =VLOOKUP($I$1&$A37, FE, $N$5, FALSE) ->  | O37: =VLOOKUP($I$1&$A37, FE, $O$5, FALSE) ->  | P37: =VLOOKUP($I$1&$A37, FE, $P$5, FALSE) ->  | Q37: =VLOOKUP($I$1&$A37, FE, $Q$5, FALSE) ->  | R37: =VLOOKUP($I$1&$A37, FE, $R$5, FALSE) ->  | S37: =VLOOKUP($I$1&$A37, FE, $S$5, FALSE) ->  | T37: =VLOOKUP($I$1&$A37, FE, $T$5, FALSE) ->  | U37: =VLOOKUP($I$1&$A37, FE, $U$5, FALSE) -> 
A38: 210 | C38: Instructional Subtotal - Instructional Leadership | D38: Calculates automatically
A39: 211 | C39: Salaries - Professional | D39: Salaries for instructional personnel in leadership roles. (Ex: principal/asst. principals (undistributed), curriculum directors (including SPED), department heads, technology/tnstructional coordinators, team leaders, network school administrators).
A40: 212 | C40: Salaries - Clerical | D40: Salaries for administrative support personnel who prepare, transcribe, systematize or preserve communications, records and transactions. (Ex: instructional school secretary and respective clerical support staff to the various instructional personnel in leadership roles).
A41: 213 | C41: Contracted Services | D41: Contracted professional services, including all related expenses covered by the contract. (Ex: contracted instructional consultant such as a reading specialist).
A42: 214 | C42: Supplies and Materials | D42: Materials and items of an expendable nature. Unit price of less than $5000. (Ex: white boards and computers for instructional leaders).
A43: 215 | C43: Travel and other expenses | D43: Travel and other expenses for all instructional leadership and their support staff, professional dues, subscriptions, memberships, teaching seminars and conferences.
A44: 220 | C44: Instructional Subtotal - Classroom and Specialist Teachers | D44: Calculates automatically
A45: 221 | C45: Salaries - Teachers, Classroom | D45: Salaries for teachers with primary responsibility for teaching designated curriculum to established "classes" of students in a group instruction setting. Also includes itinerant music, art, health, physical education teachers who travel from classroom-to-classroom. Teacher EPIMS codes: 2305 - Teacher, 2306 - Co Teacher, 2307 - Virtual Teacher, 2308 - Virtual Teacher – Co Teacher
A46: 222 | C46: Salaries - Teachers, Specialists | D46: Salaries for teachers/specialists who provide individualized instruction to students (1-on-1 or small groups) to supplement the services delivered by the students' classroom teachers, e.g. reading recovery, Title I reading specialists, special education, academic support, and language acquisitions services. NOT paraprofessionals. Teacher EPIMS codes: 2310 - Teacher - specialized content instruction
A47: 230 | C47: Instructional Subtotal - Other Teaching Services | D47: Calculates automatically
A48: 231 | C48: Salaries - Professional | D48: Salaries for Medical/Therapeutic service and other professionals. (Ex: OT, PT, Speech, Vision and other therapeutic services that are provided by licensed practitioners, librarians, media center directors, substitute teachers on payroll, extended-day teachers, MCAS administrator).
A49: 232 | C49: Salaries - Non-clerical Paraprofessionals | D49: Salaries for paraprofessionals hired to assist teachers/specialists with classroom instruction in the preparation or reproduction of instructional materials or classroom instruction. (Ex: American Sign Language Specialists, general teacher's assistant, after-school employees).
A50: 233 | C50: Salaries - Clerical | D50: Salaries for administrative support personnel who prepare, transcribe, systematize or preserve communications, records and transactions. (Ex: secretary, after-school employees).
A51: 234 | C51: Contracted Services | D51: Contracted professional services, including all related expenses covered by the contract, for other teaching services (Ex: non-payroll substitute teachers should be included here, contracted OT, PT, after-school contracted workers).
A52: 240 | C52: Instructional Subtotal - Professional Development | D52: Calculates automatically
A53: 241 | C53: Salaries - Professional | D53: Salaries for full-time or prorated salary of director/staff for professional development, including training for new teachers, new curriculum or instructional practices, master and mentor teachers, and coaches.
A54: 242 | C54: Contracted Services | D54: Contracted professional services, including all related expenses covered by the contract, for professional development (Ex: non-payroll substitute teachers, speakers and trainers).
A55: 243 | C55: Supplies and Materials | D55: Materials and items of an expendable nature. Unit price of less than $5000. (Ex: professional development handouts).
A56: 244 | C56: Travel and other expenses | D56: Travel and other expenses for staff such as dues, subscriptions and memberships. (Ex: professional development seminar, tuition reimbursements for teacher higher education coursework).
A57: 250 | C57: Instructional Subtotal - Guidance, Psychological & Testing | D57: Calculates automatically
A58: 251 | C58: Salaries - Professional | D58: Salaries for Guidance, Pyschological & Testing Professionals (Ex: director of guidance, school social workers, and counselors for guidance, truancy officer, school adjustment, higher education, career planning, and workplace learning placement; psychological evaluators and other licensed mental health professionals).
A59: 252 | C59: Salaries - Clerical | D59: Salaries for administrative support personnel who prepare, transcribe, systematize or preserve communications, records and transactions. (Ex: secretary).
A60: 253 | C60: Contracted Services | D60: Contracted professional services, including all related expenses covered by the contract, for guidance, truancy, psychological, and testing. (Ex: contracted guidance counselor).
A61: 254 | C61: Supplies and Materials | D61: Materials and items of an expendable nature. Unit price of less than $5000. (Ex: pyschological (not academic related) testing materials).
A62: 260 | C62: Instructional Subtotal - Materials, Equipment & Technology | D62: Calculates automatically
A63: 261 | C63: Textbooks & Related Media/Materials | D63: Expenditures for all textbooks and related media/materials (Ex: hard copy and online text books).
A64: 262 | C64: Other Instructional Materials | D64: Books, furniture and other materials, excluding textbooks but including online materials, for use in school libraries or classroom libraries (Ex: trade books, subscription to online magazine, periodicals, reference materials, student desks etc.).
A65: 263 | C65: Instructional Equipment | D65: Non-capitalized expenditures for purchase of science laboratory, physical education, equipment, irrespective of unit cost. Also includes lease/purchase of copy equipment primarily used to produce instructional materials. Does not include classroom technology equipment.
A66: 264 | C66: General Supplies | D66: Papers, pens, pencils, crayons, chalk, paint, toner printer cartridges, calculators, etc.
A67: 265 | C67: Other Instructional Services | D67: Cost for field trips, including admissions and transportation costs. Also, distance learning services.
A68: 266 | C68: Classroom Instructional Technology Hardware | D68: Computers, servers, networks, scanners, digital cameras, etc. used in the classroom or in computer laboratories.
A69: 267 | C69: Other Instructional Technology Hardware | D69: Computers, servers, networks, scanners, digital cameras, etc. for school libraries and media centers.
A70: 268a | C70: Classroom Instructional Software | D70: Software licenses used in the classroom or in computer laboratories. (Ex: Online textbook guide, student data communication software such as Edline, Powerschool, School Brains).
A71: 268b | C71: Other Instructional Software | D71: Software licenses used for school libraries and media centers.
A72: 269 | C72: Depreciation for Furniture, Equipment & Technology | D72: Annual depreciation expense for capitalized Instructional Materials, Equipment, & Technology.
A74: 300 | C74: Pupil Services | D74: Calculates automatically | F74: =VLOOKUP($I$1&$A74, FE, $F$5, FALSE) ->  | G74: =VLOOKUP($I$1&$A74, FE, $G$5, FALSE) ->  | H74: =VLOOKUP($I$1&$A74, FE, $H$5, FALSE) ->  | I74: =VLOOKUP($I$1&$A74, FE, $I$5, FALSE) ->  | J74: =VLOOKUP($I$1&$A74, FE, $J$5, FALSE) ->  | K74: =VLOOKUP($I$1&$A74, FE, $K$5, FALSE) ->  | L74: =VLOOKUP($I$1&$A74, FE, $L$5, FALSE) ->  | M74: =VLOOKUP($I$1&$A74, FE, $M$5, FALSE) ->  | N74: =VLOOKUP($I$1&$A74, FE, $N$5, FALSE) ->  | O74: =VLOOKUP($I$1&$A74, FE, $O$5, FALSE) ->  | P74: =VLOOKUP($I$1&$A74, FE, $P$5, FALSE) ->  | Q74: =VLOOKUP($I$1&$A74, FE, $Q$5, FALSE) ->  | R74: =VLOOKUP($I$1&$A74, FE, $R$5, FALSE) ->  | S74: =VLOOKUP($I$1&$A74, FE, $S$5, FALSE) ->  | T74: =VLOOKUP($I$1&$A74, FE, $T$5, FALSE) ->  | U74: =VLOOKUP($I$1&$A74, FE, $U$5, FALSE) -> 
A75: 310 | C75: Health Services | D75: Salaries for school physicians, school nurses, and clerical support staff. Expenses for school medical supplies, dues and subscriptions, and travel.
A76: 315 | C76: Health Services - Contracted | D76: Contracted services for school physicians, school nurses, clerical support staff and associated contracted expenses.
A77: 320 | C77: Athletic Services (including Transportation) | D77: Salaries for coaches, trainers and assistants. Expenses for athletic supplies, uniforms, travel expenses and transportation to and from athletic events.
A78: 325 | C78: Athletic Services (including Transportation) - Contracted | D78: Contracted services for coaches, trainers and assistants. Expenses for vendors providing athletic supplies, uniforms, and transportation to and from athletic events.
A79: 330 | C79: Food Services | D79: Salaries for cafeteria workers, food directors, and other food-related services for personell on payroll. Expenses for food, supplies, dues and subscriptions, and travel.
A80: 335 | C80: Food Services - Contracted | D80: Contracted services for cafeteria workers, food directors, and other food-related services for personell on payroll. Expenses for food, supplies, dues and subscriptions, and travel.
A81: 340 | C81: Student Transportation (to and from school) | D81: Salaries and related costs incurred by the school; Or, monetary fair market value of services provided by sending district. (Please note: More detail is required in the Schedule 7C worksheet for those seeking reimbursement).
A82: 345 | C82: Student Transportation (to and from school) - Contracted | D82: Contracted professional services and related costs incurred by the school; Or, monetary fair market value of services provided by sending district. (Please note: More detail is required in the Schedule 7C worksheet for those seeking reimbursement).
A83: 350 | C83: Depreciation of Transportation Vehicles | D83: Annual depreciation expense for capitalized transportation vehicles. (Please note: More detail is required in the Schedule 7C worksheet for those seeking state or district reimbursement for transportation costs).
A84: 360 | C84: Other Student Activities | D84: Salaries and contracted services for other student activities such as musical directors, drama coaches and other extra-curricular personnel. Expenses for supplies and materials, travel expenses and transportation to and from related events. Includes expenses related to extended-day programs.
A86: 400 | C86: Operation & Maintenance of Plant | D86: Calculates automatically | F86: =VLOOKUP($I$1&$A86, FE, $F$5, FALSE) ->  | G86: =VLOOKUP($I$1&$A86, FE, $G$5, FALSE) ->  | H86: =VLOOKUP($I$1&$A86, FE, $H$5, FALSE) ->  | I86: =VLOOKUP($I$1&$A86, FE, $I$5, FALSE) ->  | J86: =VLOOKUP($I$1&$A86, FE, $J$5, FALSE) ->  | K86: =VLOOKUP($I$1&$A86, FE, $K$5, FALSE) ->  | L86: =VLOOKUP($I$1&$A86, FE, $L$5, FALSE) ->  | M86: =VLOOKUP($I$1&$A86, FE, $M$5, FALSE) ->  | N86: =VLOOKUP($I$1&$A86, FE, $N$5, FALSE) ->  | O86: =VLOOKUP($I$1&$A86, FE, $O$5, FALSE) ->  | P86: =VLOOKUP($I$1&$A86, FE, $P$5, FALSE) ->  | Q86: =VLOOKUP($I$1&$A86, FE, $Q$5, FALSE) ->  | R86: =VLOOKUP($I$1&$A86, FE, $R$5, FALSE) ->  | S86: =VLOOKUP($I$1&$A86, FE, $S$5, FALSE) ->  | T86: =VLOOKUP($I$1&$A86, FE, $T$5, FALSE) ->  | U86: =VLOOKUP($I$1&$A86, FE, $U$5, FALSE) -> 
A87: 410 | C87: Operation & Maintenance of Buildings and Grounds | D87: Salaries and contracted services for plant managers, custodians, security officers, maintenance, etc. Expenses for supplies, travel expenses and professional development. | F87: =VLOOKUP($I$1&$A87, FE, $F$5, FALSE) ->  | G87: =VLOOKUP($I$1&$A87, FE, $G$5, FALSE) ->  | H87: =VLOOKUP($I$1&$A87, FE, $H$5, FALSE) ->  | I87: =VLOOKUP($I$1&$A87, FE, $I$5, FALSE) ->  | J87: =VLOOKUP($I$1&$A87, FE, $J$5, FALSE) ->  | K87: =VLOOKUP($I$1&$A87, FE, $K$5, FALSE) ->  | L87: =VLOOKUP($I$1&$A87, FE, $L$5, FALSE) ->  | M87: =VLOOKUP($I$1&$A87, FE, $M$5, FALSE) ->  | N87: =VLOOKUP($I$1&$A87, FE, $N$5, FALSE) ->  | O87: =VLOOKUP($I$1&$A87, FE, $O$5, FALSE) ->  | P87: =VLOOKUP($I$1&$A87, FE, $P$5, FALSE) ->  | Q87: =VLOOKUP($I$1&$A87, FE, $Q$5, FALSE) ->  | R87: =VLOOKUP($I$1&$A87, FE, $R$5, FALSE) ->  | S87: =VLOOKUP($I$1&$A87, FE, $S$5, FALSE) ->  | T87: =VLOOKUP($I$1&$A87, FE, $T$5, FALSE) ->  | U87: =VLOOKUP($I$1&$A87, FE, $U$5, FALSE) -> 
A88: 420 | C88: Utilities | D88: Cost of fuel, oil, electricity, gas, water, trash, waste disposal, telephone services, etc. | F88: =VLOOKUP($I$1&$A88, FE, $F$5, FALSE) ->  | G88: =VLOOKUP($I$1&$A88, FE, $G$5, FALSE) ->  | H88: =VLOOKUP($I$1&$A88, FE, $H$5, FALSE) ->  | I88: =VLOOKUP($I$1&$A88, FE, $I$5, FALSE) ->  | J88: =VLOOKUP($I$1&$A88, FE, $J$5, FALSE) ->  | K88: =VLOOKUP($I$1&$A88, FE, $K$5, FALSE) ->  | L88: =VLOOKUP($I$1&$A88, FE, $L$5, FALSE) ->  | M88: =VLOOKUP($I$1&$A88, FE, $M$5, FALSE) ->  | N88: =VLOOKUP($I$1&$A88, FE, $N$5, FALSE) ->  | O88: =VLOOKUP($I$1&$A88, FE, $O$5, FALSE) ->  | P88: =VLOOKUP($I$1&$A88, FE, $P$5, FALSE) ->  | Q88: =VLOOKUP($I$1&$A88, FE, $Q$5, FALSE) ->  | R88: =VLOOKUP($I$1&$A88, FE, $R$5, FALSE) ->  | S88: =VLOOKUP($I$1&$A88, FE, $S$5, FALSE) ->  | T88: =VLOOKUP($I$1&$A88, FE, $T$5, FALSE) ->  | U88: =VLOOKUP($I$1&$A88, FE, $U$5, FALSE) -> 
A89: 430 | C89: Maintenance of Equipment | D89: Equipment parts and repair, materials, and tools, contracted services, including vehicles. | F89: =VLOOKUP($I$1&$A89, FE, $F$5, FALSE) ->  | G89: =VLOOKUP($I$1&$A89, FE, $G$5, FALSE) ->  | H89: =VLOOKUP($I$1&$A89, FE, $H$5, FALSE) ->  | I89: =VLOOKUP($I$1&$A89, FE, $I$5, FALSE) ->  | J89: =VLOOKUP($I$1&$A89, FE, $J$5, FALSE) ->  | K89: =VLOOKUP($I$1&$A89, FE, $K$5, FALSE) ->  | L89: =VLOOKUP($I$1&$A89, FE, $L$5, FALSE) ->  | M89: =VLOOKUP($I$1&$A89, FE, $M$5, FALSE) ->  | N89: =VLOOKUP($I$1&$A89, FE, $N$5, FALSE) ->  | O89: =VLOOKUP($I$1&$A89, FE, $O$5, FALSE) ->  | P89: =VLOOKUP($I$1&$A89, FE, $P$5, FALSE) ->  | Q89: =VLOOKUP($I$1&$A89, FE, $Q$5, FALSE) ->  | R89: =VLOOKUP($I$1&$A89, FE, $R$5, FALSE) ->  | S89: =VLOOKUP($I$1&$A89, FE, $S$5, FALSE) ->  | T89: =VLOOKUP($I$1&$A89, FE, $T$5, FALSE) ->  | U89: =VLOOKUP($I$1&$A89, FE, $U$5, FALSE) -> 
A90: 440 | C90: Networking and Telecommunications | D90: Costs for installing and maintaining school technology infrastructure, including wiring, file servers, security systems, etc. | F90: =VLOOKUP($I$1&$A90, FE, $F$5, FALSE) ->  | G90: =VLOOKUP($I$1&$A90, FE, $G$5, FALSE) ->  | H90: =VLOOKUP($I$1&$A90, FE, $H$5, FALSE) ->  | I90: =VLOOKUP($I$1&$A90, FE, $I$5, FALSE) ->  | J90: =VLOOKUP($I$1&$A90, FE, $J$5, FALSE) ->  | K90: =VLOOKUP($I$1&$A90, FE, $K$5, FALSE) ->  | L90: =VLOOKUP($I$1&$A90, FE, $L$5, FALSE) ->  | M90: =VLOOKUP($I$1&$A90, FE, $M$5, FALSE) ->  | N90: =VLOOKUP($I$1&$A90, FE, $N$5, FALSE) ->  | O90: =VLOOKUP($I$1&$A90, FE, $O$5, FALSE) ->  | P90: =VLOOKUP($I$1&$A90, FE, $P$5, FALSE) ->  | Q90: =VLOOKUP($I$1&$A90, FE, $Q$5, FALSE) ->  | R90: =VLOOKUP($I$1&$A90, FE, $R$5, FALSE) ->  | S90: =VLOOKUP($I$1&$A90, FE, $S$5, FALSE) ->  | T90: =VLOOKUP($I$1&$A90, FE, $T$5, FALSE) ->  | U90: =VLOOKUP($I$1&$A90, FE, $U$5, FALSE) -> 
A92: 500 | C92: Fixed Charges | D92: Calculates automatically | F92: =VLOOKUP($I$1&$A92, FE, $F$5, FALSE) ->  | G92: =VLOOKUP($I$1&$A92, FE, $G$5, FALSE) ->  | H92: =VLOOKUP($I$1&$A92, FE, $H$5, FALSE) ->  | I92: =VLOOKUP($I$1&$A92, FE, $I$5, FALSE) ->  | J92: =VLOOKUP($I$1&$A92, FE, $J$5, FALSE) ->  | K92: =VLOOKUP($I$1&$A92, FE, $K$5, FALSE) ->  | L92: =VLOOKUP($I$1&$A92, FE, $L$5, FALSE) ->  | M92: =VLOOKUP($I$1&$A92, FE, $M$5, FALSE) ->  | N92: =VLOOKUP($I$1&$A92, FE, $N$5, FALSE) ->  | O92: =VLOOKUP($I$1&$A92, FE, $O$5, FALSE) ->  | P92: =VLOOKUP($I$1&$A92, FE, $P$5, FALSE) ->  | Q92: =VLOOKUP($I$1&$A92, FE, $Q$5, FALSE) ->  | R92: =VLOOKUP($I$1&$A92, FE, $R$5, FALSE) ->  | S92: =VLOOKUP($I$1&$A92, FE, $S$5, FALSE) ->  | T92: =VLOOKUP($I$1&$A92, FE, $T$5, FALSE) ->  | U92: =VLOOKUP($I$1&$A92, FE, $U$5, FALSE) -> 
A93: 510 | C93: Employee Retirement & Taxes | D93: Payroll taxes including contributions to Medicaid, social security, pension plans, and other employee retirement systems, school's portion, for non-MTRS employees; and Federal grant MTRS surcharge. Include MTRS on-behalf pension recorded expense according to GASB 68.
A94: 520 | C94: Fringe Benefits | D94: Employee unemployment, health, and life insurance premiums or payments, and worker's compensation or other benefits, paid by the school for the benefit of the employee.
A95: 530 | C95: Insurance (non-employee) | D95: Insurance premiums for property, fire, liability, fidelity bonds; self-insurance costs.
A96: 550 | C96: Rental/Lease of Equipment | D96: Annual operating lease/rental costs of equipment.
A97: 560 | C97: Short-Term Interest | D97: Interest costs for short-term (less than one year) lines of credit that are needed to sustain cash flow for ongoing operations.
A99: 600 | C99: Community Services | D99: Calculates automatically | F99: =VLOOKUP($I$1&$A99, FE, $F$5, FALSE) ->  | G99: =VLOOKUP($I$1&$A99, FE, $G$5, FALSE) ->  | H99: =VLOOKUP($I$1&$A99, FE, $H$5, FALSE) ->  | I99: =VLOOKUP($I$1&$A99, FE, $I$5, FALSE) ->  | J99: =VLOOKUP($I$1&$A99, FE, $J$5, FALSE) ->  | K99: =VLOOKUP($I$1&$A99, FE, $K$5, FALSE) ->  | L99: =VLOOKUP($I$1&$A99, FE, $L$5, FALSE) ->  | M99: =VLOOKUP($I$1&$A99, FE, $M$5, FALSE) ->  | N99: =VLOOKUP($I$1&$A99, FE, $N$5, FALSE) ->  | O99: =VLOOKUP($I$1&$A99, FE, $O$5, FALSE) ->  | P99: =VLOOKUP($I$1&$A99, FE, $P$5, FALSE) ->  | Q99: =VLOOKUP($I$1&$A99, FE, $Q$5, FALSE) ->  | R99: =VLOOKUP($I$1&$A99, FE, $R$5, FALSE) ->  | S99: =VLOOKUP($I$1&$A99, FE, $S$5, FALSE) ->  | T99: =VLOOKUP($I$1&$A99, FE, $T$5, FALSE) ->  | U99: =VLOOKUP($I$1&$A99, FE, $U$5, FALSE) -> 
A100: 610 | C100: Dissemination Activities | D100: Activities designed to disseminate the school's best practices to external groups, including presentations at or hosting of conferences, etc. | F100: =VLOOKUP($I$1&$A100, FE, $F$5, FALSE) ->  | G100: =VLOOKUP($I$1&$A100, FE, $G$5, FALSE) ->  | H100: =VLOOKUP($I$1&$A100, FE, $H$5, FALSE) ->  | I100: =VLOOKUP($I$1&$A100, FE, $I$5, FALSE) ->  | J100: =VLOOKUP($I$1&$A100, FE, $J$5, FALSE) ->  | K100: =VLOOKUP($I$1&$A100, FE, $K$5, FALSE) ->  | L100: =VLOOKUP($I$1&$A100, FE, $L$5, FALSE) ->  | M100: =VLOOKUP($I$1&$A100, FE, $M$5, FALSE) ->  | N100: =VLOOKUP($I$1&$A100, FE, $N$5, FALSE) ->  | O100: =VLOOKUP($I$1&$A100, FE, $O$5, FALSE) ->  | P100: =VLOOKUP($I$1&$A100, FE, $P$5, FALSE) ->  | Q100: =VLOOKUP($I$1&$A100, FE, $Q$5, FALSE) ->  | R100: =VLOOKUP($I$1&$A100, FE, $R$5, FALSE) ->  | S100: =VLOOKUP($I$1&$A100, FE, $S$5, FALSE) ->  | T100: =VLOOKUP($I$1&$A100, FE, $T$5, FALSE) ->  | U100: =VLOOKUP($I$1&$A100, FE, $U$5, FALSE) -> 
A101: 620 | C101: Civic Activities | D101: Expenses associated with civic activities (Ex: fundraising activities for a charitable agency, community service). | F101: =VLOOKUP($I$1&$A101, FE, $F$5, FALSE) ->  | G101: =VLOOKUP($I$1&$A101, FE, $G$5, FALSE) ->  | H101: =VLOOKUP($I$1&$A101, FE, $H$5, FALSE) ->  | I101: =VLOOKUP($I$1&$A101, FE, $I$5, FALSE) ->  | J101: =VLOOKUP($I$1&$A101, FE, $J$5, FALSE) ->  | K101: =VLOOKUP($I$1&$A101, FE, $K$5, FALSE) ->  | L101: =VLOOKUP($I$1&$A101, FE, $L$5, FALSE) ->  | M101: =VLOOKUP($I$1&$A101, FE, $M$5, FALSE) ->  | N101: =VLOOKUP($I$1&$A101, FE, $N$5, FALSE) ->  | O101: =VLOOKUP($I$1&$A101, FE, $O$5, FALSE) ->  | P101: =VLOOKUP($I$1&$A101, FE, $P$5, FALSE) ->  | Q101: =VLOOKUP($I$1&$A101, FE, $Q$5, FALSE) ->  | R101: =VLOOKUP($I$1&$A101, FE, $R$5, FALSE) ->  | S101: =VLOOKUP($I$1&$A101, FE, $S$5, FALSE) ->  | T101: =VLOOKUP($I$1&$A101, FE, $T$5, FALSE) ->  | U101: =VLOOKUP($I$1&$A101, FE, $U$5, FALSE) -> 
A103: 700 | C103: Non-Operating / Capital Facilities Costs | D103: Calculates automatically | F103: =VLOOKUP($I$1&$A103, FE, $F$5, FALSE) ->  | G103: =VLOOKUP($I$1&$A103, FE, $G$5, FALSE) ->  | H103: =VLOOKUP($I$1&$A103, FE, $H$5, FALSE) ->  | I103: =VLOOKUP($I$1&$A103, FE, $I$5, FALSE) ->  | J103: =VLOOKUP($I$1&$A103, FE, $J$5, FALSE) ->  | K103: =VLOOKUP($I$1&$A103, FE, $K$5, FALSE) ->  | L103: =VLOOKUP($I$1&$A103, FE, $L$5, FALSE) ->  | M103: =VLOOKUP($I$1&$A103, FE, $M$5, FALSE) ->  | N103: =VLOOKUP($I$1&$A103, FE, $N$5, FALSE) ->  | O103: =VLOOKUP($I$1&$A103, FE, $O$5, FALSE) ->  | P103: =VLOOKUP($I$1&$A103, FE, $P$5, FALSE) ->  | Q103: =VLOOKUP($I$1&$A103, FE, $Q$5, FALSE) ->  | R103: =VLOOKUP($I$1&$A103, FE, $R$5, FALSE) ->  | S103: =VLOOKUP($I$1&$A103, FE, $S$5, FALSE) ->  | T103: =VLOOKUP($I$1&$A103, FE, $T$5, FALSE) ->  | U103: =VLOOKUP($I$1&$A103, FE, $U$5, FALSE) -> 
A104: 720 | C104: Long-Term Interest, facilities related | D104: Annual debt service costs for long-term financing (greater than one year) related to capital facilities costs.
A105: 725 | C105: Long-Term Interest, non-facilities related | D105: Annual debt service costs for long-term financing (greater than one year) not related to capital facilities costs.
A106: 730 | C106: Other costs related to capital facilities acquisition | D106: Expenses (Ex: architectural design, closing costs, site exploration, etc.) related to capital facilities acquisition or lease.
A107: 740 | C107: Rental/Lease of Buildings & Grounds | D107: Annual operating lease/rental costs of Building & Grounds.
A108: 750 | C108: Depreciation of Equipment, Building, & Grounds | D108: Annual depreciation expense for capitalized Equipment, Networking and Telecommunications, Building, & Grounds.
A109: 760 | C109: Bad debt / loss on disposal of assets | D109: Write-off costs for bad debt or loss on disposal of assets.
A110: 770 | C110: Other non-operating | D110: Other non-operating expenses.
A112: 800 | C112: TOTALS | D112: Calculates automatically | F112: =VLOOKUP($I$1&$A112, FE, $F$5, FALSE) ->  | G112: =VLOOKUP($I$1&$A112, FE, $G$5, FALSE) ->  | H112: =VLOOKUP($I$1&$A112, FE, $H$5, FALSE) ->  | I112: =VLOOKUP($I$1&$A112, FE, $I$5, FALSE) ->  | J112: =VLOOKUP($I$1&$A112, FE, $J$5, FALSE) ->  | K112: =VLOOKUP($I$1&$A112, FE, $K$5, FALSE) ->  | L112: =VLOOKUP($I$1&$A112, FE, $L$5, FALSE) ->  | M112: =VLOOKUP($I$1&$A112, FE, $M$5, FALSE) ->  | N112: =VLOOKUP($I$1&$A112, FE, $N$5, FALSE) ->  | O112: =VLOOKUP($I$1&$A112, FE, $O$5, FALSE) ->  | P112: =VLOOKUP($I$1&$A112, FE, $P$5, FALSE) ->  | Q112: =VLOOKUP($I$1&$A112, FE, $Q$5, FALSE) ->  | R112: =VLOOKUP($I$1&$A112, FE, $R$5, FALSE) ->  | S112: =VLOOKUP($I$1&$A112, FE, $S$5, FALSE) ->  | T112: =VLOOKUP($I$1&$A112, FE, $T$5, FALSE) ->  | U112: =VLOOKUP($I$1&$A112, FE, $U$5, FALSE) -> 
A114: 910 | C114: Reference: Capitalized Expenditures | D114: Reference line for cash expenditures that are not expensed in the fiscal year | F114: =VLOOKUP($I$1&$A114, FE, $F$5, FALSE) ->  | G114: =VLOOKUP($I$1&$A114, FE, $G$5, FALSE) ->  | H114: =VLOOKUP($I$1&$A114, FE, $H$5, FALSE) ->  | I114: =VLOOKUP($I$1&$A114, FE, $I$5, FALSE) ->  | J114: =VLOOKUP($I$1&$A114, FE, $J$5, FALSE) ->  | K114: =VLOOKUP($I$1&$A114, FE, $K$5, FALSE) ->  | L114: =VLOOKUP($I$1&$A114, FE, $L$5, FALSE) ->  | M114: =VLOOKUP($I$1&$A114, FE, $M$5, FALSE) ->  | N114: =VLOOKUP($I$1&$A114, FE, $N$5, FALSE) ->  | O114: =VLOOKUP($I$1&$A114, FE, $O$5, FALSE) ->  | P114: =VLOOKUP($I$1&$A114, FE, $P$5, FALSE) ->  | Q114: =VLOOKUP($I$1&$A114, FE, $Q$5, FALSE) ->  | R114: =VLOOKUP($I$1&$A114, FE, $R$5, FALSE) ->  | S114: =VLOOKUP($I$1&$A114, FE, $S$5, FALSE) ->  | T114: =VLOOKUP($I$1&$A114, FE, $T$5, FALSE) ->  | U114: =VLOOKUP($I$1&$A114, FE, $U$5, FALSE) -> 
A115: 920 | C115: Reference: Deferrals/Carryovers | D115: Reference line for cash expenditures that are not expensed in the fiscal year | F115: =VLOOKUP($I$1&$A115, FE, $F$5, FALSE) ->  | G115: =VLOOKUP($I$1&$A115, FE, $G$5, FALSE) ->  | H115: =VLOOKUP($I$1&$A115, FE, $H$5, FALSE) ->  | I115: =VLOOKUP($I$1&$A115, FE, $I$5, FALSE) ->  | J115: =VLOOKUP($I$1&$A115, FE, $J$5, FALSE) ->  | K115: =VLOOKUP($I$1&$A115, FE, $K$5, FALSE) ->  | L115: =VLOOKUP($I$1&$A115, FE, $L$5, FALSE) ->  | M115: =VLOOKUP($I$1&$A115, FE, $M$5, FALSE) ->  | N115: =VLOOKUP($I$1&$A115, FE, $N$5, FALSE) ->  | O115: =VLOOKUP($I$1&$A115, FE, $O$5, FALSE) ->  | P115: =VLOOKUP($I$1&$A115, FE, $P$5, FALSE) ->  | Q115: =VLOOKUP($I$1&$A115, FE, $Q$5, FALSE) ->  | R115: =VLOOKUP($I$1&$A115, FE, $R$5, FALSE) ->  | S115: =VLOOKUP($I$1&$A115, FE, $S$5, FALSE) ->  | T115: =VLOOKUP($I$1&$A115, FE, $T$5, FALSE) ->  | U115: =VLOOKUP($I$1&$A115, FE, $U$5, FALSE) -> 
A116: 900 | C116: Reference: Totals | H116: =SUM(H112,H114,H115) ->  | I116: =SUM(I112,I114,I115) -> 

Sheet 4. EXPPP
B2: This tab contains FY24 expenditures per pupil for both charter and virtual schools.
B4: 1. Charter Expenditures Per Pupil
B5: 2. Virtual Expenditures Per Pupil
A7: Massachusetts Department of Elementary and Secondary Education
A8: FY24 Charter School Expenditures Per Pupil, All Funds, Summary By Function
A9: =Index!B3 -> Last Updated: July 2025
B10: Return to Index | F10: ----------------------------- Operating Expenditures Per Pupil in The Charter School1 ------------------------------------------- | S10: --- Exp pp Facilities Costs2 ---
E11: fte pupils | G11: instruc- | H11: classroom & | I11: other | J11: profes- | K11: instructn'l | L11: guidance, | N11: operations | O11: insurance, | P11: total operating | Q11: total operating | S11: Rental/Lease of | T11: Capital
D12: location | E12: at the | F12: admini- | G12: tional | H12: specialist | I12: teaching | J12: sional dev- | K12: materials, | L12: counseling | M12: pupil | N12: and | O12: retirement | P12: expenditures | Q12: expenditures | S12: Building & | T12: Facilities
A13: LEA | B13: Charter School | C13: type | E13: charter | F13: stration | G13: leadership | H13: teachers | I13: services | J13: elopment | K13: equip & tech | L13: & testing | M13: services | N13: maintenance | O13: & other | P13: aggregate | Q13: per pupil | S13: Grounds | T13: Expenses3
F14: 100 | G14: 210 | H14: 220 | I14: 230 | J14: 240 | K14: 260 | L14: 250 | M14: 300 | N14: 400 | O14: 500 | S14: 540 | T14: 720
A15: 445 | B15: Abby Kelley Foster Charter Public School | C15: =VLOOKUP(A15, TYPE, 3, FALSE) -> C | D15: =VLOOKUP(A15, FACTS, 6, FALSE) -> Worcester | E15: =VLOOKUP(A15, FTE, 2, FALSE) -> 1421.35 | F15: =VLOOKUP($A15&100, FE, 21, FALSE)/$E15 -> 2165.122285 | G15: =VLOOKUP($A15&210, FE, 21, FALSE)/$E15 -> 569.5974672 | H15: =VLOOKUP($A15&220, FE, 21, FALSE)/$E15 -> 7312.478573 | I15: =VLOOKUP($A15&230, FE, 21, FALSE)/$E15 -> 873.0109403 | J15: =VLOOKUP($A15&240, FE, 21, FALSE)/$E15 -> 53.19247195 | K15: =VLOOKUP($A15&260, FE, 21, FALSE)/$E15 -> 493.0154009 | L15: =VLOOKUP($A15&250, FE, 21, FALSE)/$E15 -> 552.450058 | M15: =VLOOKUP($A15&300, FE, 21, FALSE)/$E15 -> 2288.985479 | N15: =VLOOKUP($A15&400, FE, 21, FALSE)/$E15 -> 1503.111155 | O15: =VLOOKUP($A15&500, FE, 21, FALSE)/$E15 -> 4546.372399 | P15: =VLOOKUP($A15&800,FE, 21,FALSE)-VLOOKUP($A15&700,FE, 21,FALSE)-VLOOKUP($A15&600,FE, 21,FALSE) -> 28934899.85 | Q15: =SUM(F15:O15) -> 20357.33623 | S15: =VLOOKUP($A15&740, FE, 21, FALSE)/$E15 -> 0 | T15: =(VLOOKUP($A15&700, FE, 21, FALSE)-VLOOKUP($A15&740, FE, 21, FALSE)-VLOOKUP($A15&725, FE, 21, FALSE))/$E15 -> 1502.823872
A16: 412 | B16: Academy of the Pacific Rim Charter Public School | C16: C | D16: Boston | E16: 452.62 | F16: 4092.790862 | G16: 5143.862401 | H16: 10131.35596 | I16: 958.8131324 | J16: 515.6864478 | K16: 1604.361274 | L16: 611.5637842 | M16: 3287.095135 | N16: 2187.842635 | O16: 6568.722107 | P16: 15887909.67 | Q16: =SUM(F16:O16) -> 35102.09374 | S16: 0 | T16: 1792.987495
A17: 430 | B17: Advanced Math and Science Academy Charter School | C17: C | D17: Marlborough | E17: 965.77 | F17: 2357.885573 | G17: 1156.356959 | H17: 6315.657569 | I17: 324.65206 | J17: 640.57026 | K17: 971.6930014 | L17: 482.2602897 | M17: 1956.271214 | N17: 1038.250567 | O17: 4455.706183 | P17: 19024996.51 | Q17: 19699.30367 | S17: 0 | T17: 1192.573791
A18: 409 | B18: Alma del Mar Charter School | C18: C | D18: New Bedford | E18: 1038.78 | F18: 1990.506585 | G18: 706.3959452 | H18: 5053.627101 | I18: 4045.09643 | J18: 1489.386521 | K18: 767.0576734 | L18: 460.0707272 | M18: 3677.598048 | N18: 1131.248224 | O18: 3442.584936 | P18: 23646343.52 | Q18: 22763.57219 | S18: 1637.549115 | T18: 1399.118196
A19: 3509 | B19: Argosy Collegiate Charter School | C19: C | D19: Fall River | E19: 566.56 | F19: 2604.52877 | G19: 2003.924015 | H19: 7956.144892 | I19: 925.5291408 | J19: 83.72738986 | K19: 1012.014844 | L19: 1298.441683 | M19: 3553.073037 | N19: 1426.684552 | O19: 4530.699467 | P19: 14387659.64 | Q19: 25394.76779 | S19: 1751.623835 | T19: 157.3001977
A20: 491 | B20: Atlantis Charter School | C20: C | D20: Fall River | E20: 1257.81 | F20: 1667.393326 | G20: 1291.681574 | H20: 5151.874289 | I20: 2107.462971 | J20: 82.83445035 | K20: 600.2178389 | L20: 1149.339725 | M20: 2070.070201 | N20: 978.4092987 | O20: 4562.154856 | P20: 24730354 | Q20: 19661.43853 | S20: 10.20026872 | T20: 2133.257805
A21: 3502 | B21: Baystate Academy Charter Public School | C21: C | D21: Springfield | E21: 398.24 | F21: 1920.176276 | G21: 2810.649558 | H21: 6775.559964 | I21: 2303.302029 | J21: 1185.784954 | K21: 950.6955605 | L21: 1659.130173 | M21: 4448.465749 | N21: 1789.36822 | O21: 4928.47278 | P21: 11458004.08 | Q21: 28771.60526 | S21: 1040.435416 | T21: 444.9075934
A22: 420 | B22: Benjamin Banneker Charter Public School | C22: C | D22: Cambridge | E22: 343.69 | F22: 3390.640344 | G22: 1967.164421 | H22: 4671.864733 | I22: 4192.046292 | J22: 821.8750327 | K22: 944.1376822 | L22: 117.8591172 | M22: 4391.086997 | N22: 668.8980768 | O22: 4691.310629 | P22: 8886752.23 | Q22: 25856.88333 | S22: 1731.295644 | T22: 1841.773109
A23: 447 | B23: Benjamin Franklin Classical Charter Public School | C23: C | D23: Franklin | E23: 886.32 | F23: 1450.300117 | G23: 784.772994 | H23: 6932.386723 | I23: 2084.677092 | J23: 109.4412853 | K23: 525.0496435 | L23: 403.2392364 | M23: 1493.102943 | N23: 787.0182327 | O23: 5670.541114 | P23: 17939586 | Q23: 20240.52938 | S23: 0 | T23: 411.8004784
A24: 414 | B24: Berkshire Arts and Technology Charter Public School | C24: C | D24: Adams | E24: 362.34 | F24: 3243.7196 | G24: 2077.959817 | H24: 6814.014406 | I24: 1574.980792 | J24: 227.5217751 | K24: 881.2901695 | L24: 1288.948225 | M24: 3209.845118 | N24: 1290.646327 | O24: 5023.738257 | P24: 9287739.65 | Q24: 25632.66449 | S24: 0 | T24: 1633.162223
A25: 449 | B25: Boston Collegiate Charter School | C25: C | D25: Boston | E25: 693.67 | F25: 2875.521011 | G25: 2747.076953 | H25: 9058.335448 | I25: 608.5011028 | J25: 318.7031874 | K25: 1007.111753 | L25: 2044.803898 | M25: 2524.350743 | N25: 1828.867545 | O25: 5585.450935 | P25: 19838075.89 | Q25: 28598.72258 | S25: 2407.710222 | T25: 434.7852725
A26: 424 | B26: Boston Day and Evening Academy Charter School | C26: HM | D26: Boston | E26: 287.7034451 | F26: 5206.228517 | G26: 3971.635445 | H26: 14442.11045 | I26: 2486.763827 | J26: 185.0050839 | K26: 552.3340882 | L26: 1480.553178 | M26: 2432.22489 | N26: 3153.224494 | O26: 6124.802362 | P26: 11518173.57 | Q26: 40034.88233 | S26: 0 | T26: 0
A27: 411 | B27: Boston Green Academy Horace Mann Charter School | C27: HM | D27: Boston | E27: 441.6642768 | F27: 2637.995195 | G27: 3987.708022 | H27: 11649.92878 | I27: 2671.718547 | J27: 257.8856973 | K27: 511.7250406 | L27: 1252.702061 | M27: 1713.589529 | N27: 1709.382396 | O27: 4681.506969 | P27: 13724338.56 | Q27: 31074.14224 | S27: 0 | T27: 0
A28: 416 | B28: Boston Preparatory Charter Public School | C28: C | D28: Boston | E28: 695.84 | F28: 2919.553446 | G28: 2866.131395 | H28: 7327.242383 | I28: 1045.713454 | J28: 440.5768567 | K28: 1050.794723 | L28: 2047.1947 | M28: 5017.536373 | N28: 1620.474017 | O28: 6736.189354 | P28: 21620727.64 | Q28: 31071.4067 | S28: 3523.149 | T28: 947.8400207
A29: 481 | B29: Boston Renaissance Charter Public School | C29: C | D29: Boston | E29: 937.78 | F29: 3194.428331 | G29: 1387.626096 | H29: 7542.357483 | I29: 2831.878479 | J29: 1447.24349 | K29: 510.9951161 | L29: 402.9388556 | M29: 3569.290239 | N29: 1475.759773 | O29: 5748.133891 | P29: 26361607 | Q29: 28110.65175 | S29: 0 | T29: 1655.570603
A30: 417 | B30: Bridge Boston Charter School | C30: C | D30: Boston | E30: 334.16 | F30: 5488.043961 | G30: 3495.162258 | H30: 10359.34582 | I30: 3038.216034 | J30: 596.4687575 | K30: 1054.451003 | L30: 1060.243596 | M30: 3160.040101 | N30: 1931.113838 | O30: 6494.849773 | P30: 12256298.81 | Q30: 36677.93514 | S30: 0 | T30: 3806.932766
A31: 428 | B31: Brooke Charter School | C31: C | D31: Boston | E31: 2210.49 | F31: 1445.900352 | G31: 3519.316948 | H31: 8665.242096 | I31: 1553.977625 | J31: 42.38619492 | K31: 1729.071862 | L31: 847.0716583 | M31: 3102.871155 | N31: 1991.987021 | O31: 4883.742157 | P31: 61410876.19 | Q31: 27781.56707 | S31: 34.91190189 | T31: 2590.424612
A32: 432 | B32: Cape Cod Lighthouse Charter School | C32: C | D32: Harwich | E32: 249.75 | F32: 1657.043924 | G32: 1166.13013 | H32: 7188.865666 | I32: 1542.550551 | J32: 60.77117117 | K32: 428.5178378 | L32: 479.4834835 | M32: 728.7605205 | N32: 663.1778178 | O32: 5434.099099 | P32: 4832512.7 | Q32: 19349.4002 | S32: 3.603603604 | T32: 920.5648048
A33: 418 | B33: Christa McAuliffe Charter School | C33: C | D33: Framingham | E33: 290.63 | F33: 3410.597667 | G33: 1440.154148 | H33: 10181.24075 | I33: 813.2814919 | J33: 46.66414341 | K33: 478.3023088 | L33: 666.8134742 | M33: 3216.791109 | N33: 1290.768331 | O33: 5529.129821 | P33: 7868442 | Q33: 27073.74325 | S33: 1712.424732 | T33: 231.4970925
A34: 437 | B34: City on a Hill Charter Public School | C34: C | D34: Boston | E34: 188.71 | F34: 7955.460018 | G34: 3535.947433 | H34: 7347.868052 | I34: 1962.181707 | J34: 980.6089237 | K34: 2237.367336 | L34: 1911.771077 | M34: 3966.670182 | N34: 2060.125907 | O34: 6932.642255 | P34: 7339053.22 | Q34: 38890.64289 | S34: 2631.869005 | T34: 644.3411054
A35: 438 | B35: Codman Academy Charter Public School | C35: C | D35: Boston | E35: 339.9 | F35: 3129.056428 | G35: 4266.763636 | H35: 10781.16061 | I35: 2365.053369 | J35: 221.83198 | K35: 1769.198905 | L35: 1356.285143 | M35: 3648.044013 | N35: 1463.645749 | O35: 7736.560371 | P35: 12487110.31 | Q35: 36737.6002 | S35: 1084.753251 | T35: 1185.757418
A36: 3503 | B36: Collegiate Charter School of Lowell | C36: C | D36: Lowell | E36: 1194.01 | F36: 1618.411881 | G36: 1303.36395 | H36: 3793.772615 | I36: 1942.132403 | J36: 140.7115183 | K36: 1315.622047 | L36: 595.9331831 | M36: 1622.380231 | N36: 1084.165116 | O36: 2424.238097 | P36: 18913991.27 | Q36: 15840.73104 | S36: 0 | T36: 3402.570037
A37: 436 | B37: Community Charter School of Cambridge | C37: C | D37: =VLOOKUP(A37, FACTS, 6, FALSE) -> Cambridge | E37: 259.34 | F37: 7046.741305 | G37: 2269.096476 | H37: 12322.49179 | I37: 1134.997224 | J37: 173.679764 | K37: 556.4630986 | L37: 1876.325056 | M37: 1413.148724 | N37: 2406.662412 | O37: 6769.81958 | P37: 9328310.79 | Q37: 35969.42543 | S37: 6141.081669 | T37: 794.9484075
A38: 440 | B38: Community Day Charter Public School | C38: C | D38: Lawrence | E38: 1197.49 | F38: 2363.717442 | G38: 2359.205505 | H38: 7134.493816 | I38: 1380.163509 | J38: 177.9313397 | K38: 717.9542209 | L38: 822.9555153 | M38: 2830.538877 | N38: 977.1764274 | O38: 4261.537048 | P38: 27573014 | Q38: 23025.6737 | S38: 1226.805234 | T38: 22.59977119
A39: 439 | B39: Conservatory Lab Charter School | C39: C | D39: Boston | E39: 451.65 | F39: 2562.646983 | G39: 390.0233367 | H39: 9027.808502 | I39: 2927.58211 | J39: 42.40606664 | K39: 572.0832282 | L39: 520.055264 | M39: 5506.903841 | N39: 1641.383881 | O39: 4926.097708 | P39: 12699038.95 | Q39: 28116.99092 | S39: 3266.576774 | T39: 582.132182
A40: 407 | B40: Dudley Street Neighborhood Charter School | C40: HM | D40: Boston | E40: 333.3470588 | F40: 3399.173324 | G40: 1190.900143 | H40: 6695.470324 | I40: 4337.534326 | J40: 76.19626251 | K40: 217.4944043 | L40: 128.3666343 | M40: 2407.311445 | N40: 1044.808798 | O40: 3558.58322 | P40: 7685596.08 | Q40: 23055.83888 | S40: 0 | T40: 0
A41: 452 | B41: Edward M. Kennedy Academy for Health Careers: A Horace Mann Charter Public School | C41: HM | D41: Boston | E41: 367.5665928 | F41: 4566.788802 | G41: 1333.605963 | H41: 12104.73445 | I41: 3204.657395 | J41: 1235.019746 | K41: 408.8701284 | L41: 5770.282287 | M41: 4126.759693 | N41: 0 | O41: 3942.297881 | P41: 13487127 | Q41: 36693.01635 | S41: 1423.034656 | T41: 128.9018124
A42: 410 | B42: Excel Academy Charter School | C42: C | D42: =VLOOKUP(A42, FACTS, 6, FALSE) -> Boston/Chelsea | E42: 1361.61 | F42: 3354.733 | G42: 3756.375174 | H42: 7750.155331 | I42: 1671.118749 | J42: 166.1746021 | K42: 981.442557 | L42: 1447.830877 | M42: 2734.083181 | N42: 956.7144777 | O42: 4702.555063 | P42: 37473118 | Q42: 27521.18301 | S42: 158.8685453 | T42: 2062.362938
A43: 413 | B43: Four Rivers Charter Public School | C43: C | D43: Greenfield | E43: 212.95 | F43: 2213.749707 | G43: 1746.503874 | H43: 7025.940362 | I43: 1601.765673 | J43: 426.5320498 | K43: 1237.060343 | L43: 1189.706504 | M43: 1086.405259 | N43: 1102.164827 | O43: 5230.852313 | P43: 4868182 | Q43: 22860.68091 | S43: 1741.986382 | T43: 143.2683729
A44: 446 | B44: Foxborough Regional Charter School | C44: =VLOOKUP(A44, TYPE, 3, FALSE) -> C | D44: Foxborough | E44: 1508.34 | F44: 1841.146015 | G44: 1058.343503 | H44: 5087.05223 | I44: 948.5575799 | J44: 453.7255261 | K44: 170.9275561 | L44: 1246.582355 | M44: 3051.990798 | N44: 1463.452816 | O44: 3602.804666 | P44: 28544705.59 | Q44: 18924.58304 | S44: 0 | T44: 2531.346772
A45: 478 | B45: Francis W. Parker Charter Essential School | C45: C | D45: Devens | E45: =VLOOKUP(A45, FTE, 2, FALSE) -> 366.86 | F45: =VLOOKUP($A45&100, FE, 21, FALSE)/$E45 -> 1501.692777 | G45: =VLOOKUP($A45&210, FE, 21, FALSE)/$E45 -> 2461.112517 | H45: =VLOOKUP($A45&220, FE, 21, FALSE)/$E45 -> 7609.244507 | I45: =VLOOKUP($A45&230, FE, 21, FALSE)/$E45 -> 314.0823747 | J45: =VLOOKUP($A45&240, FE, 21, FALSE)/$E45 -> 396.5468299 | K45: =VLOOKUP($A45&260, FE, 21, FALSE)/$E45 -> 731.8702448 | L45: =VLOOKUP($A45&250, FE, 21, FALSE)/$E45 -> 789.6438969 | M45: =VLOOKUP($A45&300, FE, 21, FALSE)/$E45 -> 1797.956387 | N45: =VLOOKUP($A45&400, FE, 21, FALSE)/$E45 -> 1146.788312 | O45: =VLOOKUP($A45&500, FE, 21, FALSE)/$E45 -> 4865.758954 | P45: =VLOOKUP($A45&800,FE, 21,FALSE)-VLOOKUP($A45&700,FE, 21,FALSE)-VLOOKUP($A45&600,FE, 21,FALSE) -> 7929567.668 | Q45: 21614.6968 | S45: =VLOOKUP($A45&740, FE, 21, FALSE)/$E45 -> 770.2147958 | T45: =(VLOOKUP($A45&700, FE, 21, FALSE)-VLOOKUP($A45&740, FE, 21, FALSE)-VLOOKUP($A45&725, FE, 21, FALSE))/$E45 -> 53.80982391
A46: 496 | B46: Global Learning Charter Public School | C46: C | D46: New Bedford | E46: 499.6 | F46: 2065.414331 | G46: 1703.144516 | H46: 5673.426741 | I46: 1316.092874 | J46: 245.1941553 | K46: 1034.191353 | L46: 969.8438751 | M46: 2394.429544 | N46: 1113.532826 | O46: 4435.378303 | P46: 10466944 | Q46: 20950.64852 | S46: 420.336269 | T46: 1768.530825
A47: 499 | B47: Hampden Charter School of Science East | C47: C | D47: Chicopee | E47: 540.43 | F47: 1874.805248 | G47: 1275.530596 | H47: 6907.886313 | I47: 645.2787595 | J47: 13.61693466 | K47: 707.4681272 | L47: 640.2438799 | M47: 2447.6787 | N47: 1466.139926 | O47: 4909.024295 | P47: 11288325 | Q47: 20887.67278 | S47: 0 | T47: 713.2690635
A48: 3516 | B48: Hampden Charter School of Science West | C48: C | D48: Westfield | E48: 392.21 | F48: 1846.42156 | G48: 1515.999082 | H48: 6852.120038 | I48: 589.5107213 | J48: 74.94199536 | K48: 641.8245328 | L48: 636.7660182 | M48: 3278.919456 | N48: 1782.629204 | O48: 4069.483185 | P48: 8349608 | Q48: 21288.61579 | S48: 0 | T48: 1127.510772
A49: 419 | B49: Helen Y Davis Leadership Academy Charter Public School | C49: C | D49: Boston | E49: 88.3 | F49: 12448.62458 | G49: 3432.698981 | H49: 12990.27622 | I49: 928.2354473 | J49: 429.000453 | K49: 1078.926161 | L49: 0 | M49: 1604.440544 | N49: 1445.469309 | O49: 9185.283692 | P49: 3844842.96 | Q49: 43542.95538 | S49: 5003.825934 | T49: 692.7406569
A50: 455 | B50: Hill View Montessori Charter Public School | C50: C | D50: Haverhill | E50: 305.57 | F50: 1413.222011 | G50: 1074.423176 | H50: 6261.280067 | I50: 3568.757273 | J50: 880.3152142 | K50: 462.9902477 | L50: 430.3435547 | M50: 487.3302026 | N50: 964.3610957 | O50: 4000.242399 | P50: 5971835.56 | Q50: 19543.26524 | S50: 594.7420231 | T50: 238.2563733
A51: 450 | B51: Hilltown Cooperative Charter Public School | C51: C | D51: East Hampton | E51: 217.47 | F51: 1043.363866 | G51: 1581.632179 | H51: 6588.923254 | I51: 3148.455695 | J51: 26.79220122 | K51: 276.0702166 | L51: 596.9495103 | M51: 825.9444521 | N51: 641.1672415 | O51: 4764.587851 | P51: 4239335.49 | Q51: 19493.88647 | S51: 0 | T51: 882.6004506
A52: 453 | B52: Holyoke Community Charter School | C52: C | D52: Holyoke | E52: 694.92 | F52: 1108.811086 | G52: 3928.611927 | H52: 5410.10476 | I52: 1638.893686 | J52: 227.8190295 | K52: 798.5940828 | L52: 375.3137052 | M52: 3371.967996 | N52: 1418.590629 | O52: 3952.614689 | P52: 15448990 | Q52: 22231.32159 | S52: 0 | T52: 1257.66707
A53: 435 | B53: Innovation Academy Charter School | C53: C | D53: Tyngsborough | E53: 790.54 | F53: 1608.720621 | G53: 1419.548663 | H53: 6181.300124 | I53: 1362.343461 | J53: 76.58815493 | K53: 312.0828801 | L53: 595.3841678 | M53: 2687.62365 | N53: 1339.73866 | O53: 5229.677183 | P53: 16453515 | Q53: 20813.00756 | S53: 0 | T53: 1076.680497
A54: 463 | B54: KIPP Academy Boston Charter School | C54: C | D54: Boston | E54: 597.92 | F54: 3739.521943 | G54: 5075.12209 | H54: 8112.958255 | I54: 1886.522294 | J54: 320.742775 | K54: 1178.294621 | L54: 2118.928954 | M54: 3989.995852 | N54: 1764.116504 | O54: 5565.917631 | P54: 20181068.14 | Q54: 33752.12092 | S54: 0 | T54: 2029.664754
A55: 429 | B55: KIPP Academy Lynn Charter School | C55: C | D55: Lynn | E55: 1613.13 | F55: 2189.930588 | G55: 3286.931121 | H55: 6625.690428 | I55: 1714.238443 | J55: 299.1816903 | K55: 588.7911514 | L55: 814.0385462 | M55: 2400.811553 | N55: 1323.427882 | O55: 5114.780024 | P55: 39292332.48 | Q55: 24357.82143 | S55: 0 | T55: 2047.322392
A56: 454 | B56: Lawrence Family Development Charter School | C56: C | D56: Lawrence | E56: 878.75 | F56: 2193.32289 | G56: 1155.213155 | H56: 4603.47794 | I56: 3355.670225 | J56: 151.9108051 | K56: 1106.436256 | L56: 256.4642959 | M56: 1710.970469 | N56: 2247.137343 | O56: 2785.292211 | P56: 17193530.75 | Q56: 19565.89559 | S56: 2088.992159 | T56: 89.30981508
A57: 486 | B57: Learning First Charter Public School | C57: C | D57: Worcester | E57: 667.8 | F57: 1470.691824 | G57: 1253.571429 | H57: 5464.618149 | I57: 1190.89997 | J57: 342.9979036 | K57: 437.5531596 | L57: 1488.781072 | M57: 3164.469512 | N57: 1560.044924 | O57: 4592.825801 | P57: 14001397.81 | Q57: 20966.45374 | S57: 1988.221024 | T57: 232.7822701
A58: 3514 | B58: Libertas Academy Charter School | C58: C | D58: Springfield | E58: 503.93 | F58: 3579.108467 | G58: 2972.599329 | H58: 6773.272816 | I58: 672.1096184 | J58: 129.2610482 | K58: 866.1853234 | L58: 876.2868851 | M58: 2788.405771 | N58: 528.4834203 | O58: 4702.453853 | P58: 12037963.76 | Q58: 23888.16653 | S58: 0 | T58: 2079.428091
A59: 456 | B59: Lowell Community Charter Public School | C59: C | D59: Lowell | E59: 813.47 | F59: 1381.237034 | G59: 1729.914158 | H59: 7432.391889 | I59: 1882.715994 | J59: 86.65368114 | K59: 1207.405829 | L59: 457.0634197 | M59: 3047.670781 | N59: 1602.763777 | O59: 5459.516848 | P59: 19757017.11 | Q59: 24287.33341 | S59: 0 | T59: 789.2831082
A60: 458 | B60: Lowell Middlesex Academy Charter School | C60: C | D60: Lowell | E60: 111.97 | F60: 3628.894079 | G60: 2413.510851 | H60: 7574.105653 | I60: 395.2305082 | J60: 548.6826829 | K60: 981.4184156 | L60: 67.69670447 | M60: 1260.93534 | N60: 1239.867822 | O60: 3480.244708 | P60: 2417498 | Q60: 21590.58676 | S60: 0 | T60: 704.8673752
A61: 3517 | B61: Map Academy Charter School | C61: C | D61: Plymouth | E61: 278.61 | F61: 2723.05732 | G61: 624.2812534 | H61: 6335.573023 | I61: 1610.318402 | J61: 538.49467 | K61: 491.1973727 | L61: 3275.808478 | M61: 2937.575823 | N61: 763.3394351 | O61: 4169.773088 | P61: 6538814.79 | Q61: 23469.41887 | S61: 256.9900578 | T61: 2729.891246
A62: 464 | B62: Marblehead Community Charter Public School | C62: C | D62: Marblehead | E62: 174.01 | F62: 2356.640423 | G62: 1412.752141 | H62: 7534.857767 | I62: 1286.041032 | J62: 95.3652089 | K62: 705.6025516 | L62: 895.8623068 | M62: 1582.426297 | N62: 1561.289581 | O62: 6303.787139 | P62: 4130062 | Q62: 23734.62445 | S62: 0 | T62: 1369.300615
A63: 466 | B63: Martha's Vineyard Public Charter School | C63: C | D63: West Tisbury | E63: 177.85 | F63: 2566.709559 | G63: 2555.379196 | H63: 11255.37492 | I63: 4886.813551 | J63: 234.5186955 | K63: 1905.294124 | L63: 1602.956593 | M63: 2798.942676 | N63: 1833.39106 | O63: 8668.291988 | P63: 6813019.53 | Q63: 38307.67236 | S63: 1400.056227 | T63: -0.197132415
A64: 492 | B64: Martin Luther King, Jr. Charter School of Excellence | C64: C | D64: Springfield | E64: 357.44 | F64: 2500.576544 | G64: 2009.464945 | H64: 6259.28374 | I64: 3783.250112 | J64: 343.7646318 | K64: 1016.663636 | L64: 666.9827943 | M64: 2328.621307 | N64: 1197.3696 | O64: 4689.194382 | P64: 8862786.17 | Q64: 24795.17169 | S64: 1110.675918 | T64: 248.1003805
A65: 469 | B65: Match Charter Public School | C65: C | D65: Boston | E65: 1157.56 | F65: 2864.995335 | G65: 4990.129237 | H65: 8597.993193 | I65: 3280.263658 | J65: 422.5059608 | K65: 1266.590069 | L65: 2388.421335 | M65: 4127.916479 | N65: 2182.844086 | O65: 7942.301047 | P65: 44061318 | Q65: 38063.9604 | S65: 0 | T65: 2251.074674
A66: 470 | B66: Mystic Valley Regional Charter School | C66: C | D66: Malden | E66: 1654.39 | F66: 899.0129292 | G66: 974.2340077 | H66: 4914.821173 | I66: 1495.193999 | J66: 236.632233 | K66: 468.7588779 | L66: 443.3235211 | M66: 1961.171187 | N66: 2088.236147 | O66: 2684.643282 | P66: 26744914 | Q66: 16166.02736 | S66: 274.7574635 | T66: 956.9466692
A67: 444 | B67: Neighborhood House Charter School | C67: C | D67: =VLOOKUP(A67, FACTS, 6, FALSE) -> Boston | E67: 836.55 | F67: 3207.88596 | G67: 1309.563086 | H67: 7376.008607 | I67: 2680.632359 | J67: 582.3465423 | K67: 634.0756679 | L67: 2572.03634 | M67: 2516.883629 | N67: 2405.947044 | O67: 5497.823202 | P67: 24078588 | Q67: 28783.20244 | S67: 1052.730859 | T67: 159.0903114
A68: 3513 | B68: New Heights Charter School of Brockton | C68: C | D68: Brockton | E68: 731.83 | F68: 2207.895754 | G68: 2632.948376 | H68: 6635.010057 | I68: 1310.191233 | J68: 268.6564776 | K68: 936.972152 | L68: 1498.804681 | M68: 2365.115847 | N68: 1266.384871 | O68: 4971.472323 | P68: 17632310.81 | Q68: 24093.45177 | S68: 0 | T68: 858.3764399
A69: 3515 | B69: Old Sturbridge Academy Charter Public School | C69: C | D69: =VLOOKUP(A69, FACTS, 6, FALSE) -> Sturbridge | E69: 349.37 | F69: 2798.007843 | G69: 1155.402582 | H69: 5306.228354 | I69: 2365.417752 | J69: 53.45049661 | K69: 1231.047314 | L69: 0 | M69: 2726.748147 | N69: 847.9377165 | O69: 3127.855855 | P69: 6851878 | Q69: 19612.09606 | S69: 754.3435326 | T69: 1013.538655
A70: 493 | B70: Phoenix Academy Charter Public High School, Chelsea | C70: C | D70: Chelsea | E70: 190.02 | F70: 8605.553626 | G70: 10116.87959 | H70: 5221.974634 | I70: 425.3684349 | J70: 339.3114935 | K70: 642.811283 | L70: 1724.618461 | M70: 1697.266761 | N70: 1301.37154 | O70: 6609.382012 | P70: 6970795.88 | Q70: 36684.53784 | S70: 1812.440796 | T70: 406.0888328
A71: 3518 | B71: Phoenix Academy Public Charter High School, Lawrence | C71: C | D71: Lawrence | E71: 104.43 | F71: 5116.682946 | G71: 3750.515369 | H71: 11467.93067 | I71: 426.5546299 | J71: 121.7144499 | K71: 494.2945514 | L71: 1353.22867 | M71: 4788.774394 | N71: 2158.979029 | O71: 6048.52619 | P71: 3730991.59 | Q71: 35727.2009 | S71: 5016.165374 | T71: 1284.683329
A72: 3508 | B72: Phoenix Academy Public Charter High School, Springfield | C72: C | D72: Springfield | E72: 157.94 | F72: 4211.046473 | G72: 6785.349626 | H72: 6050.930733 | I72: 1691.487337 | J72: 455.9304799 | K72: 661.6953907 | L72: 1429.570406 | M72: 2869.18526 | N72: 1784.697037 | O72: 5831.239838 | P72: 5017932.68 | Q72: 31771.13258 | S72: 3983.233316 | T72: 1189.073952
A73: 494 | B73: Pioneer Charter School of Science | C73: C | D73: Everett | E73: 780.02 | F73: 1708.713725 | G73: 1555.97677 | H73: 7713.25584 | I73: 631.9462962 | J73: 79.98952591 | K73: 731.1312018 | L73: 868.8056075 | M73: 1914.532909 | N73: 1299.017192 | O73: 4524.882913 | P73: 16402457.11 | Q73: 21028.25198 | S73: 1630.182431 | T73: 437.3413246
A74: 3506 | B74: Pioneer Charter School of Science II | C74: C | D74: Saugus | E74: 565.21 | F74: 1652.160878 | G74: 1688.556023 | H74: 7186.447427 | I74: 778.9985669 | J74: 53.52831691 | K74: 1292.08979 | L74: 200.3308505 | M74: 1939.865554 | N74: 1045.120734 | O74: 3263.712903 | P74: 10795969.41 | Q74: 19100.81104 | S74: 1392.902709 | T74: 897.2007395
A75: 497 | B75: Pioneer Valley Chinese Immersion Charter School | C75: =VLOOKUP(A75, TYPE, 3, FALSE) -> C | D75: Hadley | E75: 547.94 | F75: 1633.035533 | G75: 1186.457623 | H75: 9018.05966 | I75: 404.8326459 | J75: 17.82998138 | K75: 347.2406468 | L75: 643.2160273 | M75: 1504.432529 | N75: 1030.528233 | O75: 4601.144852 | P75: 11170730.99 | Q75: 20386.77773 | S75: 1396.010822 | T75: 359.2708143
A76: 479 | B76: Pioneer Valley Performing Arts Charter Public School | C76: C | D76: South Hadley | E76: =VLOOKUP(A76, FTE, 2, FALSE) -> 404.6 | F76: =VLOOKUP($A76&100, FE, 21, FALSE)/$E76 -> 1748.682699 | G76: =VLOOKUP($A76&210, FE, 21, FALSE)/$E76 -> 1696.113248 | H76: =VLOOKUP($A76&220, FE, 21, FALSE)/$E76 -> 6228.16609 | I76: =VLOOKUP($A76&230, FE, 21, FALSE)/$E76 -> 1722.116955 | J76: =VLOOKUP($A76&240, FE, 21, FALSE)/$E76 -> 183.7597133 | K76: =VLOOKUP($A76&260, FE, 21, FALSE)/$E76 -> 550.0842066 | L76: =VLOOKUP($A76&250, FE, 21, FALSE)/$E76 -> 783.6619871 | M76: =VLOOKUP($A76&300, FE, 21, FALSE)/$E76 -> 1315.809614 | N76: =VLOOKUP($A76&400, FE, 21, FALSE)/$E76 -> 1726.135665 | O76: =VLOOKUP($A76&500, FE, 21, FALSE)/$E76 -> 4803.608478 | P76: =VLOOKUP($A76&800,FE, 21,FALSE)-VLOOKUP($A76&700,FE, 21,FALSE)-VLOOKUP($A76&600,FE, 21,FALSE) -> 8398742.9 | Q76: 20758.13866 | S76: =VLOOKUP($A76&740, FE, 21, FALSE)/$E76 -> 743.2650519 | T76: =(VLOOKUP($A76&700, FE, 21, FALSE)-VLOOKUP($A76&740, FE, 21, FALSE)-VLOOKUP($A76&725, FE, 21, FALSE))/$E76 -> 476.7331191
A77: 487 | B77: Prospect Hill Academy Charter School | C77: C | D77: Somerville (K-6); Cambridge (7-12) | E77: 911.16 | F77: 3559.932394 | G77: 2813.512994 | H77: 8246.573642 | I77: 3342.241461 | J77: 197.503084 | K77: 1312.884181 | L77: 650.1136024 | M77: 1429.535142 | N77: 1631.44417 | O77: 6641.36448 | P77: 27175442.81 | Q77: =SUM(F77:O77) -> 29825.10515 | S77: 48.66122306 | T77: 3534.964013
A78: 483 | B78: Rising Tide Charter Public School | C78: C | D78: Plymouth | E78: 617.19 | F78: 1446.755456 | G78: 1192.284386 | H78: 6032.536172 | I78: 1904.492944 | J78: 45.83029537 | K78: 437.8246569 | L78: 571.5063433 | M78: 3011.886129 | N78: 1346.12194 | O78: 5613.195288 | P78: 13332806 | Q78: 21602.43361 | S78: 0 | T78: 1790.575026
A79: 482 | B79: River Valley Charter School | C79: C | D79: Newburyport | E79: 287.51 | F79: 2088.760878 | G79: 1457.79159 | H79: 8179.566415 | I79: 1415.826093 | J79: 201.9219158 | K79: 522.2119926 | L79: 600.2701471 | M79: 751.4712184 | N79: 791.1572815 | O79: 4233.284581 | P79: 5819852.78 | Q79: 20242.26211 | S79: 379.8768391 | T79: 838.5626239
A80: 484 | B80: Roxbury Preparatory Charter School | C80: C | D80: Boston | E80: 1105.4 | F80: 5425.304487 | G80: 2321.526995 | H80: 7399.4038 | I80: 1677.578053 | J80: 587.1457029 | K80: 1119.260738 | L80: 1002.993857 | M80: 2418.144409 | N80: 4746.779455 | O80: 5950.688502 | P80: 36090012.26 | Q80: 32648.826 | S80: 72.18355346 | T80: 3107.212348
A81: 441 | B81: Springfield International Charter School | C81: C | D81: Springfield | E81: 1481.31 | F81: 1521.410063 | G81: 976.3729132 | H81: 5022.448461 | I81: 1939.353336 | J81: 127.6839554 | K81: 719.7960319 | L81: 591.4878047 | M81: 3385.215087 | N81: 2978.644376 | O81: 4320.387893 | P81: 31970817.35 | Q81: 21582.79992 | S81: 11.45472588 | T81: 1841.768752
A82: 485 | B82: Salem Academy Charter School | C82: C | D82: Salem | E82: 483.31 | F82: 2771.933728 | G82: 2615.351865 | H82: 7871.807018 | I82: 339.547185 | J82: 303.180257 | K82: 1023.231549 | L82: 1411.680371 | M82: 1431.087315 | N82: 1039.772692 | O82: 5055.853552 | P82: 11533441.86 | Q82: 23863.44553 | S82: 0 | T82: 3117.021415
A83: 474 | B83: Sizer School, A North Central Charter Essential School | C83: C | D83: =VLOOKUP(A83, FACTS, 6, FALSE) -> Fitchburg | E83: 309.64 | F83: 2169.949522 | G83: 1283.868266 | H83: 6647.511497 | I83: 967.3707208 | J83: 118.9888257 | K83: 350.1651595 | L83: 2219.629053 | M83: 2356.758042 | N83: 1724.997319 | O83: 4349.294568 | P83: 6870457.35 | Q83: 22188.53297 | S83: 0.003229556905 | T83: 146.7995091
A84: 488 | B84: South Shore Charter Public School | C84: C | D84: Norwell | E84: 1060.19 | F84: 1131.408795 | G84: 1202.678426 | H84: 7568.88105 | I84: 1708.477858 | J84: 221.2156783 | K84: 528.1557645 | L84: 696.0705157 | M84: 2306.059857 | N84: 790.5677284 | O84: 4785.01778 | P84: 22198823.78 | Q84: 20938.53345 | S84: 21.47256624 | T84: 1716.065045
A85: 3510 | B85: Springfield Preparatory Charter School | C85: C | D85: Springfield | E85: 485.14 | F85: 2758.131591 | G85: 1490.888383 | H85: 7245.346477 | I85: 2169.893268 | J85: 215.4029352 | K85: 833.1517088 | L85: 209.1100095 | M85: 3431.55483 | N85: 1177.223461 | O85: 4166.587583 | P85: 11496503.39 | Q85: 23697.29025 | S85: 1794.443686 | T85: 161.5435957
A86: 489 | B86: Sturgis Charter Public School | C86: C | D86: Hyannis | E86: 824.74 | F86: 1286.249083 | G86: 1360.01198 | H86: 9276.26161 | I86: 1871.233322 | J86: 75.86148362 | K86: 573.7788394 | L86: 1072.369413 | M86: 809.7028518 | N86: 978.7920921 | O86: 5789.240245 | P86: 19046133.95 | Q86: 23093.50092 | S86: 2151.223416 | T86: 63.75342532
A87: 480 | B87: UP Academy Charter School of Boston | C87: HM | D87: Boston | E87: 159.2444444 | F87: 8276.633101 | G87: 8045.423716 | H87: 26636.77044 | I87: 3653.439604 | J87: 681.6751465 | K87: 2688.701333 | L87: 691.113592 | M87: 5018.553475 | N87: 2166.891167 | O87: 9535.782396 | P87: 10732276.78 | Q87: 67394.98397 | S87: 0 | T87: 0
A88: 3505 | B88: UP Academy Charter School of Dorchester | C88: HM | D88: Boston | E88: 580.0671739 | F88: 3060.528039 | G88: 2786.561079 | H88: 12284.06464 | I88: 1658.824501 | J88: 466.4550628 | K88: 1079.391212 | L88: 770.3900861 | M88: 2261.105884 | N88: 1556.276877 | O88: 4258.47059 | P88: 17507626.87 | Q88: 30182.06797 | S88: 0 | T88: 0
A89: 498 | B89: Veritas Preparatory Charter School | C89: =VLOOKUP(A89, TYPE, 3, FALSE) -> C | D89: =VLOOKUP(A89, FACTS, 6, FALSE) -> Springfield | E89: 598.77 | F89: 2315.100706 | G89: 3278.44057 | H89: 6947.761879 | I89: 558.8697998 | J89: 517.1571722 | K89: 2072.769594 | L89: 1758.707717 | M89: 3449.709421 | N89: 1603.771816 | O89: 4658.794829 | P89: 16263241.97 | Q89: 27161.0835 | S89: 2708.917648 | T89: 284.8609817
A90: 3519 | B90: Worcester Cultural Academy Charter Public School | C90: C | D90: Worcester | E90: 130.34 | F90: 3015.037594 | G90: 1719.30336 | H90: 5100.322234 | I90: 2934.379316 | J90: 77.38223109 | K90: 3104.703084 | L90: 75.38744821 | M90: 1620.715053 | N90: 2987.95458 | O90: 1787.862513 | P90: 2922620 | Q90: =SUM(F90:O90) -> 22423.04741 | S90: 0 | T90: 2640.402025
A91: C | B91: Commonwealth Charter Statewide Totals | C91: C | E91: =SUMIF(C15:C89,"C",E15:E89) -> 45534.8 | F91: =VLOOKUP($A91&100, FE, 21, FALSE)/$E91 -> 2363.838476 | G91: 2095.621227 | H91: 6982.686775 | I91: 1739.025221 | J91: 302.9335403 | K91: 866.0395072 | L91: 956.5278644 | M91: 2645.997536 | N91: 1562.684836 | O91: 4848.308557 | P91: =VLOOKUP($A91&800,FE,21,FALSE)-VLOOKUP($A91&700,FE,21,FALSE)-VLOOKUP($A91&600,FE,21,FALSE) -> 1109394547 | Q91: =SUM(F91:O91) -> 24363.66354 | S91: 662.3609226 | T91: =(VLOOKUP($A91&700, FE, 21, FALSE)-VLOOKUP($A91&740, FE, 21, FALSE)-VLOOKUP($A91&725, FE, 21, FALSE))/$E91 -> 1421.293781
A92: HM | B92: Horace Mann Charter Statewide Totals | C92: HM | E92: =SUMIF(C15:C89,"HM",E15:E89) -> 2169.592992 | F92: =VLOOKUP($A92&100, FE, 21, FALSE)/$E92 -> 3949.119154 | G92: 3082.898546 | H92: 12605.56893 | I92: 2794.672592 | J92: 472.7179493 | K92: 766.0364761 | L92: 1705.352872 | M92: 2713.269278 | N92: 1501.784506 | O92: 4818.323432 | P92: =VLOOKUP($A92&800,FE,21,FALSE)-VLOOKUP($A92&700,FE,21,FALSE)-VLOOKUP($A92&600,FE,21,FALSE) -> 74655138.86 | Q92: =SUM(F92:O92) -> 34409.74373 | S92: 241.0866932 | T92: 21.83819738
A93: ALL | B93: All Charter Schools Statewide Totals | C93: ALL | E93: =SUM(E91:E92) -> 47704.39299 | F93: 2435.936948 | G93: 2140.522541 | H93: 7238.415125 | I93: 1787.036002 | J93: 310.6553252 | K93: 861.4913752 | L93: 990.5843818 | M93: 2649.057051 | N93: 1559.915093 | O93: 4846.944836 | P93: =VLOOKUP($A93&800,FE,21,FALSE)-VLOOKUP($A93&700,FE,21,FALSE)-VLOOKUP($A93&600,FE,21,FALSE) -> 1184049685 | Q93: 24820.55868 | S93: 643.2013954 | T93: =(VLOOKUP($A93&700, FE, 21, FALSE)-VLOOKUP($A93&740, FE, 21, FALSE)-VLOOKUP($A93&725, FE, 21, FALSE))/$E93 -> 1357.646624
F94: ----------------------------- Operating Expenditures Per Pupil In The Charter School ------------------------------------------- | S94: -------- Per Pupil --------
A96: Massachusetts Department of Elementary and Secondary Education
A97: FY24 Virtual School Expenditures Per Pupil, All Funds, Summary By Function
B100: Return to Index | F100: ----------------------------- Operating Expenditures Per Pupil in The Virtual School1 ------------------------------------------- | S100: --- Exp pp Facilities Costs2 ---
E101: fte pupils | G101: instruc- | H101: classroom & | I101: other | J101: profes- | K101: instructn'l | L101: guidance, | N101: operations | O101: insurance, | P101: total operating | Q101: total operating | S101: Rental/Lease of | T101: Capital
D102: location | E102: at the | F102: admini- | G102: tional | H102: specialist | I102: teaching | J102: sional dev- | K102: materials, | L102: counseling | M102: pupil | N102: and | O102: retirement | P102: expenditures | Q102: expenditures | S102: Building & | T102: Facilities
A103: LEA | B103: Virtual School | C103: type | E103: virtual school | F103: stration | G103: leadership | H103: teachers | I103: services | J103: elopment | K103: equip & tech | L103: & testing | M103: services | N103: maintenance | O103: & other | P103: aggregate | Q103: per pupil | S103: Grounds | T103: Expenses3
A104: 3901 | B104: Greater Commonwealth Virtual School | C104: VS | D104: Virtual | E104: =VLOOKUP(A104, FTE, 2, FALSE) -> 1204.34 | F104: =VLOOKUP($A104&100, FE, 21, FALSE)/$E104 -> 1617.655446 | G104: =VLOOKUP($A104&210, FE, 21, FALSE)/$E104 -> 969.8194862 | H104: =VLOOKUP($A104&220, FE, 21, FALSE)/$E104 -> 5049.846322 | I104: =VLOOKUP($A104&230, FE, 21, FALSE)/$E104 -> 1698.731837 | J104: =VLOOKUP($A104&240, FE, 21, FALSE)/$E104 -> 73.52933557 | K104: =VLOOKUP($A104&260, FE, 21, FALSE)/$E104 -> 1172.17713 | L104: =VLOOKUP($A104&250, FE, 21, FALSE)/$E104 -> 537.0218875 | M104: =VLOOKUP($A104&300, FE, 21, FALSE)/$E104 -> 114.4027268 | N104: =VLOOKUP($A104&400, FE, 21, FALSE)/$E104 -> 117.9905176 | O104: =VLOOKUP($A104&500, FE, 21, FALSE)/$E104 -> 2481.222155 | P104: =VLOOKUP($A104&800,FE, 21,FALSE)-VLOOKUP($A104&700,FE, 21,FALSE)-VLOOKUP($A104&600,FE, 21,FALSE) -> 16658908.81 | Q104: =SUM(F104:O104) -> 13832.39684 | S104: =VLOOKUP($A104&740, FE, 21, FALSE)/$E104 -> 23.35954963 | T104: =(VLOOKUP($A104&700, FE, 21, FALSE)-VLOOKUP($A104&740, FE, 21, FALSE)-VLOOKUP($A104&725, FE, 21, FALSE))/$E104 -> 109.813184
A105: 3902 | B105: TEC Connections Academy Commonwealth Virtual | C105: VS | D105: Virtual | E105: =VLOOKUP(A105, FTE, 2, FALSE) -> 2936.91 | F105: =VLOOKUP($A105&100, FE, 21, FALSE)/$E105 -> 877.872628 | G105: =VLOOKUP($A105&210, FE, 21, FALSE)/$E105 -> 1105.494268 | H105: =VLOOKUP($A105&220, FE, 21, FALSE)/$E105 -> 3517.296094 | I105: =VLOOKUP($A105&230, FE, 21, FALSE)/$E105 -> 1236.060468 | J105: =VLOOKUP($A105&240, FE, 21, FALSE)/$E105 -> 87.8709528 | K105: =VLOOKUP($A105&260, FE, 21, FALSE)/$E105 -> 3115.447739 | L105: =VLOOKUP($A105&250, FE, 21, FALSE)/$E105 -> 715.869264 | M105: =VLOOKUP($A105&300, FE, 21, FALSE)/$E105 -> 5.51416625 | N105: =VLOOKUP($A105&400, FE, 21, FALSE)/$E105 -> 33.23743322 | O105: =VLOOKUP($A105&500, FE, 21, FALSE)/$E105 -> 1250.171881 | P105: =VLOOKUP($A105&800,FE, 21,FALSE)-VLOOKUP($A105&700,FE, 21,FALSE)-VLOOKUP($A105&600,FE, 21,FALSE) -> 35080905.05 | Q105: =SUM(F105:O105) -> 11944.83489 | S105: =VLOOKUP($A105&740, FE, 21, FALSE)/$E105 -> 80.73518426 | T105: =(VLOOKUP($A105&700, FE, 21, FALSE)-VLOOKUP($A105&740, FE, 21, FALSE)-VLOOKUP($A105&725, FE, 21, FALSE))/$E105 -> 0
A106: ALL_VS | B106: All Virtual Schools Statewide Totals | C106: VS | E106: =SUM(E104:E105) -> 4141.25 | F106: =VLOOKUP($A106&100, FE, 21, FALSE)/$E106 -> 1093.012994 | G106: =VLOOKUP($A106&210, FE, 21, FALSE)/$E106 -> 1066.037928 | H106: =VLOOKUP($A106&220, FE, 21, FALSE)/$E106 -> 3962.98557 | I106: =VLOOKUP($A106&230, FE, 21, FALSE)/$E106 -> 1370.612508 | J106: =VLOOKUP($A106&240, FE, 21, FALSE)/$E106 -> 83.70018714 | K106: =VLOOKUP($A106&260, FE, 21, FALSE)/$E106 -> 2550.31438 | L106: =VLOOKUP($A106&250, FE, 21, FALSE)/$E106 -> 663.8576613 | M106: =VLOOKUP($A106&300, FE, 21, FALSE)/$E106 -> 37.1806556 | N106: =VLOOKUP($A106&400, FE, 21, FALSE)/$E106 -> 57.8849502 | O106: =VLOOKUP($A106&500, FE, 21, FALSE)/$E106 -> 1608.180474 | P106: =VLOOKUP($A106&800,FE,21,FALSE)-VLOOKUP($A106&700,FE,21,FALSE)-VLOOKUP($A106&600,FE,21,FALSE) -> 51739813.87 | Q106: =SUM(F106:O106) -> 12493.76731 | S106: =VLOOKUP($A106&740, FE, 21, FALSE)/$E106 -> 64.04945608 | T106: =(VLOOKUP($A106&700, FE, 21, FALSE)-VLOOKUP($A106&740, FE, 21, FALSE)-VLOOKUP($A106&725, FE, 21, FALSE))/$E106 -> 31.93538424
A112: Notes: | B112: 1. These figures do not include facilities lease costs -- see data presented at right.
B113: 2. The majority of charter schools lease their facilities. In many cases, Horace Mann charter schools are provided their facilities in kind by their host districts; some report a monetary figure for these in-kind revenues and expenditures, some do not.
B114: 3. Capital facilities costs include facilities-related long-term interest; depreciation of equipment, buildings, and grounds; bad debt or loss on disposal of assets; and other costs related to capital facilities acquisition.
B115: Charter schools that report significant costs in this category either own their buildings or have invested heavily in leasehold improvements.

Sheet 5. AVGTCHSAL
B2: This tab contains FY24 salary expenditures for both charter and virtual schools.
B4: 1. Charter Salary Expenditures
B5: 2. Virtual Salary Expenditures
A7: Massachusetts Department of Elementary and Secondary Education
A8: FY24 Average Teacher Salaries
A11: Return to Index
A12: Average teacher salaries are calculated from data submitted on the Charter School End of Year Financial Report. The calculation includes professional teachers paid from all funding sources, including tuition revenue, federal and state grants, and private grants/contributions. The Educator Personnel Management Information System (EPIMS) was the source for the total number of teachers, which is shown in full-time equivalents (e.g., a teacher who worked half-time would count as .5 FTE's).
A14: LEA | B14: Charter School | C14: Type | D14: Location | E14: Total Salaries | F14: Total Teachers | G14: Average Salaries
A15: 445 | B15: Abby Kelley Foster Charter Public School | C15: =VLOOKUP(A15, TYPE, 3, FALSE) -> C | D15: =VLOOKUP(A15, FACTS, 6, FALSE) -> Worcester | E15: =VLOOKUP($A15&220, FE, 21, FALSE) -> 10393591.42 | F15: =VLOOKUP(A15, TEACHEREPIMS, 2, FALSE) -> 124.562 | G15: =E15/F15 -> 83441.10901
A16: 412 | B16: Academy of the Pacific Rim Charter Public School | C16: C | D16: Boston | E16: =VLOOKUP($A16&220, FE, 21, FALSE) -> 4585654.333 | F16: 52.397 | G16: =E16/F16 -> 87517.49782
A17: 430 | B17: Advanced Math and Science Academy Charter School | C17: C | D17: Marlborough | E17: 6099472.61 | F17: 80.851 | G17: 75440.905
A18: 409 | B18: Alma del Mar Charter School | C18: C | D18: New Bedford | E18: 5249606.76 | F18: 90 | G18: 58328.964
A19: 3509 | B19: Argosy Collegiate Charter School | C19: C | D19: Fall River | E19: 4507633.45 | F19: 46 | G19: 97992.03152
A20: 491 | B20: Atlantis Charter School | C20: C | D20: Fall River | E20: 6480079 | F20: 107.637 | G20: 60203.08073
A21: 3502 | B21: Baystate Academy Charter Public School | C21: C | D21: Springfield | E21: 2698299 | F21: 58.472 | G21: 46146.85662
A22: 420 | B22: Benjamin Banneker Charter Public School | C22: C | D22: Cambridge | E22: 1605673.19 | F22: 21 | G22: 76460.6281
A23: 447 | B23: Benjamin Franklin Classical Charter Public School | C23: C | D23: Franklin | E23: 6144313 | F23: 55.288 | G23: 111132.8498
A24: 414 | B24: Berkshire Arts and Technology Charter Public School | C24: C | D24: Adams | E24: 2468989.98 | F24: 38.249 | G24: 64550.44524
A25: 449 | B25: Boston Collegiate Charter School | C25: C | D25: Boston | E25: 6283495.55 | F25: 73.474 | G25: 85519.98734
A26: 424 | B26: Boston Day and Evening Academy Charter School | C26: HM | D26: Boston | E26: 4155044.93 | F26: 25.352 | G26: 163894.1673
A27: 411 | B27: Boston Green Academy Horace Mann Charter School | C27: HM | D27: Boston | E27: 5145357.37 | F27: 42.89 | G27: 119966.3644
A28: 416 | B28: Boston Preparatory Charter Public School | C28: C | D28: Boston | E28: 5098588.34 | F28: 59.747 | G28: 85336.30709
A29: 481 | B29: Boston Renaissance Charter Public School | C29: C | D29: Boston | E29: 7073072 | F29: 80.353 | G29: 88024.98973
A30: 417 | B30: Bridge Boston Charter School | C30: C | D30: Boston | E30: 3461679 | F30: 33 | G30: 104899.3636
A31: 428 | B31: Brooke Charter School | C31: C | D31: Boston | E31: 19154431 | F31: 181.448 | G31: 105564.2994
A32: 432 | B32: Cape Cod Lighthouse Charter School | C32: C | D32: Harwich | E32: 1795419.2 | F32: 22.486 | G32: 79846.0909
A33: 418 | B33: Christa McAuliffe Charter School | C33: C | D33: Framingham | E33: 2958974 | F33: 29.771 | G33: 99391.15246
A34: 437 | B34: City on a Hill Charter Public School | C34: C | D34: Boston | E34: 1386616.18 | F34: 22.813 | G34: 60781.84281
A35: 438 | B35: Codman Academy Charter Public School | C35: C | D35: Boston | E35: 3664516.49 | F35: 45.948 | G35: 79753.55815
A36: 3503 | B36: Collegiate Charter School of Lowell | C36: C | D36: Lowell | E36: 4529802.44 | F36: 74.73 | G36: 60615.58196
A37: 436 | B37: Community Charter School of Cambridge | C37: C | D37: Cambridge | E37: 3195715.02 | F37: 28.216 | G37: 113258.9673
A38: 440 | B38: Community Day Charter Public School | C38: C | D38: Lawrence | E38: 8543485 | F38: 130.032 | G38: 65702.94235
A39: 439 | B39: Conservatory Lab Charter School | C39: C | D39: Boston | E39: 4077409.71 | F39: 28.5 | G39: 143067.0074
A40: 407 | B40: Dudley Street Neighborhood Charter School | C40: HM | D40: Boston | E40: 2231915.34 | F40: 19 | G40: 117469.2284
A41: 452 | B41: Edward M. Kennedy Academy for Health Careers: A Horace Mann Charter Public School | C41: HM | D41: Boston | E41: 4449296 | F41: 37.549 | G41: 118493.0624
A42: 410 | B42: Excel Academy Charter School | C42: C | D42: Boston/Chelsea | E42: 10552689 | F42: 128.745 | G42: 81965.81615
A43: 413 | B43: Four Rivers Charter Public School | C43: C | D43: Greenfield | E43: 1496174 | F43: 14.779 | G43: 101236.4842
A44: 446 | B44: Foxborough Regional Charter School | C44: C | D44: Foxborough | E44: 7673004.36 | F44: 118.047 | G44: 64999.57102
A45: 478 | B45: Francis W. Parker Charter Essential School | C45: C | D45: Devens | E45: =VLOOKUP($A45&220, FE, 21, FALSE) -> 2791527.44 | F45: =VLOOKUP(A45, TEACHEREPIMS, 2, FALSE) -> 40.769 | G45: 68471.81535
A46: 496 | B46: Global Learning Charter Public School | C46: C | D46: New Bedford | E46: 2834444 | F46: 41.243 | G46: 68725.45644
A47: 499 | B47: Hampden Charter School of Science | C47: C | D47: Chicopee | E47: 3733229 | F47: 43.349 | G47: 86120.30266
A48: 3516 | B48: Hampden Charter School of Science West | C48: C | D48: Westfield | E48: 2687470 | F48: 37.605 | G48: 71465.76253
A49: 419 | B49: Helen Y Davis Leadership Academy Charter Public School | C49: C | D49: Boston | E49: 1147041.39 | F49: 10.8 | G49: 106207.5361
A50: 455 | B50: Hill View Montessori Charter Public School | C50: C | D50: Haverhill | E50: 1913259.35 | F50: 23 | G50: 83185.18913
A51: 450 | B51: Hilltown Cooperative Charter Public School | C51: C | D51: East Hampton | E51: 1432893.14 | F51: 21.11 | G51: 67877.45808
A52: 453 | B52: Holyoke Community Charter School | C52: C | D52: Holyoke | E52: 3759590 | F52: 33.1 | G52: 113582.7795
A53: 435 | B53: Innovation Academy Charter School | C53: C | D53: Tyngsborough | E53: 4886565 | F53: 71.074 | G53: 68753.20089
A54: 463 | B54: KIPP Academy Boston Charter School | C54: C | D54: Boston | E54: 4850900 | F54: 50.068 | G54: 96886.23472
A55: 429 | B55: KIPP Academy Lynn Charter School | C55: C | D55: Lynn | E55: 10688100 | F55: 113.947 | G55: 93798.87141
A56: 454 | B56: Lawrence Family Development Charter School | C56: C | D56: Lawrence | E56: 4045306.24 | F56: 64 | G56: 63207.91
A57: 3514 | B57: Libertas Academy Charter School | C57: C | D57: Springfield | E57: 3413255.37 | F57: 52.002 | G57: 65637.00185
A58: 456 | B58: Lowell Community Charter Public School | C58: C | D58: Lowell | E58: 6046027.83 | F58: 70 | G58: 86371.82614
A59: 458 | B59: Lowell Middlesex Academy Charter School | C59: C | D59: Lowell | E59: 848072.61 | F59: 7.499 | G59: 113091.4269
A60: 3517 | B60: Map Academy Charter School | C60: C | D60: Plymouth | E60: 1765154 | F60: 25.943 | G60: 68039.70242
A61: 464 | B61: Marblehead Community Charter Public School | C61: C | D61: Marblehead | E61: 1311140.6 | F61: 17.999 | G61: 72845.1914
A62: 466 | B62: Martha's Vineyard Public Charter School | C62: C | D62: West Tisbury | E62: 2001768.43 | F62: 30 | G62: 66725.61433
A63: 492 | B63: Martin Luther King, Jr. Charter School of Excellence | C63: C | D63: Springfield | E63: 2237318.38 | F63: 34.671 | G63: 64529.96395
A64: 469 | B64: Match Charter Public School | C64: C | D64: Boston | E64: 9952693 | F64: 118.11 | G64: 84266.3026
A65: 470 | B65: Mystic Valley Regional Charter School | C65: C | D65: Malden | E65: 8131031 | F65: 99.94 | G65: 81359.12548
A66: 444 | B66: Neighborhood House Charter School | C66: C | D66: Boston | E66: 6170400 | F66: 75.036 | G66: 82232.52839
A67: 3513 | B67: New Heights Charter School of Brockton | C67: C | D67: Brockton | E67: 4855699.41 | F67: 46.573 | G67: 104259.9663
A68: 3515 | B68: Old Sturbridge Academy Charter Public School | C68: C | D68: Sturbridge | E68: 1853837 | F68: 28.005 | G68: 66196.64346
A69: 493 | B69: Phoenix Academy Charter Public High School, Chelsea | C69: C | D69: Chelsea | E69: 992279.62 | F69: 17.1 | G69: 58028.04795
A70: 3518 | B70: Phoenix Academy Public Charter High School, Lawrence | C70: C | D70: Lawrence | E70: 1197596 | F70: 12.006 | G70: 99749.79177
A71: 3508 | B71: Phoenix Academy Public Charter High School, Springfield | C71: C | D71: Springfield | E71: 955684 | F71: 13.388 | G71: 71383.62713
A72: 494 | B72: Pioneer Charter School of Science | C72: C | D72: Everett | E72: 6016493.82 | F72: 72.552 | G72: 82926.64324
A73: 3506 | B73: Pioneer Charter School of Science II | C73: C | D73: Saugus | E73: 4061851.95 | F73: 50.821 | G73: 79924.67582
A74: 497 | B74: Pioneer Valley Chinese Immersion Charter School | C74: C | D74: Hadley | E74: 4941355.61 | F74: 66.187 | G74: 74657.49483
A75: 479 | B75: Pioneer Valley Performing Arts Charter Public School | C75: C | D75: South Hadley | E75: 2519916 | F75: 41.893 | G75: 60151.24245
A76: 487 | B76: Prospect Hill Academy Charter School | C76: =VLOOKUP(A76, TYPE, 3, FALSE) -> C | D76: =VLOOKUP(A76, FACTS, 6, FALSE) -> Somerville (K-6); Cambridge (7-12) | E76: =VLOOKUP($A76&220, FE, 21, FALSE) -> 7513948.04 | F76: =VLOOKUP(A76, TEACHEREPIMS, 2, FALSE) -> 87.808 | G76: 85572.47677
A77: 483 | B77: Rising Tide Charter Public School | C77: C | D77: Plymouth | E77: 3723221 | F77: 55.91 | G77: =E77/F77 -> 66593.11393
A78: 482 | B78: River Valley Charter School | C78: C | D78: Newburyport | E78: 2351707.14 | F78: 26.8 | G78: 87750.26642
A79: 484 | B79: Roxbury Preparatory Charter School | C79: C | D79: Boston | E79: 8179300.96 | F79: 55.417 | G79: 147595.5205
A80: 441 | B80: Springfield International Charter School | C80: C | D80: Springfield | E80: 7439803.13 | F80: 99 | G80: 75149.52657
A81: 485 | B81: Salem Academy Charter School | C81: C | D81: Salem | E81: 3804523.05 | F81: 41.185 | G81: 92376.42467
A82: 486 | B82: Seven Hills Charter Public School | C82: C | D82: Worcester | E82: 3649272 | F82: 32.497 | G82: 112295.6581
A83: 474 | B83: Sizer School, A North Central Charter Essential School | C83: C | D83: Fitchburg | E83: 2058335.46 | F83: 33.187 | G83: 62022.34188
A84: 488 | B84: South Shore Charter Public School | C84: C | D84: Norwell | E84: 8024452 | F84: 94.328 | G84: 85069.67178
A85: 3510 | B85: Springfield Preparatory Charter School | C85: C | D85: Springfield | E85: 3515007.39 | F85: 43 | G85: 81744.35791
A86: 489 | B86: Sturgis Charter Public School | C86: C | D86: Hyannis | E86: 7650504 | F86: 87.374 | G86: 87560.41843
A87: 480 | B87: UP Academy Charter School of Boston | C87: HM | D87: Boston | E87: 4241757.71 | F87: 32 | G87: 132554.9284
A88: 3505 | B88: UP Academy Charter School of Dorchester | C88: HM | D88: Boston | E88: 7125582.66 | F88: 55.5 | G88: 128388.8768
A89: 498 | B89: Veritas Preparatory Charter School | C89: C | D89: Springfield | E89: 4160111.38 | F89: 56.88 | G89: 73138.38572
A90: 3519 | B90: Worcester Cultural Academy Charter Public School | C90: C | D90: Worcester | E90: 664776 | F90: 9 | G90: 73864
A91: C | B91: Commonwealth Charter Statewide Totals | C91: C | E91: =SUMIF(C15:C89,C91, E15:E89) -> 317290469.8 | F91: =SUMIF($C15:$C89,C91,F15:F89) -> 3889.721 | G91: =E91/F91 -> 81571.52397
A92: HM | B92: Horace Mann Charter Statewide Totals | C92: HM | E92: =SUMIF(C15:C89,C92, E15:E89) -> 27348954.01 | F92: =SUMIF($C15:$C89,C92,F15:F89) -> 212.291 | G92: =E92/F92 -> 128827.6658
A93: ALL | B93: All Charter Schools Statewide Totals | C93: ALL | E93: =SUM(E91:E92) -> 344639423.8 | F93: =SUM(F91:F92) -> 4102.012 | G93: =E93/F93 -> 84017.16616
A97: Average teacher salaries are calculated from data submitted on the Virtual School End of Year Financial Report. The calculation includes professional teachers paid from all funding sources, including tuition revenue, federal and state grants, and private grants/contributions. The Educator Personnel Management Information System (EPIMS) was the source for the total number of teachers, which is shown in full-time equivalents (e.g., a teacher who worked half-time would count as .5 FTE's).
A101: Virtual Schools
A102: LEA | B102: Virtual School | C102: Type | D102: Location | E102: Total Salaries | F102: Total Teachers | G102: Average Salaries
A103: 3901 | B103: Greater Commonwealth Virtual School | C103: VS | D103: Virtual | E103: =VLOOKUP($A103&220, FE, 21, FALSE) -> 6081731.92 | F103: =VLOOKUP(A103, TEACHEREPIMS, 2, FALSE) -> 75 | G103: =E103/F103 -> 81089.75893
A104: 3902 | B104: TEC Connections Academy Commonwealth Virtual | C104: VS | D104: Virtual | E104: =VLOOKUP($A104&220, FE, 21, FALSE) -> 10329982.07 | F104: 76 | G104: 135920.8167
A105: ALL | B105: All Virtual Schools Statewide Totals | C105: VS | D105: Virtual | E105: =SUM(E103:E104) -> 16411713.99 | F105: =SUM(F103:F104) -> 151 | G105: 217010.5756

Sheet CSLIST (hidden)
B1: Select School | C1: LEA
A2: 2 | B2: Abby Kelley Foster Charter Public School | C2: 445 | D2: Abby Kelley Foster Charter Public School
A3: 3 | B3: Academy of the Pacific Rim Charter Public School | C3: 412 | D3: Academy of the Pacific Rim Charter Public School
A4: 4 | B4: Advanced Math and Science Academy Charter School | C4: 430 | D4: Advanced Math and Science Academy Charter School
A5: 5 | B5: Alma del Mar Charter School | C5: 409 | D5: Alma del Mar Charter School
A6: 6 | B6: Argosy Collegiate Charter School | C6: 3509 | D6: Argosy Collegiate Charter School
A7: 7 | B7: Atlantis Charter School | C7: 491 | D7: Atlantis Charter School
A8: 8 | B8: Baystate Academy Charter Public School | C8: 3502 | D8: Baystate Academy Charter Public School
A9: 9 | B9: Benjamin Banneker Charter Public School | C9: 420 | D9: Benjamin Banneker Charter Public School
A10: 10 | B10: Benjamin Franklin Classical Charter Public School | C10: 447 | D10: Benjamin Franklin Classical Charter Public School
A11: 11 | B11: Berkshire Arts and Technology Charter Public School | C11: 414 | D11: Berkshire Arts and Technology Charter Public School
A12: 12 | B12: Boston Collegiate Charter School | C12: 449 | D12: Boston Collegiate Charter School
A13: 13 | B13: Boston Day and Evening Academy Charter School | C13: 424 | D13: Boston Day and Evening Academy Charter School
A14: 14 | B14: Boston Green Academy Horace Mann Charter School | C14: 411 | D14: Boston Green Academy Horace Mann Charter School
A15: 15 | B15: Boston Preparatory Charter Public School | C15: 416 | D15: Boston Preparatory Charter Public School
A16: 16 | B16: Boston Renaissance Charter Public School | C16: 481 | D16: Boston Renaissance Charter Public School
A17: 17 | B17: Bridge Boston Charter School | C17: 417 | D17: Bridge Boston Charter School
A18: 18 | B18: Brooke Charter School | C18: 428 | D18: Brooke Charter School
A19: 19 | B19: Cape Cod Lighthouse Charter School | C19: 432 | D19: Cape Cod Lighthouse Charter School
A20: 20 | B20: Christa McAuliffe Charter School | C20: 418 | D20: Christa McAuliffe Charter School
A21: 21 | B21: City on a Hill Charter Public School | C21: 437 | D21: City on a Hill Charter Public School
A22: 22 | B22: Codman Academy Charter Public School | C22: 438 | D22: Codman Academy Charter Public School
A23: 23 | B23: Collegiate Charter School of Lowell | C23: 3503 | D23: Collegiate Charter School of Lowell
A24: 24 | B24: Community Charter School of Cambridge | C24: 436 | D24: Community Charter School of Cambridge
A25: 25 | B25: Community Day Charter Public School - Gateway | C25: 426 | D25: Community Day Charter Public School - Gateway
A26: 26 | B26: Community Day Charter Public School - Prospect | C26: 440 | D26: Community Day Charter Public School - Prospect
A27: 27 | B27: Community Day Charter Public School - R. Kingman Webster | C27: 431 | D27: Community Day Charter Public School - R. Kingman Webster
A28: 28 | B28: Conservatory Lab Charter School | C28: 439 | D28: Conservatory Lab Charter School
A29: 29 | B29: Dudley Street Neighborhood Charter School | C29: 407 | D29: Dudley Street Neighborhood Charter School
A30: 30 | B30: Edward M. Kennedy Academy for Health Careers: A Horace Mann Charter Public School | C30: 452 | D30: Edward M. Kennedy Academy for Health Careers: A Horace Mann Charter Public School
A31: 31 | B31: Excel Academy Charter School | C31: 410 | D31: Excel Academy Charter School
A32: 32 | B32: Four Rivers Charter Public School | C32: 413 | D32: Four Rivers Charter Public School
A33: 33 | B33: Foxborough Regional Charter School | C33: 446 | D33: Foxborough Regional Charter School
A34: 34 | B34: Francis W. Parker Charter Essential School | C34: 478 | D34: Francis W. Parker Charter Essential School
A35: 35 | B35: Global Learning Charter Public School | C35: 496 | D35: Global Learning Charter Public School
A36: 36 | B36: Greater Commonwealth Virtual School | C36: 3901 | D36: Greater Commonwealth Virtual School
A37: 37 | B37: Hampden Charter School of Science East | C37: 499 | D37: Hampden Charter School of Science East
A38: 38 | B38: Hampden Charter School of Science West | C38: 3516 | D38: Hampden Charter School of Science West
A39: 39 | B39: Helen Y Davis Leadership Academy Charter Public School | C39: 419 | D39: Helen Y Davis Leadership Academy Charter Public School
A40: 40 | B40: Hill View Montessori Charter Public School | C40: 455 | D40: Hill View Montessori Charter Public School
A41: 41 | B41: Hilltown Cooperative Charter Public School | C41: 450 | D41: Hilltown Cooperative Charter Public School
A42: 42 | B42: Holyoke Community Charter School | C42: 453 | D42: Holyoke Community Charter School
A43: 43 | B43: Innovation Academy Charter School | C43: 435 | D43: Innovation Academy Charter School
A44: 44 | B44: KIPP Academy Boston Charter School | C44: 463 | D44: KIPP Academy Boston Charter School
A45: 45 | B45: KIPP Academy Lynn Charter School | C45: 429 | D45: KIPP Academy Lynn Charter School
A46: 46 | B46: Lawrence Family Development Charter School | C46: 454 | D46: Lawrence Family Development Charter School
A47: 47 | B47: Learning First Charter Public School | C47: 486 | D47: Learning First Charter Public School
A48: 48 | B48: Libertas Academy Charter School | C48: 3514 | D48: Libertas Academy Charter School
A49: 49 | B49: Lowell Community Charter Public School | C49: 456 | D49: Lowell Community Charter Public School
A50: 50 | B50: Lowell Middlesex Academy Charter School | C50: 458 | D50: Lowell Middlesex Academy Charter School
A51: 51 | B51: Map Academy Charter School | C51: 3517 | D51: Map Academy Charter School
A52: 52 | B52: Marblehead Community Charter Public School | C52: 464 | D52: Marblehead Community Charter Public School
A53: 53 | B53: Martha's Vineyard Public Charter School | C53: 466 | D53: Martha's Vineyard Public Charter School
A54: 54 | B54: Martin Luther King, Jr. Charter School of Excellence | C54: 492 | D54: Martin Luther King, Jr. Charter School of Excellence
A55: 55 | B55: Match Charter Public School | C55: 469 | D55: Match Charter Public School
A56: 56 | B56: Mystic Valley Regional Charter School | C56: 470 | D56: Mystic Valley Regional Charter School
A57: 57 | B57: Neighborhood House Charter School | C57: 444 | D57: Neighborhood House Charter School
A58: 58 | B58: New Heights Charter School of Brockton | C58: 3513 | D58: New Heights Charter School of Brockton
A59: 59 | B59: Old Sturbridge Academy Charter Public School | C59: 3515 | D59: Old Sturbridge Academy Charter Public School
A60: 60 | B60: Paulo Freire Social Justice Charter School | C60: 3501 | D60: Paulo Freire Social Justice Charter School
A61: 61 | B61: Phoenix Academy Charter Public High School, Chelsea | C61: 493 | D61: Phoenix Academy Charter Public High School, Chelsea
A62: 62 | B62: Phoenix Academy Public Charter High School, Lawrence | C62: 3518 | D62: Phoenix Academy Public Charter High School, Lawrence
A63: 63 | B63: Phoenix Academy Public Charter High School, Springfield | C63: 3508 | D63: Phoenix Academy Public Charter High School, Springfield
A64: 64 | B64: Pioneer Charter School of Science | C64: 494 | D64: Pioneer Charter School of Science
A65: 65 | B65: Pioneer Charter School of Science II | C65: 3506 | D65: Pioneer Charter School of Science II
A66: 66 | B66: Pioneer Valley Chinese Immersion Charter School | C66: 497 | D66: Pioneer Valley Chinese Immersion Charter School
A67: 67 | B67: Pioneer Valley Performing Arts Charter Public School | C67: 479 | D67: Pioneer Valley Performing Arts Charter Public School
A68: 68 | B68: Prospect Hill Academy Charter School | C68: 487 | D68: Prospect Hill Academy Charter School
A69: 69 | B69: Rising Tide Charter Public School | C69: 483 | D69: Rising Tide Charter Public School
A70: 70 | B70: River Valley Charter School | C70: 482 | D70: River Valley Charter School
A71: 71 | B71: Roxbury Preparatory Charter School | C71: 484 | D71: Roxbury Preparatory Charter School
A72: 72 | B72: Springfield International Charter School | C72: 441 | D72: Springfield International Charter School
A73: 73 | B73: Salem Academy Charter School | C73: 485 | D73: Salem Academy Charter School
A74: 74 | B74: Sizer School, A North Central Charter Essential School | C74: 474 | D74: Sizer School, A North Central Charter Essential School
A75: 75 | B75: South Shore Charter Public School | C75: 488 | D75: South Shore Charter Public School
A76: 76 | B76: Springfield Preparatory Charter School | C76: 3510 | D76: Springfield Preparatory Charter School
A77: 77 | B77: Sturgis Charter Public School | C77: 489 | D77: Sturgis Charter Public School
A78: 78 | B78: TEC Connections Academy Commonwealth Virtual | C78: 3902 | D78: TEC Connections Academy Commonwealth Virtual
A79: 79 | B79: UP Academy Charter School of Boston | C79: 480 | D79: UP Academy Charter School of Boston
A80: 80 | B80: UP Academy Charter School of Dorchester | C80: 3505 | D80: UP Academy Charter School of Dorchester
A81: 81 | B81: Veritas Preparatory Charter School | C81: 498 | D81: Veritas Preparatory Charter School
A82: 82 | B82: Commonwealth Charter Statewide Totals | C82: C
A83: 83 | B83: Horace Mann Charter Statewide Totals | C83: HM
A84: 84 | B84: All Charter Schools Statewide Totals | C84: ALL
A85: 85 | B85: All Virtual Schools Statewide Totals | C85: ALL_VS
A86: 86

Sheet BAL24 (hidden)
A1: Return to Index | B1: 1 | C1: 2 | D1: 3 | E1: 4 | F1: 5 | G1: 6 | H1: 7 | I1: 8
A2: FY | B2: vlookup | C2: cha_code | D2: cha_type | E2: balance_id | F2: Line_Desc | G2: balance_sch | H2: balance_found | I2: balance_total
A3: 2024 | B3: =C3&E3 -> 48201 | C3: 482 | D3: =VLOOKUP(C3, TYPE, 3, FALSE) -> C | E3: 01 | F3: Cash and Cash Equivalents | G3: 2374554.9 | H3: 277480 | I3: 2652034.9 | J3: =D3&E3 -> C01
A4: 2024 | B4: =C4&E4 -> 48202 | C4: 482 | D4: C | E4: 02 | F4: Accounts Receivable net of doubtful accounts | G4: 303 | H4: 0 | I4: 303 | J4: =D4&E4 -> C02
A5: 2024 | B5: 48203 | C5: 482 | D5: C | E5: 03 | F5: Grants Receivable - State | G5: 0 | H5: 0 | I5: 0 | J5: C03
A6: 2024 | B6: 48204 | C6: 482 | D6: C | E6: 04 | F6: Grants Receivable - Federal | G6: 0 | H6: 0 | I6: 0 | J6: C04
A7: 2024 | B7: 48205 | C7: 482 | D7: C | E7: 05 | F7: Grants Receivable - Private | G7: 0 | H7: 0 | I7: 0 | J7: C05
A8: 2024 | B8: 48206 | C8: 482 | D8: C | E8: 06 | F8: Contributions Receivable | G8: 0 | H8: 0 | I8: 0 | J8: C06
A9: 2024 | B9: 48207 | C9: 482 | D9: C | E9: 07 | F9: Due from related parties | G9: 4075 | H9: -4075 | I9: 0 | J9: C07
A10: 2024 | B10: 48208 | C10: 482 | D10: C | E10: 08 | F10: Prepaid Expenses / Inventory | G10: 73065 | H10: 0 | I10: 73065 | J10: C08
A11: 2024 | B11: 48209 | C11: 482 | D11: C | E11: 09 | F11: Short-Term Investments | G11: 0 | H11: 0 | I11: 0 | J11: C09
A12: 2024 | B12: 48210 | C12: 482 | D12: C | E12: 10 | F12: Deposit (Security, Other) | G12: 0 | H12: 0 | I12: 0 | J12: C10
A13: 2024 | B13: 48211 | C13: 482 | D13: C | E13: 11 | F13: Restricted Current Assets | G13: 0 | H13: 0 | I13: 0 | J13: C11
A14: 2024 | B14: 48212 | C14: 482 | D14: C | E14: 12 | F14: TOTAL CURRENT ASSETS | G14: 2451997.9 | H14: 273405 | I14: 2725402.9 | J14: C12
A15: 2024 | B15: 48213 | C15: 482 | D15: C | E15: 13 | F15: - Land and Buildings | G15: 0 | H15: 4350440 | I15: 4350440 | J15: C13
A16: 2024 | B16: 48214 | C16: 482 | D16: C | E16: 14 | F16: - Building/Leasehold Improvement | G16: 1278492.44 | H16: 0 | I16: 1278492.44 | J16: C14
A17: 2024 | B17: 48215 | C17: 482 | D17: C | E17: 15 | F17: - Furniture and Equipment | G17: 329805.55 | H17: 24038 | I17: 353843.55 | J17: C15
A18: 2024 | B18: 48216 | C18: 482 | D18: C | E18: 16 | F18: - Less Accumulated Depreciation | G18: -668048 | H18: -1795237 | I18: -2463285 | J18: C16
A19: 2024 | B19: 48217 | C19: 482 | D19: C | E19: 17 | F19: Net Capital Assets | G19: 940249.99 | H19: 2579241 | I19: 3519490.99 | J19: C17
A20: 2024 | B20: 48218 | C20: 482 | D20: C | E20: 18 | F20: Restricted Noncurrent Assets | G20: 238399 | H20: 0 | I20: 238399 | J20: C18
A21: 2024 | B21: 48219 | C21: 482 | D21: C | E21: 19 | F21: Long-Term Investments | G21: 2613511.32 | H21: 387554 | I21: 3001065.32 | J21: C19
A22: 2024 | B22: 48220 | C22: 482 | D22: C | E22: 20 | F22: Building Acquisition / Financing Costs / Deferred Expenses | G22: 0 | H22: 0 | I22: 0 | J22: C20
A23: 2024 | B23: 48221 | C23: 482 | D23: C | E23: 21 | F23: Long-Term Grants / Contributions Receivable | G23: 0 | H23: 0 | I23: 0 | J23: C21
A24: 2024 | B24: 48222 | C24: 482 | D24: C | E24: 22 | F24: TOTAL NONCURRENT ASSETS | G24: 3792160.31 | H24: 2966795 | I24: 6758955.31 | J24: C22
A25: 2024 | B25: 48223 | C25: 482 | D25: C | E25: 23 | F25: TOTAL ASSETS | G25: 6244158 | H25: 3240200 | I25: 9484358 | J25: C23
A26: 2024 | B26: 48224 | C26: 482 | D26: C | E26: 24 | F26: Accounts Payable | G26: 42034 | H26: 0 | I26: 42034 | J26: C24
A27: 2024 | B27: 48225 | C27: 482 | D27: C | E27: 25 | F27: Accrued Expenses / Accrued Payroll | G27: 573838 | H27: 0 | I27: 573838 | J27: C25
A28: 2024 | B28: 48226 | C28: 482 | D28: C | E28: 26 | F28: Deferred Revenue | G28: 0 | H28: 0 | I28: 0 | J28: C26
A29: 2024 | B29: 48227 | C29: 482 | D29: C | E29: 27 | F29: Due to related parties | G29: 0 | H29: 0 | I29: 0 | J29: C27
A30: 2024 | B30: 48228 | C30: 482 | D30: C | E30: 28 | F30: Current Debt Payable | G30: 0 | H30: 102973 | I30: 102973 | J30: C28
A31: 2024 | B31: 48229 | C31: 482 | D31: C | E31: 29 | F31: Current Lease Obligations Payable | G31: 102973 | H31: -102973 | I31: 0 | J31: C29
A32: 2024 | B32: 48230 | C32: 482 | D32: C | E32: 30 | F32: TOTAL CURRENT LIABILITIES | G32: 718845 | H32: 0 | I32: 718845 | J32: C30
A33: 2024 | B33: 48231 | C33: 482 | D33: C | E33: 31 | F33: Noncurrent Lease Obligations | G33: 2746561 | H33: -2746561 | I33: 0 | J33: C31
A34: 2024 | B34: 48232 | C34: 482 | D34: C | E34: 32 | F34: Long-Term Debt | G34: 0 | H34: 2746561 | I34: 2746561 | J34: C32
A35: 2024 | B35: 48233 | C35: 482 | D35: C | E35: 33 | F35: Deferred Revenue | G35: 0 | H35: 2613511 | I35: 2613511 | J35: C33
A36: 2024 | B36: 48234 | C36: 482 | D36: C | E36: 34 | F36: TOTAL NONCURRENT LIABILITIES | G36: 2746561 | H36: 2613511 | I36: 5360072 | J36: C34
A37: 2024 | B37: 48235 | C37: 482 | D37: C | E37: 35 | F37: TOTAL LIABILITIES | G37: 3465406 | H37: 2613511 | I37: 6078917 | J37: C35
A38: 2024 | B38: 48236 | C38: 482 | D38: C | E38: 36 | F38: Investment in capital assets (net of related debt) | G38: 704228 | H38: -34270 | I38: 669958 | J38: C36
A39: 2024 | B39: 48237 | C39: 482 | D39: C | E39: 37 | F39: Temporarily Restricted | G39: 0 | H39: 32754 | I39: 32754 | J39: C37
A40: 2024 | B40: 48238 | C40: 482 | D40: C | E40: 38 | F40: Permanently Restricted | G40: 0 | H40: 0 | I40: 0 | J40: C38
A41: 2024 | B41: 48239 | C41: 482 | D41: C | E41: 39 | F41: Unrestricted (non-capital) | G41: 2074524 | H41: 628205 | I41: 2702729 | J41: C39
A42: 2024 | B42: 48240 | C42: 482 | D42: C | E42: 40 | F42: TOTAL NET ASSETS | G42: 2778752 | H42: 626689 | I42: 3405441 | J42: C40
A43: 2024 | B43: 48241 | C43: 482 | D43: C | E43: 41 | F43: TOTAL LIABILITIES AND NET ASSETS | G43: 6244158 | H43: 3240200 | I43: 9484358 | J43: C41
A44: 2024 | B44: 48901 | C44: 489 | D44: C | E44: 01 | F44: Cash and Cash Equivalents | G44: 3109723 | H44: 2306633 | I44: 5416356 | J44: C01
A45: 2024 | B45: 48902 | C45: 489 | D45: C | E45: 02 | F45: Accounts Receivable net of doubtful accounts | G45: 0 | H45: 0 | I45: 0 | J45: C02
A46: 2024 | B46: 48903 | C46: 489 | D46: C | E46: 03 | F46: Grants Receivable - State | G46: 0 | H46: 0 | I46: 0 | J46: C03
A47: 2024 | B47: 48904 | C47: 489 | D47: C | E47: 04 | F47: Grants Receivable - Federal | G47: 0 | H47: 34186 | I47: 34186 | J47: C04
A48: 2024 | B48: 48905 | C48: 489 | D48: C | E48: 05 | F48: Grants Receivable - Private | G48: 0 | H48: 0 | I48: 0 | J48: C05
A49: 2024 | B49: 48906 | C49: 489 | D49: C | E49: 06 | F49: Contributions Receivable | G49: 0 | H49: 0 | I49: 0 | J49: C06
A50: 2024 | B50: 48907 | C50: 489 | D50: C | E50: 07 | F50: Due from related parties | G50: 0 | H50: 0 | I50: 0 | J50: C07
A51: 2024 | B51: 48908 | C51: 489 | D51: C | E51: 08 | F51: Prepaid Expenses / Inventory | G51: 0 | H51: 63260 | I51: 63260 | J51: C08
A52: 2024 | B52: 48909 | C52: 489 | D52: C | E52: 09 | F52: Short-Term Investments | G52: 0 | H52: 0 | I52: 0 | J52: C09
A53: 2024 | B53: 48910 | C53: 489 | D53: C | E53: 10 | F53: Deposit (Security, Other) | G53: 0 | H53: 0 | I53: 0 | J53: C10
A54: 2024 | B54: 48911 | C54: 489 | D54: C | E54: 11 | F54: Restricted Current Assets | G54: 106536 | H54: 0 | I54: 106536 | J54: C11
A55: 2024 | B55: 48912 | C55: 489 | D55: C | E55: 12 | F55: TOTAL CURRENT ASSETS | G55: 3216259 | H55: 2404079 | I55: 5620338 | J55: C12
A56: 2024 | B56: 48913 | C56: 489 | D56: C | E56: 13 | F56: - Land and Buildings | G56: 0 | H56: 0 | I56: 0 | J56: C13
A57: 2024 | B57: 48914 | C57: 489 | D57: C | E57: 14 | F57: - Building/Leasehold Improvement | G57: 625597 | H57: 17124953 | I57: 17750550 | J57: C14
A58: 2024 | B58: 48915 | C58: 489 | D58: C | E58: 15 | F58: - Furniture and Equipment | G58: 0 | H58: 0 | I58: 0 | J58: C15
A59: 2024 | B59: 48916 | C59: 489 | D59: C | E59: 16 | F59: - Less Accumulated Depreciation | G59: 0 | H59: 0 | I59: 0 | J59: C16
A60: 2024 | B60: 48917 | C60: 489 | D60: C | E60: 17 | F60: Net Capital Assets | G60: 625597 | H60: 17124953 | I60: 17750550 | J60: C17
A61: 2024 | B61: 48918 | C61: 489 | D61: C | E61: 18 | F61: Restricted Noncurrent Assets | G61: 0 | H61: 0 | I61: 0 | J61: C18
A62: 2024 | B62: 48919 | C62: 489 | D62: C | E62: 19 | F62: Long-Term Investments | G62: 0 | H62: 0 | I62: 0 | J62: C19
A63: 2024 | B63: 48920 | C63: 489 | D63: C | E63: 20 | F63: Building Acquisition / Financing Costs / Deferred Expenses | G63: 0 | H63: 0 | I63: 0 | J63: C20
A64: 2024 | B64: 48921 | C64: 489 | D64: C | E64: 21 | F64: Long-Term Grants / Contributions Receivable | G64: 0 | H64: 0 | I64: 0 | J64: C21
A65: 2024 | B65: 48922 | C65: 489 | D65: C | E65: 22 | F65: TOTAL NONCURRENT ASSETS | G65: 625597 | H65: 17124953 | I65: 17750550 | J65: C22
A66: 2024 | B66: 48923 | C66: 489 | D66: C | E66: 23 | F66: TOTAL ASSETS | G66: 3841856 | H66: 19529032 | I66: 23370888 | J66: C23
A67: 2024 | B67: 48924 | C67: 489 | D67: =VLOOKUP(C67, TYPE, 3, FALSE) -> C | E67: 24 | F67: Accounts Payable | G67: 299936 | H67: 0 | I67: 299936 | J67: C24
A68: 2024 | B68: =C68&E68 -> 48925 | C68: 489 | D68: C | E68: 25 | F68: Accrued Expenses / Accrued Payroll | G68: 1868385 | H68: 0 | I68: 1868385 | J68: =D68&E68 -> C25
A69: 2024 | B69: 48926 | C69: 489 | D69: C | E69: 26 | F69: Deferred Revenue | G69: 0 | H69: 0 | I69: 0 | J69: C26
A70: 2024 | B70: 48927 | C70: 489 | D70: C | E70: 27 | F70: Due to related parties | G70: 0 | H70: 0 | I70: 0 | J70: C27
A71: 2024 | B71: 48928 | C71: 489 | D71: C | E71: 28 | F71: Current Debt Payable | G71: 0 | H71: 1038137 | I71: 1038137 | J71: C28
A72: 2024 | B72: 48929 | C72: 489 | D72: C | E72: 29 | F72: Current Lease Obligations Payable | G72: 106536 | H72: 0 | I72: 106536 | J72: C29
A73: 2024 | B73: 48930 | C73: 489 | D73: C | E73: 30 | F73: TOTAL CURRENT LIABILITIES | G73: 2274857 | H73: 1038137 | I73: 3312994 | J73: C30
A74: 2024 | B74: 48931 | C74: 489 | D74: C | E74: 31 | F74: Noncurrent Lease Obligations | G74: 0 | H74: 0 | I74: 0 | J74: C31
A75: 2024 | B75: 48932 | C75: 489 | D75: C | E75: 32 | F75: Long-Term Debt | G75: 0 | H75: 6252404 | I75: 6252404 | J75: C32
A76: 2024 | B76: 48933 | C76: 489 | D76: C | E76: 33 | F76: Deferred Revenue | G76: 0 | H76: 0 | I76: 0 | J76: C33
A77: 2024 | B77: 48934 | C77: 489 | D77: C | E77: 34 | F77: TOTAL NONCURRENT LIABILITIES | G77: 0 | H77: 6252404 | I77: 6252404 | J77: C34
A78: 2024 | B78: 48935 | C78: 489 | D78: C | E78: 35 | F78: TOTAL LIABILITIES | G78: 2274857 | H78: 7290541 | I78: 9565398 | J78: C35
A79: 2024 | B79: 48936 | C79: 489 | D79: C | E79: 36 | F79: Investment in capital assets (net of related debt) | G79: 625597 | H79: 9834412 | I79: 10460009 | J79: C36
A80: 2024 | B80: 48937 | C80: 489 | D80: C | E80: 37 | F80: Temporarily Restricted | G80: 0 | H80: 0 | I80: 0 | J80: C37
A81: 2024 | B81: 48938 | C81: 489 | D81: C | E81: 38 | F81: Permanently Restricted | G81: 0 | H81: 0 | I81: 0 | J81: C38
A82: 2024 | B82: 48939 | C82: 489 | D82: C | E82: 39 | F82: Unrestricted (non-capital) | G82: 941402 | H82: 2404079 | I82: 3345481 | J82: C39
A83: 2024 | B83: 48940 | C83: 489 | D83: C | E83: 40 | F83: TOTAL NET ASSETS | G83: 1566999 | H83: 12238491 | I83: 13805490 | J83: C40
A84: 2024 | B84: 48941 | C84: 489 | D84: C | E84: 41 | F84: TOTAL LIABILITIES AND NET ASSETS | G84: 3841856 | H84: 19529032 | I84: 23370888 | J84: C41
A85: 2024 | B85: 40901 | C85: 409 | D85: C | E85: 01 | F85: Cash and Cash Equivalents | G85: 6623871 | H85: 3750625 | I85: 10374496 | J85: C01
A86: 2024 | B86: 40902 | C86: 409 | D86: C | E86: 02 | F86: Accounts Receivable net of doubtful accounts | G86: 0 | H86: 0 | I86: 0 | J86: C02
A87: 2024 | B87: 40903 | C87: 409 | D87: C | E87: 03 | F87: Grants Receivable - State | G87: 0 | H87: 0 | I87: 0 | J87: C03
A88: 2024 | B88: 40904 | C88: 409 | D88: C | E88: 04 | F88: Grants Receivable - Federal | G88: 2468386 | H88: 0 | I88: 2468386 | J88: C04
A89: 2024 | B89: 40905 | C89: 409 | D89: C | E89: 05 | F89: Grants Receivable - Private | G89: 0 | H89: 0 | I89: 0 | J89: C05
A90: 2024 | B90: 40906 | C90: 409 | D90: C | E90: 06 | F90: Contributions Receivable | G90: 0 | H90: 50000 | I90: 50000 | J90: C06
A91: 2024 | B91: 40907 | C91: 409 | D91: C | E91: 07 | F91: Due from related parties | G91: -10254 | H91: 10254 | I91: 0 | J91: C07
A92: 2024 | B92: 40908 | C92: 409 | D92: C | E92: 08 | F92: Prepaid Expenses / Inventory | G92: 5464 | H92: 0 | I92: 5464 | J92: C08
A93: 2024 | B93: 40909 | C93: 409 | D93: C | E93: 09 | F93: Short-Term Investments | G93: 0 | H93: 0 | I93: 0 | J93: C09
A94: 2024 | B94: 40910 | C94: 409 | D94: C | E94: 10 | F94: Deposit (Security, Other) | G94: 0 | H94: 38000 | I94: 38000 | J94: C10
A95: 2024 | B95: 40911 | C95: 409 | D95: C | E95: 11 | F95: Restricted Current Assets | G95: 0 | H95: 0 | I95: 0 | J95: C11
A96: 2024 | B96: 40912 | C96: 409 | D96: C | E96: 12 | F96: TOTAL CURRENT ASSETS | G96: 9087467 | H96: 3848879 | I96: 12936346 | J96: C12
A97: 2024 | B97: 40913 | C97: 409 | D97: C | E97: 13 | F97: - Land and Buildings | G97: 0 | H97: 37422049 | I97: 37422049 | J97: C13
A98: 2024 | B98: 40914 | C98: 409 | D98: C | E98: 14 | F98: - Building/Leasehold Improvement | G98: 111525 | H98: 0 | I98: 111525 | J98: C14
A99: 2024 | B99: 40915 | C99: 409 | D99: C | E99: 15 | F99: - Furniture and Equipment | G99: 1354388 | H99: 895305 | I99: 2249693 | J99: C15
A100: 2024 | B100: 40916 | C100: 409 | D100: C | E100: 16 | F100: - Less Accumulated Depreciation | G100: -1124779 | H100: -5217413 | I100: -6342192 | J100: C16
A101: 2024 | B101: 40917 | C101: 409 | D101: C | E101: 17 | F101: Net Capital Assets | G101: 341134 | H101: 33099941 | I101: 33441075 | J101: C17
A102: 2024 | B102: 40918 | C102: 409 | D102: C | E102: 18 | F102: Restricted Noncurrent Assets | G102: 0 | H102: 0 | I102: 0 | J102: C18
A103: 2024 | B103: 40919 | C103: 409 | D103: C | E103: 19 | F103: Long-Term Investments | G103: 0 | H103: 0 | I103: 0 | J103: C19
A104: 2024 | B104: 40920 | C104: 409 | D104: C | E104: 20 | F104: Building Acquisition / Financing Costs / Deferred Expenses | G104: 1012272 | H104: 0 | I104: 1012272 | J104: C20
A105: 2024 | B105: 40921 | C105: 409 | D105: C | E105: 21 | F105: Long-Term Grants / Contributions Receivable | G105: 0 | H105: 0 | I105: 0 | J105: C21
A106: 2024 | B106: 40922 | C106: 409 | D106: C | E106: 22 | F106: TOTAL NONCURRENT ASSETS | G106: 1353406 | H106: 33099941 | I106: 34453347 | J106: C22
A107: 2024 | B107: 40923 | C107: 409 | D107: C | E107: 23 | F107: TOTAL ASSETS | G107: 10440873 | H107: 36948820 | I107: 47389693 | J107: C23
A108: 2024 | B108: 40924 | C108: 409 | D108: C | E108: 24 | F108: Accounts Payable | G108: 369040 | H108: 9709 | I108: 378749 | J108: C24
A109: 2024 | B109: 40925 | C109: 409 | D109: C | E109: 25 | F109: Accrued Expenses / Accrued Payroll | G109: 698960 | H109: 0 | I109: 698960 | J109: C25
A110: 2024 | B110: 40926 | C110: 409 | D110: C | E110: 26 | F110: Deferred Revenue | G110: 0 | H110: 0 | I110: 0 | J110: C26
A111: 2024 | B111: 40927 | C111: 409 | D111: C | E111: 27 | F111: Due to related parties | G111: 0 | H111: 0 | I111: 0 | J111: C27
A112: 2024 | B112: 40928 | C112: 409 | D112: C | E112: 28 | F112: Current Debt Payable | G112: 0 | H112: 717521 | I112: 717521 | J112: C28
A113: 2024 | B113: 40929 | C113: 409 | D113: C | E113: 29 | F113: Current Lease Obligations Payable | G113: 209744 | H113: 0 | I113: 209744 | J113: C29
A114: 2024 | B114: 40930 | C114: 409 | D114: C | E114: 30 | F114: TOTAL CURRENT LIABILITIES | G114: 1277744 | H114: 727230 | I114: 2004974 | J114: C30
A115: 2024 | B115: 40931 | C115: 409 | D115: C | E115: 31 | F115: Noncurrent Lease Obligations | G115: 827348 | H115: 0 | I115: 827348 | J115: C31
A116: 2024 | B116: 40932 | C116: 409 | D116: C | E116: 32 | F116: Long-Term Debt | G116: 0 | H116: 27941930 | I116: 27941930 | J116: C32
A117: 2024 | B117: 40933 | C117: 409 | D117: C | E117: 33 | F117: Deferred Revenue | G117: 0 | H117: 0 | I117: 0 | J117: C33
A118: 2024 | B118: 40934 | C118: 409 | D118: C | E118: 34 | F118: TOTAL NONCURRENT LIABILITIES | G118: 827348 | H118: 27941930 | I118: 28769278 | J118: C34
A119: 2024 | B119: 40935 | C119: 409 | D119: C | E119: 35 | F119: TOTAL LIABILITIES | G119: 2105092 | H119: 28669160 | I119: 30774252 | J119: C35
A120: 2024 | B120: 40936 | C120: 409 | D120: C | E120: 36 | F120: Investment in capital assets (net of related debt) | G120: 316314 | H120: 4440490 | I120: 4756804 | J120: C36
A121: 2024 | B121: 40937 | C121: 409 | D121: C | E121: 37 | F121: Temporarily Restricted | G121: 0 | H121: 3764298 | I121: 3764298 | J121: C37
A122: 2024 | B122: 40938 | C122: 409 | D122: C | E122: 38 | F122: Permanently Restricted | G122: 0 | H122: 0 | I122: 0 | J122: C38
A123: 2024 | B123: 40939 | C123: 409 | D123: C | E123: 39 | F123: Unrestricted (non-capital) | G123: 8019467 | H123: 74872 | I123: 8094339 | J123: C39
A124: 2024 | B124: 40940 | C124: 409 | D124: C | E124: 40 | F124: TOTAL NET ASSETS | G124: 8335781 | H124: 8279660 | I124: 16615441 | J124: C40
A125: 2024 | B125: 40941 | C125: 409 | D125: C | E125: 41 | F125: TOTAL LIABILITIES AND NET ASSETS | G125: 10440873 | H125: 36948820 | I125: 47389693 | J125: C41
A126: 2024 | B126: 41401 | C126: 414 | D126: C | E126: 01 | F126: Cash and Cash Equivalents | G126: 2179611 | H126: 124997 | I126: 2304608 | J126: C01
A127: 2024 | B127: 41402 | C127: 414 | D127: C | E127: 02 | F127: Accounts Receivable net of doubtful accounts | G127: 445131 | H127: 0 | I127: 445131 | J127: C02
A128: 2024 | B128: 41403 | C128: 414 | D128: C | E128: 03 | F128: Grants Receivable - State | G128: 58841 | H128: 0 | I128: 58841 | J128: C03
A129: 2024 | B129: 41404 | C129: 414 | D129: C | E129: 04 | F129: Grants Receivable - Federal | G129: 53177 | H129: 0 | I129: 53177 | J129: C04
A130: 2024 | B130: 41405 | C130: 414 | D130: C | E130: 05 | F130: Grants Receivable - Private | G130: 0 | H130: 0 | I130: 0 | J130: C05
A131: 2024 | B131: 41406 | C131: 414 | D131: =VLOOKUP(C131, TYPE, 3, FALSE) -> C | E131: 06 | F131: Contributions Receivable | G131: 0 | H131: 3272 | I131: 3272 | J131: C06
A132: 2024 | B132: =C132&E132 -> 41407 | C132: 414 | D132: C | E132: 07 | F132: Due from related parties | G132: 3987 | H132: 0 | I132: 3987 | J132: =D132&E132 -> C07
A133: 2024 | B133: 41408 | C133: 414 | D133: C | E133: 08 | F133: Prepaid Expenses / Inventory | G133: 29786 | H133: 0 | I133: 29786 | J133: C08
A134: 2024 | B134: 41409 | C134: 414 | D134: C | E134: 09 | F134: Short-Term Investments | G134: 0 | H134: 0 | I134: 0 | J134: C09
A135: 2024 | B135: 41410 | C135: 414 | D135: C | E135: 10 | F135: Deposit (Security, Other) | G135: 0 | H135: 0 | I135: 0 | J135: C10
A136: 2024 | B136: 41411 | C136: 414 | D136: C | E136: 11 | F136: Restricted Current Assets | G136: 0 | H136: 0 | I136: 0 | J136: C11
A137: 2024 | B137: 41412 | C137: 414 | D137: C | E137: 12 | F137: TOTAL CURRENT ASSETS | G137: 2770533 | H137: 128269 | I137: 2898802 | J137: C12
A138: 2024 | B138: 41413 | C138: 414 | D138: C | E138: 13 | F138: - Land and Buildings | G138: 2936574 | H138: 3518937 | I138: 6455511 | J138: C13
A139: 2024 | B139: 41414 | C139: 414 | D139: C | E139: 14 | F139: - Building/Leasehold Improvement | G139: 6041715 | H139: 0 | I139: 6041715 | J139: C14
A140: 2024 | B140: 41415 | C140: 414 | D140: C | E140: 15 | F140: - Furniture and Equipment | G140: 759961.03 | H140: 0 | I140: 759961.03 | J140: C15
A141: 2024 | B141: 41416 | C141: 414 | D141: C | E141: 16 | F141: - Less Accumulated Depreciation | G141: -2109572 | H141: -1351154 | I141: -3460726 | J141: C16
A142: 2024 | B142: 41417 | C142: 414 | D142: C | E142: 17 | F142: Net Capital Assets | G142: 7628678.03 | H142: 2167783 | I142: 9796461.03 | J142: C17
A143: 2024 | B143: 41418 | C143: 414 | D143: C | E143: 18 | F143: Restricted Noncurrent Assets | G143: 0 | H143: 0 | I143: 0 | J143: C18
A144: 2024 | B144: 41419 | C144: 414 | D144: C | E144: 19 | F144: Long-Term Investments | G144: 0 | H144: 187481 | I144: 187481 | J144: C19
A145: 2024 | B145: 41420 | C145: 414 | D145: C | E145: 20 | F145: Building Acquisition / Financing Costs / Deferred Expenses | G145: 0 | H145: 0 | I145: 0 | J145: C20
A146: 2024 | B146: 41421 | C146: 414 | D146: C | E146: 21 | F146: Long-Term Grants / Contributions Receivable | G146: 0 | H146: 0 | I146: 0 | J146: C21
A147: 2024 | B147: 41422 | C147: 414 | D147: C | E147: 22 | F147: TOTAL NONCURRENT ASSETS | G147: 7628678.03 | H147: 2355264 | I147: 9983942.03 | J147: C22
A148: 2024 | B148: 41423 | C148: 414 | D148: C | E148: 23 | F148: TOTAL ASSETS | G148: 10399211 | H148: 2483533 | I148: 12882744 | J148: C23
A149: 2024 | B149: 41424 | C149: 414 | D149: C | E149: 24 | F149: Accounts Payable | G149: 27012 | H149: 750 | I149: 27762 | J149: C24
A150: 2024 | B150: 41425 | C150: 414 | D150: C | E150: 25 | F150: Accrued Expenses / Accrued Payroll | G150: 295111 | H150: 0 | I150: 295111 | J150: C25
A151: 2024 | B151: 41426 | C151: 414 | D151: C | E151: 26 | F151: Deferred Revenue | G151: 25914 | H151: 722 | I151: 26636 | J151: C26
A152: 2024 | B152: 41427 | C152: 414 | D152: C | E152: 27 | F152: Due to related parties | G152: 0 | H152: 0 | I152: 0 | J152: C27
A153: 2024 | B153: 41428 | C153: 414 | D153: C | E153: 28 | F153: Current Debt Payable | G153: 168635 | H153: 0 | I153: 168635 | J153: C28
A154: 2024 | B154: 41429 | C154: 414 | D154: C | E154: 29 | F154: Current Lease Obligations Payable | G154: 0 | H154: 0 | I154: 0 | J154: C29
A155: 2024 | B155: 41430 | C155: 414 | D155: C | E155: 30 | F155: TOTAL CURRENT LIABILITIES | G155: 516672 | H155: 1472 | I155: 518144 | J155: C30
A156: 2024 | B156: 41431 | C156: 414 | D156: C | E156: 31 | F156: Noncurrent Lease Obligations | G156: 0 | H156: 0 | I156: 0 | J156: C31
A157: 2024 | B157: 41432 | C157: 414 | D157: C | E157: 32 | F157: Long-Term Debt | G157: 4872505 | H157: 0 | I157: 4872505 | J157: C32
A158: 2024 | B158: 41433 | C158: 414 | D158: C | E158: 33 | F158: Deferred Revenue | G158: 0 | H158: 3230741 | I158: 3230741 | J158: C33
A159: 2024 | B159: 41434 | C159: 414 | D159: C | E159: 34 | F159: TOTAL NONCURRENT LIABILITIES | G159: 4872505 | H159: 3230741 | I159: 8103246 | J159: C34
A160: 2024 | B160: 41435 | C160: 414 | D160: C | E160: 35 | F160: TOTAL LIABILITIES | G160: 5389177 | H160: 3232213 | I160: 8621390 | J160: C35
A161: 2024 | B161: 41436 | C161: 414 | D161: C | E161: 36 | F161: Investment in capital assets (net of related debt) | G161: 2587538 | H161: -872205 | I161: 1715333 | J161: C36
A162: 2024 | B162: 41437 | C162: 414 | D162: C | E162: 37 | F162: Temporarily Restricted | G162: 18966 | H162: 34370 | I162: 53336 | J162: C37
A163: 2024 | B163: 41438 | C163: 414 | D163: C | E163: 38 | F163: Permanently Restricted | G163: 0 | H163: 0 | I163: 0 | J163: C38
A164: 2024 | B164: 41439 | C164: 414 | D164: C | E164: 39 | F164: Unrestricted (non-capital) | G164: 2403530 | H164: 89155 | I164: 2492685 | J164: C39
A165: 2024 | B165: 41440 | C165: 414 | D165: C | E165: 40 | F165: TOTAL NET ASSETS | G165: 5010034 | H165: -748680 | I165: 4261354 | J165: C40
A166: 2024 | B166: 41441 | C166: 414 | D166: C | E166: 41 | F166: TOTAL LIABILITIES AND NET ASSETS | G166: 10399211 | H166: 2483533 | I166: 12882744 | J166: C41
A167: 2024 | B167: 41801 | C167: 418 | D167: C | E167: 01 | F167: Cash and Cash Equivalents | G167: 413916 | H167: 89766 | I167: 503682 | J167: C01
A168: 2024 | B168: 41802 | C168: 418 | D168: C | E168: 02 | F168: Accounts Receivable net of doubtful accounts | G168: 109411 | H168: 0 | I168: 109411 | J168: C02
A169: 2024 | B169: 41803 | C169: 418 | D169: C | E169: 03 | F169: Grants Receivable - State | G169: 0 | H169: 0 | I169: 0 | J169: C03
A170: 2024 | B170: 41804 | C170: 418 | D170: C | E170: 04 | F170: Grants Receivable - Federal | G170: 0 | H170: 0 | I170: 0 | J170: C04
A171: 2024 | B171: 41805 | C171: 418 | D171: C | E171: 05 | F171: Grants Receivable - Private | G171: 0 | H171: 0 | I171: 0 | J171: C05
A172: 2024 | B172: 41806 | C172: 418 | D172: C | E172: 06 | F172: Contributions Receivable | G172: 0 | H172: 0 | I172: 0 | J172: C06
A173: 2024 | B173: 41807 | C173: 418 | D173: C | E173: 07 | F173: Due from related parties | G173: 553367 | H173: -553367 | I173: 0 | J173: C07
A174: 2024 | B174: 41808 | C174: 418 | D174: C | E174: 08 | F174: Prepaid Expenses / Inventory | G174: 2446 | H174: 0 | I174: 2446 | J174: C08
A175: 2024 | B175: 41809 | C175: 418 | D175: C | E175: 09 | F175: Short-Term Investments | G175: 0 | H175: 0 | I175: 0 | J175: C09
A176: 2024 | B176: 41810 | C176: 418 | D176: C | E176: 10 | F176: Deposit (Security, Other) | G176: 0 | H176: 0 | I176: 0 | J176: C10
A177: 2024 | B177: 41811 | C177: 418 | D177: C | E177: 11 | F177: Restricted Current Assets | G177: 0 | H177: 0 | I177: 0 | J177: C11
A178: 2024 | B178: 41812 | C178: 418 | D178: C | E178: 12 | F178: TOTAL CURRENT ASSETS | G178: 1079140 | H178: -463601 | I178: 615539 | J178: C12
A179: 2024 | B179: 41813 | C179: 418 | D179: C | E179: 13 | F179: - Land and Buildings | G179: 0 | H179: 4950000 | I179: 4950000 | J179: C13
A180: 2024 | B180: 41814 | C180: 418 | D180: C | E180: 14 | F180: - Building/Leasehold Improvement | G180: 333856 | H180: 5227700 | I180: 5561556 | J180: C14
A181: 2024 | B181: 41815 | C181: 418 | D181: C | E181: 15 | F181: - Furniture and Equipment | G181: 535149 | H181: 0 | I181: 535149 | J181: C15
A182: 2024 | B182: 41816 | C182: 418 | D182: C | E182: 16 | F182: - Less Accumulated Depreciation | G182: -454196 | H182: -2873034 | I182: -3327230 | J182: C16
A183: 2024 | B183: 41817 | C183: 418 | D183: C | E183: 17 | F183: Net Capital Assets | G183: 414809 | H183: 7304666 | I183: 7719475 | J183: C17
A184: 2024 | B184: 41818 | C184: 418 | D184: C | E184: 18 | F184: Restricted Noncurrent Assets | G184: 0 | H184: 7648 | I184: 7648 | J184: C18
A185: 2024 | B185: 41819 | C185: 418 | D185: C | E185: 19 | F185: Long-Term Investments | G185: 0 | H185: 0 | I185: 0 | J185: C19
A186: 2024 | B186: 41820 | C186: 418 | D186: C | E186: 20 | F186: Building Acquisition / Financing Costs / Deferred Expenses | G186: 0 | H186: 0 | I186: 0 | J186: C20
A187: 2024 | B187: 41821 | C187: 418 | D187: C | E187: 21 | F187: Long-Term Grants / Contributions Receivable | G187: 0 | H187: 0 | I187: 0 | J187: C21
A188: 2024 | B188: 41822 | C188: 418 | D188: C | E188: 22 | F188: TOTAL NONCURRENT ASSETS | G188: 414809 | H188: 7312314 | I188: 7727123 | J188: C22
A189: 2024 | B189: 41823 | C189: 418 | D189: C | E189: 23 | F189: TOTAL ASSETS | G189: 1493949 | H189: 6848713 | I189: 8342662 | J189: C23
A190: 2024 | B190: 41824 | C190: 418 | D190: C | E190: 24 | F190: Accounts Payable | G190: 169902 | H190: 18913 | I190: 188815 | J190: C24
A191: 2024 | B191: 41825 | C191: 418 | D191: C | E191: 25 | F191: Accrued Expenses / Accrued Payroll | G191: 374656 | H191: 0 | I191: 374656 | J191: C25
A192: 2024 | B192: 41826 | C192: 418 | D192: C | E192: 26 | F192: Deferred Revenue | G192: 0 | H192: 0 | I192: 0 | J192: C26
A193: 2024 | B193: 41827 | C193: 418 | D193: C | E193: 27 | F193: Due to related parties | G193: 0 | H193: 0 | I193: 0 | J193: C27
A194: 2024 | B194: 41828 | C194: 418 | D194: C | E194: 28 | F194: Current Debt Payable | G194: 369470 | H194: 196280 | I194: 565750 | J194: C28
A195: 2024 | B195: 41829 | C195: 418 | D195: =VLOOKUP(C195, TYPE, 3, FALSE) -> C | E195: 29 | F195: Current Lease Obligations Payable | G195: 37461 | H195: 0 | I195: 37461 | J195: C29
A196: 2024 | B196: =C196&E196 -> 41830 | C196: 418 | D196: C | E196: 30 | F196: TOTAL CURRENT LIABILITIES | G196: 951489 | H196: 215193 | I196: 1166682 | J196: =D196&E196 -> C30
A197: 2024 | B197: 41831 | C197: 418 | D197: C | E197: 31 | F197: Noncurrent Lease Obligations | G197: 78669 | H197: 0 | I197: 78669 | J197: C31
A198: 2024 | B198: 41832 | C198: 418 | D198: C | E198: 32 | F198: Long-Term Debt | G198: 0 | H198: 7296056 | I198: 7296056 | J198: C32
A199: 2024 | B199: 41833 | C199: 418 | D199: C | E199: 33 | F199: Deferred Revenue | G199: 0 | H199: 29585 | I199: 29585 | J199: C33
A200: 2024 | B200: 41834 | C200: 418 | D200: C | E200: 34 | F200: TOTAL NONCURRENT LIABILITIES | G200: 78669 | H200: 7325641 | I200: 7404310 | J200: C34
... 3164 more rows

Sheet INC24 (hidden)
A1: Return to Index | B1: 1 | C1: 2 | D1: 3 | E1: 4 | F1: 5 | G1: 6 | H1: 7 | I1: 8
A2: FY | B2: vlookup | C2: LEA | D2: cha_type | E2: income_id | F2: Line_Desc | G2: income_sch | H2: income_found | I2: income_total
A3: 2024 | B3: =C3&E3 -> 48201 | C3: 482 | D3: =VLOOKUP(C3, TYPE,3, FALSE) -> C | E3: 01 | F3: Tuition | G3: 5164353 | H3: 0 | I3: 5164353 | J3: =D3&E3 -> C01
A4: 2024 | B4: =C4&E4 -> 4822a | C4: 482 | D4: C | E4: 2a | F4: Grants - State - passed through DESE | G4: 0 | H4: 0 | I4: 0 | J4: =D4&E4 -> C2a
A5: 2024 | B5: 4822b | C5: 482 | D5: C | E5: 2b | F5: Grants - State - other non-DESE pass-through | G5: 0 | H5: 0 | I5: 0 | J5: C2b
A6: 2024 | B6: 48203 | C6: 482 | D6: C | E6: 03 | F6: Grants - Federal - Passed through DESE | G6: 166394 | H6: 0 | I6: 166394 | J6: C03
A7: 2024 | B7: 48204 | C7: 482 | D7: C | E7: 04 | F7: Grants - Federal - Direct or other pass-through | G7: 0 | H7: 0 | I7: 0 | J7: C04
A8: 2024 | B8: 4825a | C8: 482 | D8: C | E8: 5a | F8: Grants - Private (restricted) | G8: 0 | H8: 0 | I8: 0 | J8: C5a
A9: 2024 | B9: 4825b | C9: 482 | D9: C | E9: 5b | F9: Grants - Private (unrestricted) | G9: 0 | H9: 0 | I9: 0 | J9: C5b
A10: 2024 | B10: 48206 | C10: 482 | D10: C | E10: 06 | F10: Nutrition Funding - State | G10: 0 | H10: 0 | I10: 0 | J10: C06
A11: 2024 | B11: 48207 | C11: 482 | D11: C | E11: 07 | F11: Nutrition Funding - Federal | G11: 0 | H11: 0 | I11: 0 | J11: C07
A12: 2024 | B12: 48208 | C12: 482 | D12: C | E12: 08 | F12: Nutrition Funding - Fees | G12: 0 | H12: 0 | I12: 0 | J12: C08
A13: 2024 | B13: 48209 | C13: 482 | D13: C | E13: 09 | F13: Other Program / Student Activity Fees | G13: 100173 | H13: 0 | I13: 100173 | J13: C09
A14: 2024 | B14: 48210 | C14: 482 | D14: C | E14: 10 | F14: Regional Transportation Aid | G14: 0 | H14: 0 | I14: 0 | J14: C10
A15: 2024 | B15: 48211 | C15: 482 | D15: C | E15: 11 | F15: Medicaid Reimbursements | G15: 0 | H15: 0 | I15: 0 | J15: C11
A16: 2024 | B16: 48212 | C16: 482 | D16: C | E16: 12 | F16: Circuit Breaker Reimbursements | G16: 0 | H16: 0 | I16: 0 | J16: C12
A17: 2024 | B17: 48213a | C17: 482 | D17: C | E17: 13a | F17: Contributions, in-kind, host district | G17: 48081 | H17: 0 | I17: 48081 | J17: C13a
A18: 2024 | B18: 48213b | C18: 482 | D18: C | E18: 13b | F18: Contributions, in-kind, other | G18: 0 | H18: 0 | I18: 0 | J18: C13b
A19: 2024 | B19: 48213c | C19: 482 | D19: C | E19: 13c | F19: Contributions, on-behalf, pension | G19: 623798 | H19: 0 | I19: 623798 | J19: C13c
A20: 2024 | B20: 48214 | C20: 482 | D20: C | E20: 14 | F20: Contributions, from Component Unit (restricted) | G20: 0 | H20: 0 | I20: 0 | J20: C14
A21: 2024 | B21: 48214b | C21: 482 | D21: C | E21: 14b | F21: Contributions, from Component Unit (unrestricted) | G21: 100000 | H21: -100000 | I21: 0 | J21: C14b
A22: 2024 | B22: 48215 | C22: 482 | D22: C | E22: 15 | F22: Contributions / Fundraising (restricted) | G22: 0 | H22: 0 | I22: 0 | J22: C15
A23: 2024 | B23: 48215b | C23: 482 | D23: C | E23: 15b | F23: Contributions / Fundraising (unrestricted) | G23: 54 | H23: 119981 | I23: 120035 | J23: C15b
A24: 2024 | B24: 48216 | C24: 482 | D24: C | E24: 16 | F24: Interest / Investment Income (restricted) | G24: 0 | H24: 0 | I24: 0 | J24: C16
A25: 2024 | B25: 48216a | C25: 482 | D25: C | E25: 16a | F25: Interest / Investment Income (unrestricted) | G25: 65336 | H25: 150922 | I25: 216258 | J25: C16a
A26: 2024 | B26: 48217 | C26: 482 | D26: C | E26: 17 | F26: Rental Income | G26: 0 | H26: 0 | I26: 0 | J26: C17
A27: 2024 | B27: 48218 | C27: 482 | D27: C | E27: 18 | F27: Loan Forgiveness or Other Reimbursement | G27: 0 | H27: 0 | I27: 0 | J27: C18
A28: 2024 | B28: 48219 | C28: 482 | D28: C | E28: 19 | F28: Miscellaneous Income | G28: 0 | H28: 0 | I28: 0 | J28: C19
A29: 2024 | B29: 48220 | C29: 482 | D29: C | E29: 20 | F29: TOTAL REVENUES | G29: 6268189 | H29: 170903 | I29: 6439092 | J29: C20
A30: 2024 | B30: 48221 | C30: 482 | D30: C | E30: 21 | F30: Administration | G30: 600539.64 | H30: 0 | I30: 600539.64 | J30: C21
A31: 2024 | B31: 48222 | C31: 482 | D31: C | E31: 22 | F31: Instructional Services | G31: 3558680.37 | H31: 0 | I31: 3558680.37 | J31: C22
A32: 2024 | B32: 48223 | C32: 482 | D32: C | E32: 23 | F32: Pupil Services | G32: 216055.49 | H32: 0 | I32: 216055.49 | J32: C23
A33: 2024 | B33: 48224 | C33: 482 | D33: C | E33: 24 | F33: Operation & Maintenance of Plant | G33: 227465.63 | H33: 0 | I33: 227465.63 | J33: C24
A34: 2024 | B34: 48225 | C34: 482 | D34: C | E34: 25 | F34: Fixed Charges | G34: 1217111.65 | H34: 0 | I34: 1217111.65 | J34: C25
A35: 2024 | B35: 48226 | C35: 482 | D35: C | E35: 26 | F35: Community Services | G35: 0 | H35: 0 | I35: 0 | J35: C26
A36: 2024 | B36: 48227 | C36: 482 | D36: C | E36: 27 | F36: Non-Operating Financing Expenses | G36: 350313.53 | H36: 0 | I36: 350313.53 | J36: C27
A37: 2024 | B37: 48228 | C37: 482 | D37: C | E37: 28 | F37: Component Unit Expenses | G37: 0 | H37: 142684 | I37: 142684 | J37: C28
A38: 2024 | B38: 48229 | C38: 482 | D38: C | E38: 29 | F38: Contributions to School | G38: 0 | H38: 0 | I38: 0 | J38: C29
A39: 2024 | B39: 48230 | C39: 482 | D39: C | E39: 30 | F39: TOTAL EXPENSES | G39: 6170166.31 | H39: 142684 | I39: 6312850.31 | J39: C30
A40: 2024 | B40: 48231 | C40: 482 | D40: C | E40: 31 | F40: TOTAL GAIN/(LOSS) | G40: 98022.69 | H40: 28219 | I40: 126241.69 | J40: C31
A41: 2024 | B41: 48232 | C41: 482 | D41: C | E41: 32 | F41: Gain/Loss on Sale of Asset or Lease Transaction | G41: 0 | H41: 0 | I41: 0 | J41: C32
A42: 2024 | B42: 48233 | C42: 482 | D42: C | E42: 33 | F42: Other Gain/Loss | G42: 0 | H42: 0 | I42: 0 | J42: C33
A43: 2024 | B43: 48234 | C43: 482 | D43: C | E43: 34 | F43: TOTAL CHANGES IN NET ASSETS: | G43: 98022.69 | H43: 28219 | I43: 126241.69 | J43: C34
A44: 2024 | B44: 48235 | C44: 482 | D44: C | E44: 35 | F44: NET ASSETS AT BEGINNING OF YEAR | G44: 2680729 | H44: 598470 | I44: 3279199 | J44: C35
A45: 2024 | B45: 48236 | C45: 482 | D45: C | E45: 36 | F45: NET ASSETS AT END OF YEAR | G45: 2778752 | H45: 626689 | I45: 3405441 | J45: C36
A46: 2024 | B46: 48901 | C46: 489 | D46: C | E46: 01 | F46: Tuition | G46: 17652260 | H46: 0 | I46: 17652260 | J46: C01
A47: 2024 | B47: 4892a | C47: 489 | D47: C | E47: 2a | F47: Grants - State - passed through DESE | G47: 0 | H47: 0 | I47: 0 | J47: C2a
A48: 2024 | B48: 4892b | C48: 489 | D48: C | E48: 2b | F48: Grants - State - other non-DESE pass-through | G48: 0 | H48: 0 | I48: 0 | J48: C2b
A49: 2024 | B49: 48903 | C49: 489 | D49: C | E49: 03 | F49: Grants - Federal - Passed through DESE | G49: 278840 | H49: 0 | I49: 278840 | J49: C03
A50: 2024 | B50: 48904 | C50: 489 | D50: C | E50: 04 | F50: Grants - Federal - Direct or other pass-through | G50: 0 | H50: 0 | I50: 0 | J50: C04
A51: 2024 | B51: 4895a | C51: 489 | D51: C | E51: 5a | F51: Grants - Private (restricted) | G51: 0 | H51: 0 | I51: 0 | J51: C5a
A52: 2024 | B52: 4895b | C52: 489 | D52: C | E52: 5b | F52: Grants - Private (unrestricted) | G52: 9838 | H52: 19282 | I52: 29120 | J52: C5b
A53: 2024 | B53: 48906 | C53: 489 | D53: C | E53: 06 | F53: Nutrition Funding - State | G53: 0 | H53: 0 | I53: 0 | J53: C06
A54: 2024 | B54: 48907 | C54: 489 | D54: C | E54: 07 | F54: Nutrition Funding - Federal | G54: 0 | H54: 0 | I54: 0 | J54: C07
A55: 2024 | B55: 48908 | C55: 489 | D55: C | E55: 08 | F55: Nutrition Funding - Fees | G55: 0 | H55: 0 | I55: 0 | J55: C08
A56: 2024 | B56: 48909 | C56: 489 | D56: C | E56: 09 | F56: Other Program / Student Activity Fees | G56: 67936 | H56: 61152 | I56: 129088 | J56: C09
A57: 2024 | B57: 48910 | C57: 489 | D57: C | E57: 10 | F57: Regional Transportation Aid | G57: 0 | H57: 0 | I57: 0 | J57: C10
A58: 2024 | B58: 48911 | C58: 489 | D58: C | E58: 11 | F58: Medicaid Reimbursements | G58: 0 | H58: 0 | I58: 0 | J58: C11
A59: 2024 | B59: 48912 | C59: 489 | D59: C | E59: 12 | F59: Circuit Breaker Reimbursements | G59: 0 | H59: 0 | I59: 0 | J59: C12
A60: 2024 | B60: 48913a | C60: 489 | D60: C | E60: 13a | F60: Contributions, in-kind, host district | G60: 0 | H60: 0 | I60: 0 | J60: C13a
A61: 2024 | B61: 48913b | C61: 489 | D61: C | E61: 13b | F61: Contributions, in-kind, other | G61: 0 | H61: 0 | I61: 0 | J61: C13b
A62: 2024 | B62: 48913c | C62: 489 | D62: C | E62: 13c | F62: Contributions, on-behalf, pension | G62: 2780191 | H62: 0 | I62: 2780191 | J62: C13c
A63: 2024 | B63: 48914 | C63: 489 | D63: C | E63: 14 | F63: Contributions, from Component Unit (restricted) | G63: 0 | H63: 0 | I63: 0 | J63: C14
A64: 2024 | B64: 48914b | C64: 489 | D64: C | E64: 14b | F64: Contributions, from Component Unit (unrestricted) | G64: 0 | H64: 0 | I64: 0 | J64: C14b
A65: 2024 | B65: 48915 | C65: 489 | D65: C | E65: 15 | F65: Contributions / Fundraising (restricted) | G65: 0 | H65: 0 | I65: 0 | J65: C15
A66: 2024 | B66: 48915b | C66: 489 | D66: C | E66: 15b | F66: Contributions / Fundraising (unrestricted) | G66: 0 | H66: 0 | I66: 0 | J66: C15b
A67: 2024 | B67: 48916 | C67: 489 | D67: =VLOOKUP(C67, TYPE,3, FALSE) -> C | E67: 16 | F67: Interest / Investment Income (restricted) | G67: 0 | H67: 0 | I67: 0 | J67: C16
A68: 2024 | B68: =C68&E68 -> 48916a | C68: 489 | D68: C | E68: 16a | F68: Interest / Investment Income (unrestricted) | G68: 94823 | H68: 67130 | I68: 161953 | J68: =D68&E68 -> C16a
A69: 2024 | B69: 48917 | C69: 489 | D69: C | E69: 17 | F69: Rental Income | G69: 0 | H69: 1823330 | I69: 1823330 | J69: C17
A70: 2024 | B70: 48918 | C70: 489 | D70: C | E70: 18 | F70: Loan Forgiveness or Other Reimbursement | G70: 0 | H70: 0 | I70: 0 | J70: C18
A71: 2024 | B71: 48919 | C71: 489 | D71: C | E71: 19 | F71: Miscellaneous Income | G71: 0 | H71: 0 | I71: 0 | J71: C19
A72: 2024 | B72: 48920 | C72: 489 | D72: C | E72: 20 | F72: TOTAL REVENUES | G72: 20883888 | H72: 1970894 | I72: 22854782 | J72: C20
A73: 2024 | B73: 48921 | C73: 489 | D73: C | E73: 21 | F73: Administration | G73: 1060821.069 | H73: 0 | I73: 1060821.069 | J73: C21
A74: 2024 | B74: 48922 | C74: 489 | D74: C | E74: 22 | F74: Instructional Services | G74: 11735651.56 | H74: 0 | I74: 11735651.56 | J74: C22
A75: 2024 | B75: 48923 | C75: 489 | D75: C | E75: 23 | F75: Pupil Services | G75: 667794.33 | H75: 0 | I75: 667794.33 | J75: C23
A76: 2024 | B76: 48924 | C76: 489 | D76: C | E76: 24 | F76: Operation & Maintenance of Plant | G76: 807248.99 | H76: 0 | I76: 807248.99 | J76: C24
A77: 2024 | B77: 48925 | C77: 489 | D77: C | E77: 25 | F77: Fixed Charges | G77: 4774618 | H77: 0 | I77: 4774618 | J77: C25
A78: 2024 | B78: 48926 | C78: 489 | D78: C | E78: 26 | F78: Community Services | G78: 0 | H78: 0 | I78: 0 | J78: C26
A79: 2024 | B79: 48927 | C79: 489 | D79: C | E79: 27 | F79: Non-Operating Financing Expenses | G79: 1826780 | H79: 0 | I79: 1826780 | J79: C27
A80: 2024 | B80: 48928 | C80: 489 | D80: C | E80: 28 | F80: Component Unit Expenses | G80: 0 | H80: 834022 | I80: 834022 | J80: C28
A81: 2024 | B81: 48929 | C81: 489 | D81: C | E81: 29 | F81: Contributions to School | G81: 0 | H81: 0 | I81: 0 | J81: C29
A82: 2024 | B82: 48930 | C82: 489 | D82: C | E82: 30 | F82: TOTAL EXPENSES | G82: 20872913.95 | H82: 834022 | I82: 21706935.95 | J82: C30
A83: 2024 | B83: 48931 | C83: 489 | D83: C | E83: 31 | F83: TOTAL GAIN/(LOSS) | G83: 10974.0512 | H83: 1136872 | I83: 1147846.051 | J83: C31
A84: 2024 | B84: 48932 | C84: 489 | D84: C | E84: 32 | F84: Gain/Loss on Sale of Asset or Lease Transaction | G84: 0 | H84: 0 | I84: 0 | J84: C32
A85: 2024 | B85: 48933 | C85: 489 | D85: C | E85: 33 | F85: Other Gain/Loss | G85: 0 | H85: 0 | I85: 0 | J85: C33
A86: 2024 | B86: 48934 | C86: 489 | D86: C | E86: 34 | F86: TOTAL CHANGES IN NET ASSETS: | G86: 10974.0512 | H86: 1136872 | I86: 1147846.051 | J86: C34
A87: 2024 | B87: 48935 | C87: 489 | D87: C | E87: 35 | F87: NET ASSETS AT BEGINNING OF YEAR | G87: 1556025 | H87: 11101619 | I87: 12657644 | J87: C35
A88: 2024 | B88: 48936 | C88: 489 | D88: C | E88: 36 | F88: NET ASSETS AT END OF YEAR | G88: 1566999 | H88: 12238491 | I88: 13805490 | J88: C36
A89: 2024 | B89: 40901 | C89: 409 | D89: C | E89: 01 | F89: Tuition | G89: 19639509 | H89: 0 | I89: 19639509 | J89: C01
A90: 2024 | B90: 4092a | C90: 409 | D90: C | E90: 2a | F90: Grants - State - passed through DESE | G90: 0 | H90: 0 | I90: 0 | J90: C2a
A91: 2024 | B91: 4092b | C91: 409 | D91: C | E91: 2b | F91: Grants - State - other non-DESE pass-through | G91: 0 | H91: 0 | I91: 0 | J91: C2b
A92: 2024 | B92: 40903 | C92: 409 | D92: C | E92: 03 | F92: Grants - Federal - Passed through DESE | G92: 2475193 | H92: 0 | I92: 2475193 | J92: C03
A93: 2024 | B93: 40904 | C93: 409 | D93: C | E93: 04 | F93: Grants - Federal - Direct or other pass-through | G93: 0 | H93: 0 | I93: 0 | J93: C04
A94: 2024 | B94: 4095a | C94: 409 | D94: C | E94: 5a | F94: Grants - Private (restricted) | G94: 0 | H94: 0 | I94: 0 | J94: C5a
A95: 2024 | B95: 4095b | C95: 409 | D95: C | E95: 5b | F95: Grants - Private (unrestricted) | G95: 0 | H95: 0 | I95: 0 | J95: C5b
A96: 2024 | B96: 40906 | C96: 409 | D96: C | E96: 06 | F96: Nutrition Funding - State | G96: 0 | H96: 0 | I96: 0 | J96: C06
A97: 2024 | B97: 40907 | C97: 409 | D97: C | E97: 07 | F97: Nutrition Funding - Federal | G97: 0 | H97: 0 | I97: 0 | J97: C07
A98: 2024 | B98: 40908 | C98: 409 | D98: C | E98: 08 | F98: Nutrition Funding - Fees | G98: 0 | H98: 0 | I98: 0 | J98: C08
A99: 2024 | B99: 40909 | C99: 409 | D99: C | E99: 09 | F99: Other Program / Student Activity Fees | G99: 2395.95 | H99: 0 | I99: 2395.95 | J99: C09
A100: 2024 | B100: 40910 | C100: 409 | D100: C | E100: 10 | F100: Regional Transportation Aid | G100: 0 | H100: 0 | I100: 0 | J100: C10
A101: 2024 | B101: 40911 | C101: 409 | D101: C | E101: 11 | F101: Medicaid Reimbursements | G101: 0 | H101: 0 | I101: 0 | J101: C11
A102: 2024 | B102: 40912 | C102: 409 | D102: C | E102: 12 | F102: Circuit Breaker Reimbursements | G102: 0 | H102: 0 | I102: 0 | J102: C12
A103: 2024 | B103: 40913a | C103: 409 | D103: C | E103: 13a | F103: Contributions, in-kind, host district | G103: 3082999 | H103: 0 | I103: 3082999 | J103: C13a
A104: 2024 | B104: 40913b | C104: 409 | D104: C | E104: 13b | F104: Contributions, in-kind, other | G104: 0 | H104: 0 | I104: 0 | J104: C13b
A105: 2024 | B105: 40913c | C105: 409 | D105: C | E105: 13c | F105: Contributions, on-behalf, pension | G105: 1951211 | H105: 0 | I105: 1951211 | J105: C13c
A106: 2024 | B106: 40914 | C106: 409 | D106: C | E106: 14 | F106: Contributions, from Component Unit (restricted) | G106: 143041.05 | H106: 0 | I106: 143041.05 | J106: C14
A107: 2024 | B107: 40914b | C107: 409 | D107: C | E107: 14b | F107: Contributions, from Component Unit (unrestricted) | G107: 240991.39 | H107: 619053 | I107: 860044.39 | J107: C14b
A108: 2024 | B108: 40915 | C108: 409 | D108: C | E108: 15 | F108: Contributions / Fundraising (restricted) | G108: 6270 | H108: 189510 | I108: 195780 | J108: C15
A109: 2024 | B109: 40915b | C109: 409 | D109: C | E109: 15b | F109: Contributions / Fundraising (unrestricted) | G109: 0 | H109: 240991 | I109: 240991 | J109: C15b
A110: 2024 | B110: 40916 | C110: 409 | D110: C | E110: 16 | F110: Interest / Investment Income (restricted) | G110: 0 | H110: 0 | I110: 0 | J110: C16
A111: 2024 | B111: 40916a | C111: 409 | D111: C | E111: 16a | F111: Interest / Investment Income (unrestricted) | G111: 111081.42 | H111: 119559 | I111: 230640.42 | J111: C16a
A112: 2024 | B112: 40917 | C112: 409 | D112: C | E112: 17 | F112: Rental Income | G112: 0 | H112: 1701053 | I112: 1701053 | J112: C17
A113: 2024 | B113: 40918 | C113: 409 | D113: C | E113: 18 | F113: Loan Forgiveness or Other Reimbursement | G113: 0 | H113: 0 | I113: 0 | J113: C18
A114: 2024 | B114: 40919 | C114: 409 | D114: C | E114: 19 | F114: Miscellaneous Income | G114: 90623.1 | H114: 0 | I114: 90623.1 | J114: C19
A115: 2024 | B115: 40920 | C115: 409 | D115: C | E115: 20 | F115: TOTAL REVENUES | G115: 27743314.91 | H115: 2870166 | I115: 30613480.91 | J115: C20
A116: 2024 | B116: 40921 | C116: 409 | D116: C | E116: 21 | F116: Administration | G116: 2067698.43 | H116: 0 | I116: 2067698.43 | J116: C21
A117: 2024 | B117: 40922 | C117: 409 | D117: C | E117: 22 | F117: Instructional Services | G117: 13007223.38 | H117: 0 | I117: 13007223.38 | J117: C22
A118: 2024 | B118: 40923 | C118: 409 | D118: C | E118: 23 | F118: Pupil Services | G118: 3820215.3 | H118: 0 | I118: 3820215.3 | J118: C23
A119: 2024 | B119: 40924 | C119: 409 | D119: C | E119: 24 | F119: Operation & Maintenance of Plant | G119: 1175118.03 | H119: 0 | I119: 1175118.03 | J119: C24
A120: 2024 | B120: 40925 | C120: 409 | D120: C | E120: 25 | F120: Fixed Charges | G120: 3576088.38 | H120: 0 | I120: 3576088.38 | J120: C25
A121: 2024 | B121: 40926 | C121: 409 | D121: C | E121: 26 | F121: Community Services | G121: 0 | H121: 0 | I121: 0 | J121: C26
A122: 2024 | B122: 40927 | C122: 409 | D122: C | E122: 27 | F122: Non-Operating Financing Expenses | G122: 3154429.27 | H122: 0 | I122: 3154429.27 | J122: C27
A123: 2024 | B123: 40928 | C123: 409 | D123: C | E123: 28 | F123: Component Unit Expenses | G123: 0 | H123: 2199933 | I123: 2199933 | J123: C28
A124: 2024 | B124: 40929 | C124: 409 | D124: C | E124: 29 | F124: Contributions to School | G124: 0 | H124: 0 | I124: 0 | J124: C29
A125: 2024 | B125: 40930 | C125: 409 | D125: C | E125: 30 | F125: TOTAL EXPENSES | G125: 26800772.79 | H125: 2199933 | I125: 29000705.79 | J125: C30
A126: 2024 | B126: 40931 | C126: 409 | D126: C | E126: 31 | F126: TOTAL GAIN/(LOSS) | G126: 942542.12 | H126: 670233 | I126: 1612775.12 | J126: C31
A127: 2024 | B127: 40932 | C127: 409 | D127: C | E127: 32 | F127: Gain/Loss on Sale of Asset or Lease Transaction | G127: 0 | H127: 0 | I127: 0 | J127: C32
A128: 2024 | B128: 40933 | C128: 409 | D128: C | E128: 33 | F128: Other Gain/Loss | G128: 0 | H128: 0 | I128: 0 | J128: C33
A129: 2024 | B129: 40934 | C129: 409 | D129: C | E129: 34 | F129: TOTAL CHANGES IN NET ASSETS: | G129: 942542.12 | H129: 670233 | I129: 1612775.12 | J129: C34
A130: 2024 | B130: 40935 | C130: 409 | D130: C | E130: 35 | F130: NET ASSETS AT BEGINNING OF YEAR | G130: 7393239 | H130: 7609427 | I130: 15002666 | J130: C35
A131: 2024 | B131: 40936 | C131: 409 | D131: =VLOOKUP(C131, TYPE,3, FALSE) -> C | E131: 36 | F131: NET ASSETS AT END OF YEAR | G131: 8335781 | H131: 8279660 | I131: 16615441 | J131: C36
A132: 2024 | B132: =C132&E132 -> 41401 | C132: 414 | D132: C | E132: 01 | F132: Tuition | G132: 7044647 | H132: 0 | I132: 7044647 | J132: =D132&E132 -> C01
A133: 2024 | B133: 4142a | C133: 414 | D133: C | E133: 2a | F133: Grants - State - passed through DESE | G133: 135532 | H133: 0 | I133: 135532 | J133: C2a
A134: 2024 | B134: 4142b | C134: 414 | D134: C | E134: 2b | F134: Grants - State - other non-DESE pass-through | G134: 127610 | H134: 0 | I134: 127610 | J134: C2b
A135: 2024 | B135: 41403 | C135: 414 | D135: C | E135: 03 | F135: Grants - Federal - Passed through DESE | G135: 729706 | H135: 0 | I135: 729706 | J135: C03
A136: 2024 | B136: 41404 | C136: 414 | D136: C | E136: 04 | F136: Grants - Federal - Direct or other pass-through | G136: 0 | H136: 0 | I136: 0 | J136: C04
A137: 2024 | B137: 4145a | C137: 414 | D137: C | E137: 5a | F137: Grants - Private (restricted) | G137: 116432 | H137: 6250 | I137: 122682 | J137: C5a
A138: 2024 | B138: 4145b | C138: 414 | D138: C | E138: 5b | F138: Grants - Private (unrestricted) | G138: 0 | H138: 0 | I138: 0 | J138: C5b
A139: 2024 | B139: 41406 | C139: 414 | D139: C | E139: 06 | F139: Nutrition Funding - State | G139: 56788.5 | H139: 0 | I139: 56788.5 | J139: C06
A140: 2024 | B140: 41407 | C140: 414 | D140: C | E140: 07 | F140: Nutrition Funding - Federal | G140: 216994 | H140: 0 | I140: 216994 | J140: C07
A141: 2024 | B141: 41408 | C141: 414 | D141: C | E141: 08 | F141: Nutrition Funding - Fees | G141: 5702 | H141: 0 | I141: 5702 | J141: C08
A142: 2024 | B142: 41409 | C142: 414 | D142: C | E142: 09 | F142: Other Program / Student Activity Fees | G142: 14467 | H142: 0 | I142: 14467 | J142: C09
A143: 2024 | B143: 41410 | C143: 414 | D143: C | E143: 10 | F143: Regional Transportation Aid | G143: 424360 | H143: 0 | I143: 424360 | J143: C10
A144: 2024 | B144: 41411 | C144: 414 | D144: C | E144: 11 | F144: Medicaid Reimbursements | G144: 0 | H144: 0 | I144: 0 | J144: C11
A145: 2024 | B145: 41412 | C145: 414 | D145: C | E145: 12 | F145: Circuit Breaker Reimbursements | G145: 0 | H145: 0 | I145: 0 | J145: C12
A146: 2024 | B146: 41413a | C146: 414 | D146: C | E146: 13a | F146: Contributions, in-kind, host district | G146: 94986 | H146: 0 | I146: 94986 | J146: C13a
A147: 2024 | B147: 41413b | C147: 414 | D147: C | E147: 13b | F147: Contributions, in-kind, other | G147: 0 | H147: 0 | I147: 0 | J147: C13b
A148: 2024 | B148: 41413c | C148: 414 | D148: C | E148: 13c | F148: Contributions, on-behalf, pension | G148: 998028 | H148: 0 | I148: 998028 | J148: C13c
A149: 2024 | B149: 41414 | C149: 414 | D149: C | E149: 14 | F149: Contributions, from Component Unit (restricted) | G149: 0 | H149: 0 | I149: 0 | J149: C14
A150: 2024 | B150: 41414b | C150: 414 | D150: C | E150: 14b | F150: Contributions, from Component Unit (unrestricted) | G150: 0 | H150: 0 | I150: 0 | J150: C14b
A151: 2024 | B151: 41415 | C151: 414 | D151: C | E151: 15 | F151: Contributions / Fundraising (restricted) | G151: 0 | H151: 0 | I151: 0 | J151: C15
A152: 2024 | B152: 41415b | C152: 414 | D152: C | E152: 15b | F152: Contributions / Fundraising (unrestricted) | G152: 55310 | H152: 89408 | I152: 144718 | J152: C15b
A153: 2024 | B153: 41416 | C153: 414 | D153: C | E153: 16 | F153: Interest / Investment Income (restricted) | G153: 0 | H153: 0 | I153: 0 | J153: C16
A154: 2024 | B154: 41416a | C154: 414 | D154: C | E154: 16a | F154: Interest / Investment Income (unrestricted) | G154: 19625 | H154: 52072 | I154: 71697 | J154: C16a
A155: 2024 | B155: 41417 | C155: 414 | D155: C | E155: 17 | F155: Rental Income | G155: 0 | H155: 0 | I155: 0 | J155: C17
A156: 2024 | B156: 41418 | C156: 414 | D156: C | E156: 18 | F156: Loan Forgiveness or Other Reimbursement | G156: 0 | H156: 0 | I156: 0 | J156: C18
A157: 2024 | B157: 41419 | C157: 414 | D157: C | E157: 19 | F157: Miscellaneous Income | G157: 0 | H157: 0 | I157: 0 | J157: C19
A158: 2024 | B158: 41420 | C158: 414 | D158: C | E158: 20 | F158: TOTAL REVENUES | G158: 10040187.5 | H158: 147730 | I158: 10187917.5 | J158: C20
A159: 2024 | B159: 41421 | C159: 414 | D159: C | E159: 21 | F159: Administration | G159: 1175329.36 | H159: 0 | I159: 1175329.36 | J159: C21
A160: 2024 | B160: 41422 | C160: 414 | D160: C | E160: 22 | F160: Instructional Services | G160: 4661400.9 | H160: 0 | I160: 4661400.9 | J160: C22
A161: 2024 | B161: 41423 | C161: 414 | D161: C | E161: 23 | F161: Pupil Services | G161: 1163055.28 | H161: 0 | I161: 1163055.28 | J161: C23
A162: 2024 | B162: 41424 | C162: 414 | D162: C | E162: 24 | F162: Operation & Maintenance of Plant | G162: 467652.79 | H162: 0 | I162: 467652.79 | J162: C24
A163: 2024 | B163: 41425 | C163: 414 | D163: C | E163: 25 | F163: Fixed Charges | G163: 1820301.32 | H163: 0 | I163: 1820301.32 | J163: C25
A164: 2024 | B164: 41426 | C164: 414 | D164: C | E164: 26 | F164: Community Services | G164: 0 | H164: 0 | I164: 0 | J164: C26
A165: 2024 | B165: 41427 | C165: 414 | D165: C | E165: 27 | F165: Non-Operating Financing Expenses | G165: 591760 | H165: 0 | I165: 591760 | J165: C27
A166: 2024 | B166: 41428 | C166: 414 | D166: C | E166: 28 | F166: Component Unit Expenses | G166: 0 | H166: 187411 | I166: 187411 | J166: C28
A167: 2024 | B167: 41429 | C167: 414 | D167: C | E167: 29 | F167: Contributions to School | G167: 0 | H167: 0 | I167: 0 | J167: C29
A168: 2024 | B168: 41430 | C168: 414 | D168: C | E168: 30 | F168: TOTAL EXPENSES | G168: 9879499.65 | H168: 187411 | I168: 10066910.65 | J168: C30
A169: 2024 | B169: 41431 | C169: 414 | D169: C | E169: 31 | F169: TOTAL GAIN/(LOSS) | G169: 160687.85 | H169: -39681 | I169: 121006.85 | J169: C31
A170: 2024 | B170: 41432 | C170: 414 | D170: C | E170: 32 | F170: Gain/Loss on Sale of Asset or Lease Transaction | G170: 0 | H170: 0 | I170: 0 | J170: C32
A171: 2024 | B171: 41433 | C171: 414 | D171: C | E171: 33 | F171: Other Gain/Loss | G171: 0 | H171: -6250 | I171: -6250 | J171: C33
A172: 2024 | B172: 41434 | C172: 414 | D172: C | E172: 34 | F172: TOTAL CHANGES IN NET ASSETS: | G172: 160687.85 | H172: -45931 | I172: 114756.85 | J172: C34
A173: 2024 | B173: 41435 | C173: 414 | D173: C | E173: 35 | F173: NET ASSETS AT BEGINNING OF YEAR | G173: 4849346 | H173: -702749 | I173: 4146597 | J173: C35
A174: 2024 | B174: 41436 | C174: 414 | D174: C | E174: 36 | F174: NET ASSETS AT END OF YEAR | G174: 5010034 | H174: -748680 | I174: 4261354 | J174: C36
A175: 2024 | B175: 41801 | C175: 418 | D175: C | E175: 01 | F175: Tuition | G175: 5575043 | H175: 0 | I175: 5575043 | J175: C01
A176: 2024 | B176: 4182a | C176: 418 | D176: C | E176: 2a | F176: Grants - State - passed through DESE | G176: 0 | H176: 0 | I176: 0 | J176: C2a
A177: 2024 | B177: 4182b | C177: 418 | D177: C | E177: 2b | F177: Grants - State - other non-DESE pass-through | G177: 0 | H177: 0 | I177: 0 | J177: C2b
A178: 2024 | B178: 41803 | C178: 418 | D178: C | E178: 03 | F178: Grants - Federal - Passed through DESE | G178: 505386 | H178: 0 | I178: 505386 | J178: C03
A179: 2024 | B179: 41804 | C179: 418 | D179: C | E179: 04 | F179: Grants - Federal - Direct or other pass-through | G179: 0 | H179: 0 | I179: 0 | J179: C04
A180: 2024 | B180: 4185a | C180: 418 | D180: C | E180: 5a | F180: Grants - Private (restricted) | G180: 0 | H180: 0 | I180: 0 | J180: C5a
A181: 2024 | B181: 4185b | C181: 418 | D181: C | E181: 5b | F181: Grants - Private (unrestricted) | G181: 0 | H181: 0 | I181: 0 | J181: C5b
A182: 2024 | B182: 41806 | C182: 418 | D182: C | E182: 06 | F182: Nutrition Funding - State | G182: 183674 | H182: 0 | I182: 183674 | J182: C06
A183: 2024 | B183: 41807 | C183: 418 | D183: C | E183: 07 | F183: Nutrition Funding - Federal | G183: 0 | H183: 0 | I183: 0 | J183: C07
A184: 2024 | B184: 41808 | C184: 418 | D184: C | E184: 08 | F184: Nutrition Funding - Fees | G184: 0 | H184: 0 | I184: 0 | J184: C08
A185: 2024 | B185: 41809 | C185: 418 | D185: C | E185: 09 | F185: Other Program / Student Activity Fees | G185: 57155 | H185: 0 | I185: 57155 | J185: C09
A186: 2024 | B186: 41810 | C186: 418 | D186: C | E186: 10 | F186: Regional Transportation Aid | G186: 0 | H186: 0 | I186: 0 | J186: C10
A187: 2024 | B187: 41811 | C187: 418 | D187: C | E187: 11 | F187: Medicaid Reimbursements | G187: 5380 | H187: 0 | I187: 5380 | J187: C11
A188: 2024 | B188: 41812 | C188: 418 | D188: C | E188: 12 | F188: Circuit Breaker Reimbursements | G188: 0 | H188: 0 | I188: 0 | J188: C12
A189: 2024 | B189: 41813a | C189: 418 | D189: C | E189: 13a | F189: Contributions, in-kind, host district | G189: 170775 | H189: 0 | I189: 170775 | J189: C13a
A190: 2024 | B190: 41813b | C190: 418 | D190: C | E190: 13b | F190: Contributions, in-kind, other | G190: 0 | H190: 0 | I190: 0 | J190: C13b
A191: 2024 | B191: 41813c | C191: 418 | D191: C | E191: 13c | F191: Contributions, on-behalf, pension | G191: 997772 | H191: 0 | I191: 997772 | J191: C13c
A192: 2024 | B192: 41814 | C192: 418 | D192: C | E192: 14 | F192: Contributions, from Component Unit (restricted) | G192: 0 | H192: 0 | I192: 0 | J192: C14
A193: 2024 | B193: 41814b | C193: 418 | D193: C | E193: 14b | F193: Contributions, from Component Unit (unrestricted) | G193: 7024 | H193: 0 | I193: 7024 | J193: C14b
A194: 2024 | B194: 41815 | C194: 418 | D194: C | E194: 15 | F194: Contributions / Fundraising (restricted) | G194: 0 | H194: 0 | I194: 0 | J194: C15
A195: 2024 | B195: 41815b | C195: 418 | D195: =VLOOKUP(C195, TYPE,3, FALSE) -> C | E195: 15b | F195: Contributions / Fundraising (unrestricted) | G195: 29154 | H195: 7024 | I195: 36178 | J195: C15b
A196: 2024 | B196: =C196&E196 -> 41816 | C196: 418 | D196: C | E196: 16 | F196: Interest / Investment Income (restricted) | G196: 0 | H196: 0 | I196: 0 | J196: =D196&E196 -> C16
A197: 2024 | B197: 41816a | C197: 418 | D197: C | E197: 16a | F197: Interest / Investment Income (unrestricted) | G197: 3361 | H197: 0 | I197: 3361 | J197: C16a
A198: 2024 | B198: 41817 | C198: 418 | D198: C | E198: 17 | F198: Rental Income | G198: 0 | H198: 619271 | I198: 619271 | J198: C17
A199: 2024 | B199: 41818 | C199: 418 | D199: C | E199: 18 | F199: Loan Forgiveness or Other Reimbursement | G199: 0 | H199: 0 | I199: 0 | J199: C18
A200: 2024 | B200: 41819 | C200: 418 | D200: C | E200: 19 | F200: Miscellaneous Income | G200: 45277 | H200: 53459 | I200: 98736 | J200: C19
... 3328 more rows

Sheet FE24 (hidden)
A1: Return to Index | B1: 1 | C1: 2 | D1: 3 | E1: 4 | F1: 5 | G1: 6 | H1: 7 | I1: 8 | J1: 9 | K1: 10 | L1: 11 | M1: 12 | N1: 13 | O1: 14 | P1: 15 | Q1: 16 | R1: 17 | S1: 18 | T1: 19 | U1: 20 | V1: 21
A2: FY | B2: vlookup | C2: cha_code | D2: cha_type | E2: FuncExp_id | F2: Line_Desc | G2: General Education | H2: Special Education | I2: Undistributed (not assigned to a program) | J2: State Grants & Nutrition Reimbursement | K2: State Coronavirus Prevention Fund | L2: Charter School Program FC 532 or 534 | M2: ESSER 1 FC 113 | N2: ESSER II FC115 | O2: ESSER III FC 119 | P2: ESSER SEA Reserve Grants | Q2: GEER Funded Grants | R2: CvRF FC 102 and CvRF School Nutrition | S2: CvRF RLTE FC118 | T2: All Other Federal Grants & Nutrition Reimbursement | U2: Private Grants & Contributions | V2: TOTAL
A3: 2024 | B3: =C3&E3 -> 482100 | C3: 482 | D3: =VLOOKUP(C3, TYPE, 3, FALSE) -> C | E3: 100 | F3: Administration | G3: 0 | H3: 0 | I3: 600539.64 | J3: 0 | K3: 0 | L3: 0 | M3: 0 | N3: 0 | O3: 0 | P3: 0 | Q3: 0 | R3: 0 | S3: 0 | T3: 0 | U3: 0 | V3: 600539.64 | W3: =D3&E3 -> C100
A4: 2024 | B4: =C4&E4 -> 482110 | C4: 482 | D4: C | E4: 110 | F4: Subtotal - Board of Trustees | G4: 0 | H4: 0 | I4: 0 | J4: 0 | K4: 0 | L4: 0 | M4: 0 | N4: 0 | O4: 0 | P4: 0 | Q4: 0 | R4: 0 | S4: 0 | T4: 0 | U4: 0 | V4: 0 | W4: =D4&E4 -> C110
A5: 2024 | B5: 482111 | C5: 482 | D5: C | E5: 111 | F5: Contracted Services | G5: 0 | H5: 0 | I5: 0 | J5: 0 | K5: 0 | L5: 0 | M5: 0 | N5: 0 | O5: 0 | P5: 0 | Q5: 0 | R5: 0 | S5: 0 | T5: 0 | U5: 0 | V5: 0 | W5: C111
A6: 2024 | B6: 482112 | C6: 482 | D6: C | E6: 112 | F6: Travel and other expenses | G6: 0 | H6: 0 | I6: 0 | J6: 0 | K6: 0 | L6: 0 | M6: 0 | N6: 0 | O6: 0 | P6: 0 | Q6: 0 | R6: 0 | S6: 0 | T6: 0 | U6: 0 | V6: 0 | W6: C112
A7: 2024 | B7: 482120 | C7: 482 | D7: C | E7: 120 | F7: Subtotal - School Leaders | G7: 0 | H7: 0 | I7: 177752.65 | J7: 0 | K7: 0 | L7: 0 | M7: 0 | N7: 0 | O7: 0 | P7: 0 | Q7: 0 | R7: 0 | S7: 0 | T7: 0 | U7: 0 | V7: 177752.65 | W7: C120
A8: 2024 | B8: 482121 | C8: 482 | D8: C | E8: 121 | F8: Salaries - Professional | G8: 0 | H8: 0 | I8: 177752.65 | J8: 0 | K8: 0 | L8: 0 | M8: 0 | N8: 0 | O8: 0 | P8: 0 | Q8: 0 | R8: 0 | S8: 0 | T8: 0 | U8: 0 | V8: 177752.65 | W8: C121
A9: 2024 | B9: 482122 | C9: 482 | D9: C | E9: 122 | F9: Contracted Services | G9: 0 | H9: 0 | I9: 0 | J9: 0 | K9: 0 | L9: 0 | M9: 0 | N9: 0 | O9: 0 | P9: 0 | Q9: 0 | R9: 0 | S9: 0 | T9: 0 | U9: 0 | V9: 0 | W9: C122
A10: 2024 | B10: 482120a | C10: 482 | D10: C | E10: 120a | F10: Subtotal - Non-Instructional Administration and Support Staff | G10: 0 | H10: 0 | I10: 414159.49 | J10: 0 | K10: 0 | L10: 0 | M10: 0 | N10: 0 | O10: 0 | P10: 0 | Q10: 0 | R10: 0 | S10: 0 | T10: 0 | U10: 0 | V10: 414159.49 | W10: C120a
A11: 2024 | B11: 482121a | C11: 482 | D11: C | E11: 121a | F11: Salaries - Professional and Support Staff | G11: 0 | H11: 0 | I11: 173087.02 | J11: 0 | K11: 0 | L11: 0 | M11: 0 | N11: 0 | O11: 0 | P11: 0 | Q11: 0 | R11: 0 | S11: 0 | T11: 0 | U11: 0 | V11: 173087.02 | W11: C121a
A12: 2024 | B12: 482122a | C12: 482 | D12: C | E12: 122a | F12: Contracted Services - Professional and Support Staff | G12: 0 | H12: 0 | I12: 162753.43 | J12: 0 | K12: 0 | L12: 0 | M12: 0 | N12: 0 | O12: 0 | P12: 0 | Q12: 0 | R12: 0 | S12: 0 | T12: 0 | U12: 0 | V12: 162753.43 | W12: C122a
A13: 2024 | B13: 482123 | C13: 482 | D13: C | E13: 123 | F13: Recruitment/Advertising | G13: 0 | H13: 0 | I13: 2585.82 | J13: 0 | K13: 0 | L13: 0 | M13: 0 | N13: 0 | O13: 0 | P13: 0 | Q13: 0 | R13: 0 | S13: 0 | T13: 0 | U13: 0 | V13: 2585.82 | W13: C123
A14: 2024 | B14: 482124 | C14: 482 | D14: C | E14: 124 | F14: Travel, Dues, and other expenses | G14: 0 | H14: 0 | I14: 46842.48 | J14: 0 | K14: 0 | L14: 0 | M14: 0 | N14: 0 | O14: 0 | P14: 0 | Q14: 0 | R14: 0 | S14: 0 | T14: 0 | U14: 0 | V14: 46842.48 | W14: C124
A15: 2024 | B15: 482125 | C15: 482 | D15: C | E15: 125 | F15: Supplies and Materials | G15: 0 | H15: 0 | I15: 28890.74 | J15: 0 | K15: 0 | L15: 0 | M15: 0 | N15: 0 | O15: 0 | P15: 0 | Q15: 0 | R15: 0 | S15: 0 | T15: 0 | U15: 0 | V15: 28890.74 | W15: C125
A16: 2024 | B16: 482126 | C16: 482 | D16: C | E16: 126 | F16: Depreciation - non instructional | G16: 0 | H16: 0 | I16: 0 | J16: 0 | K16: 0 | L16: 0 | M16: 0 | N16: 0 | O16: 0 | P16: 0 | Q16: 0 | R16: 0 | S16: 0 | T16: 0 | U16: 0 | V16: 0 | W16: C126
A17: 2024 | B17: 482130 | C17: 482 | D17: C | E17: 130 | F17: Legal | G17: 0 | H17: 0 | I17: 8627.5 | J17: 0 | K17: 0 | L17: 0 | M17: 0 | N17: 0 | O17: 0 | P17: 0 | Q17: 0 | R17: 0 | S17: 0 | T17: 0 | U17: 0 | V17: 8627.5 | W17: C130
A18: 2024 | B18: 482131 | C18: 482 | D18: C | E18: 131 | F18: Salaries - Professional | G18: 0 | H18: 0 | I18: 0 | J18: 0 | K18: 0 | L18: 0 | M18: 0 | N18: 0 | O18: 0 | P18: 0 | Q18: 0 | R18: 0 | S18: 0 | T18: 0 | U18: 0 | V18: 0 | W18: C131
A19: 2024 | B19: 482132 | C19: 482 | D19: C | E19: 132 | F19: Contracted Services | G19: 0 | H19: 0 | I19: 8627.5 | J19: 0 | K19: 0 | L19: 0 | M19: 0 | N19: 0 | O19: 0 | P19: 0 | Q19: 0 | R19: 0 | S19: 0 | T19: 0 | U19: 0 | V19: 8627.5 | W19: C132
A20: 2024 | B20: 482133 | C20: 482 | D20: C | E20: 133 | F20: Legal Settlements | G20: 0 | H20: 0 | I20: 0 | J20: 0 | K20: 0 | L20: 0 | M20: 0 | N20: 0 | O20: 0 | P20: 0 | Q20: 0 | R20: 0 | S20: 0 | T20: 0 | U20: 0 | V20: 0 | W20: C133
A21: 2024 | B21: 482170 | C21: 482 | D21: C | E21: 170 | F21: Subtotal - Development (Private) | G21: 0 | H21: 0 | I21: 0 | J21: 0 | K21: 0 | L21: 0 | M21: 0 | N21: 0 | O21: 0 | P21: 0 | Q21: 0 | R21: 0 | S21: 0 | T21: 0 | U21: 0 | V21: 0 | W21: C170
A22: 2024 | B22: 482170a | C22: 482 | D22: C | E22: 170a | F22: Salaries - Professional - Private | G22: 0 | H22: 0 | I22: 0 | J22: 0 | K22: 0 | L22: 0 | M22: 0 | N22: 0 | O22: 0 | P22: 0 | Q22: 0 | R22: 0 | S22: 0 | T22: 0 | U22: 0 | V22: 0 | W22: C170a
A23: 2024 | B23: 482170b | C23: 482 | D23: C | E23: 170b | F23: Contracted Services - Private | G23: 0 | H23: 0 | I23: 0 | J23: 0 | K23: 0 | L23: 0 | M23: 0 | N23: 0 | O23: 0 | P23: 0 | Q23: 0 | R23: 0 | S23: 0 | T23: 0 | U23: 0 | V23: 0 | W23: C170b
A24: 2024 | B24: 482170c | C24: 482 | D24: C | E24: 170c | F24: Fundraising - Private | G24: 0 | H24: 0 | I24: 0 | J24: 0 | K24: 0 | L24: 0 | M24: 0 | N24: 0 | O24: 0 | P24: 0 | Q24: 0 | R24: 0 | S24: 0 | T24: 0 | U24: 0 | V24: 0 | W24: C170c
A25: 2024 | B25: 482171 | C25: 482 | D25: C | E25: 171 | F25: Subtotal - Development (Public) | G25: 0 | H25: 0 | I25: 0 | J25: 0 | K25: 0 | L25: 0 | M25: 0 | N25: 0 | O25: 0 | P25: 0 | Q25: 0 | R25: 0 | S25: 0 | T25: 0 | U25: 0 | V25: 0 | W25: C171
A26: 2024 | B26: 482171a | C26: 482 | D26: C | E26: 171a | F26: Salaries - Professional - Public | G26: 0 | H26: 0 | I26: 0 | J26: 0 | K26: 0 | L26: 0 | M26: 0 | N26: 0 | O26: 0 | P26: 0 | Q26: 0 | R26: 0 | S26: 0 | T26: 0 | U26: 0 | V26: 0 | W26: C171a
A27: 2024 | B27: 482171b | C27: 482 | D27: C | E27: 171b | F27: Contracted Services - Public | G27: 0 | H27: 0 | I27: 0 | J27: 0 | K27: 0 | L27: 0 | M27: 0 | N27: 0 | O27: 0 | P27: 0 | Q27: 0 | R27: 0 | S27: 0 | T27: 0 | U27: 0 | V27: 0 | W27: C171b
A28: 2024 | B28: 482200 | C28: 482 | D28: C | E28: 200 | F28: Instructional Services | G28: 2832139.6 | H28: 569887.93 | I28: 8918.99 | J28: 0 | K28: 0 | L28: 0 | M28: 0 | N28: 0 | O28: 29682.6 | P28: 0 | Q28: 0 | R28: 0 | S28: 0 | T28: 118051.25 | U28: 0 | V28: 3558680.37 | W28: C200
A29: 2024 | B29: 482210 | C29: 482 | D29: C | E29: 210 | F29: Instructional Subtotal - Instructional Leadership | G29: 380064.58 | H29: 19940.58 | I29: 0 | J29: 0 | K29: 0 | L29: 0 | M29: 0 | N29: 0 | O29: 0 | P29: 0 | Q29: 0 | R29: 0 | S29: 0 | T29: 19124.5 | U29: 0 | V29: 419129.66 | W29: C210
A30: 2024 | B30: 482211 | C30: 482 | D30: C | E30: 211 | F30: Salaries - Professional | G30: 214046.08 | H30: 0 | I30: 0 | J30: 0 | K30: 0 | L30: 0 | M30: 0 | N30: 0 | O30: 0 | P30: 0 | Q30: 0 | R30: 0 | S30: 0 | T30: 0 | U30: 0 | V30: 214046.08 | W30: C211
A31: 2024 | B31: 482212 | C31: 482 | D31: C | E31: 212 | F31: Salaries - Clerical | G31: 147897 | H31: 0 | I31: 0 | J31: 0 | K31: 0 | L31: 0 | M31: 0 | N31: 0 | O31: 0 | P31: 0 | Q31: 0 | R31: 0 | S31: 0 | T31: 0 | U31: 0 | V31: 147897 | W31: C212
A32: 2024 | B32: 482213 | C32: 482 | D32: C | E32: 213 | F32: Contracted Services | G32: 18121.5 | H32: 19940.58 | I32: 0 | J32: 0 | K32: 0 | L32: 0 | M32: 0 | N32: 0 | O32: 0 | P32: 0 | Q32: 0 | R32: 0 | S32: 0 | T32: 19124.5 | U32: 0 | V32: 57186.58 | W32: C213
A33: 2024 | B33: 482214 | C33: 482 | D33: C | E33: 214 | F33: Supplies and Materials | G33: 0 | H33: 0 | I33: 0 | J33: 0 | K33: 0 | L33: 0 | M33: 0 | N33: 0 | O33: 0 | P33: 0 | Q33: 0 | R33: 0 | S33: 0 | T33: 0 | U33: 0 | V33: 0 | W33: C214
A34: 2024 | B34: 482215 | C34: 482 | D34: C | E34: 215 | F34: Travel and other expenses | G34: 0 | H34: 0 | I34: 0 | J34: 0 | K34: 0 | L34: 0 | M34: 0 | N34: 0 | O34: 0 | P34: 0 | Q34: 0 | R34: 0 | S34: 0 | T34: 0 | U34: 0 | V34: 0 | W34: C215
A35: 2024 | B35: 482220 | C35: 482 | D35: C | E35: 220 | F35: Instructional Subtotal - Classroom and Specialist Teachers | G35: 1926480.52 | H35: 344005.99 | I35: 0 | J35: 0 | K35: 0 | L35: 0 | M35: 0 | N35: 0 | O35: 3930.67 | P35: 0 | Q35: 0 | R35: 0 | S35: 0 | T35: 77289.96 | U35: 0 | V35: 2351707.14 | W35: C220
A36: 2024 | B36: 482221 | C36: 482 | D36: C | E36: 221 | F36: Salaries - Teachers, Classroom | G36: 1536502 | H36: 344005.99 | I36: 0 | J36: 0 | K36: 0 | L36: 0 | M36: 0 | N36: 0 | O36: 3930.67 | P36: 0 | Q36: 0 | R36: 0 | S36: 0 | T36: 1122.96 | U36: 0 | V36: 1885561.62 | W36: C221
A37: 2024 | B37: 482222 | C37: 482 | D37: C | E37: 222 | F37: Salaries - Teachers, Specialists | G37: 389978.52 | H37: 0 | I37: 0 | J37: 0 | K37: 0 | L37: 0 | M37: 0 | N37: 0 | O37: 0 | P37: 0 | Q37: 0 | R37: 0 | S37: 0 | T37: 76167 | U37: 0 | V37: 466145.52 | W37: C222
A38: 2024 | B38: 482230 | C38: 482 | D38: C | E38: 230 | F38: Instructional Subtotal - Other Teaching Services | G38: 276888.38 | H38: 130175.78 | I38: 0 | J38: 0 | K38: 0 | L38: 0 | M38: 0 | N38: 0 | O38: 0 | P38: 0 | Q38: 0 | R38: 0 | S38: 0 | T38: 0 | U38: 0 | V38: 407064.16 | W38: C230
A39: 2024 | B39: 482231 | C39: 482 | D39: C | E39: 231 | F39: Salaries - Professional | G39: 17592.15 | H39: 31357.5 | I39: 0 | J39: 0 | K39: 0 | L39: 0 | M39: 0 | N39: 0 | O39: 0 | P39: 0 | Q39: 0 | R39: 0 | S39: 0 | T39: 0 | U39: 0 | V39: 48949.65 | W39: C231
A40: 2024 | B40: 482232 | C40: 482 | D40: C | E40: 232 | F40: Salaries - Non-clerical Paraprofessionals | G40: 259296.23 | H40: 98818.28 | I40: 0 | J40: 0 | K40: 0 | L40: 0 | M40: 0 | N40: 0 | O40: 0 | P40: 0 | Q40: 0 | R40: 0 | S40: 0 | T40: 0 | U40: 0 | V40: 358114.51 | W40: C232
A41: 2024 | B41: 482233 | C41: 482 | D41: C | E41: 233 | F41: Salaries - Clerical | G41: 0 | H41: 0 | I41: 0 | J41: 0 | K41: 0 | L41: 0 | M41: 0 | N41: 0 | O41: 0 | P41: 0 | Q41: 0 | R41: 0 | S41: 0 | T41: 0 | U41: 0 | V41: 0 | W41: C233
A42: 2024 | B42: 482234 | C42: 482 | D42: C | E42: 234 | F42: Contracted Services | G42: 0 | H42: 0 | I42: 0 | J42: 0 | K42: 0 | L42: 0 | M42: 0 | N42: 0 | O42: 0 | P42: 0 | Q42: 0 | R42: 0 | S42: 0 | T42: 0 | U42: 0 | V42: 0 | W42: C234
A43: 2024 | B43: 482240 | C43: 482 | D43: C | E43: 240 | F43: Instructional Subtotal - Professional Development | G43: 49084.17 | H43: 0 | I43: 0 | J43: 0 | K43: 0 | L43: 0 | M43: 0 | N43: 0 | O43: 0 | P43: 0 | Q43: 0 | R43: 0 | S43: 0 | T43: 8970.4 | U43: 0 | V43: 58054.57 | W43: C240
A44: 2024 | B44: 482241 | C44: 482 | D44: C | E44: 241 | F44: Salaries - Professional | G44: 0 | H44: 0 | I44: 0 | J44: 0 | K44: 0 | L44: 0 | M44: 0 | N44: 0 | O44: 0 | P44: 0 | Q44: 0 | R44: 0 | S44: 0 | T44: 0 | U44: 0 | V44: 0 | W44: C241
A45: 2024 | B45: 482242 | C45: 482 | D45: C | E45: 242 | F45: Contracted Services | G45: 24126 | H45: 0 | I45: 0 | J45: 0 | K45: 0 | L45: 0 | M45: 0 | N45: 0 | O45: 0 | P45: 0 | Q45: 0 | R45: 0 | S45: 0 | T45: 8243 | U45: 0 | V45: 32369 | W45: C242
A46: 2024 | B46: 482243 | C46: 482 | D46: C | E46: 243 | F46: Supplies and Materials | G46: 2360.03 | H46: 0 | I46: 0 | J46: 0 | K46: 0 | L46: 0 | M46: 0 | N46: 0 | O46: 0 | P46: 0 | Q46: 0 | R46: 0 | S46: 0 | T46: 0 | U46: 0 | V46: 2360.03 | W46: C243
A47: 2024 | B47: 482244 | C47: 482 | D47: C | E47: 244 | F47: Travel and other expenses | G47: 22598.14 | H47: 0 | I47: 0 | J47: 0 | K47: 0 | L47: 0 | M47: 0 | N47: 0 | O47: 0 | P47: 0 | Q47: 0 | R47: 0 | S47: 0 | T47: 727.4 | U47: 0 | V47: 23325.54 | W47: C244
A48: 2024 | B48: 482250 | C48: 482 | D48: C | E48: 250 | F48: Instructional Subtotal - Guidance, Psychological & Testing | G48: 105914.41 | H48: 66669.26 | I48: 0 | J48: 0 | K48: 0 | L48: 0 | M48: 0 | N48: 0 | O48: 0 | P48: 0 | Q48: 0 | R48: 0 | S48: 0 | T48: 0 | U48: 0 | V48: 172583.67 | W48: C250
A49: 2024 | B49: 482251 | C49: 482 | D49: C | E49: 251 | F49: Salaries - Professional | G49: 103806.68 | H49: 66669.26 | I49: 0 | J49: 0 | K49: 0 | L49: 0 | M49: 0 | N49: 0 | O49: 0 | P49: 0 | Q49: 0 | R49: 0 | S49: 0 | T49: 0 | U49: 0 | V49: 170475.94 | W49: C251
A50: 2024 | B50: 482252 | C50: 482 | D50: C | E50: 252 | F50: Salaries - Clerical | G50: 0 | H50: 0 | I50: 0 | J50: 0 | K50: 0 | L50: 0 | M50: 0 | N50: 0 | O50: 0 | P50: 0 | Q50: 0 | R50: 0 | S50: 0 | T50: 0 | U50: 0 | V50: 0 | W50: C252
A51: 2024 | B51: 482253 | C51: 482 | D51: C | E51: 253 | F51: Contracted Services | G51: 0 | H51: 0 | I51: 0 | J51: 0 | K51: 0 | L51: 0 | M51: 0 | N51: 0 | O51: 0 | P51: 0 | Q51: 0 | R51: 0 | S51: 0 | T51: 0 | U51: 0 | V51: 0 | W51: C253
A52: 2024 | B52: 482254 | C52: 482 | D52: C | E52: 254 | F52: Supplies and Materials | G52: 2107.73 | H52: 0 | I52: 0 | J52: 0 | K52: 0 | L52: 0 | M52: 0 | N52: 0 | O52: 0 | P52: 0 | Q52: 0 | R52: 0 | S52: 0 | T52: 0 | U52: 0 | V52: 2107.73 | W52: C254
A53: 2024 | B53: 482260 | C53: 482 | D53: C | E53: 260 | F53: Instructional Subtotal - Materials, Equipment & Technology | G53: 93707.54 | H53: 9096.32 | I53: 8918.99 | J53: 0 | K53: 0 | L53: 0 | M53: 0 | N53: 0 | O53: 25751.93 | P53: 0 | Q53: 0 | R53: 0 | S53: 0 | T53: 12666.39 | U53: 0 | V53: 150141.17 | W53: C260
A54: 2024 | B54: 482261 | C54: 482 | D54: C | E54: 261 | F54: Textbooks & Related Media/Materials | G54: 10493.25 | H54: 0 | I54: 0 | J54: 0 | K54: 0 | L54: 0 | M54: 0 | N54: 0 | O54: 2477.97 | P54: 0 | Q54: 0 | R54: 0 | S54: 0 | T54: 2134.35 | U54: 0 | V54: 15105.57 | W54: C261
A55: 2024 | B55: 482262 | C55: 482 | D55: C | E55: 262 | F55: Other Instructional Materials | G55: 0 | H55: 0 | I55: 8918.99 | J55: 0 | K55: 0 | L55: 0 | M55: 0 | N55: 0 | O55: 0 | P55: 0 | Q55: 0 | R55: 0 | S55: 0 | T55: 14 | U55: 0 | V55: 8932.99 | W55: C262
A56: 2024 | B56: 482263 | C56: 482 | D56: C | E56: 263 | F56: Instructional Equipment | G56: 1347.34 | H56: 0 | I56: 0 | J56: 0 | K56: 0 | L56: 0 | M56: 0 | N56: 0 | O56: 0 | P56: 0 | Q56: 0 | R56: 0 | S56: 0 | T56: 0 | U56: 0 | V56: 1347.34 | W56: C263
A57: 2024 | B57: 482264 | C57: 482 | D57: C | E57: 264 | F57: General Supplies | G57: 16186.2 | H57: 1798.47 | I57: 0 | J57: 0 | K57: 0 | L57: 0 | M57: 0 | N57: 0 | O57: 114 | P57: 0 | Q57: 0 | R57: 0 | S57: 0 | T57: 387.19 | U57: 0 | V57: 18485.86 | W57: C264
A58: 2024 | B58: 482265 | C58: 482 | D58: C | E58: 265 | F58: Other Instructional Services | G58: 41421.06 | H58: 4602.34 | I58: 0 | J58: 0 | K58: 0 | L58: 0 | M58: 0 | N58: 0 | O58: 23159.96 | P58: 0 | Q58: 0 | R58: 0 | S58: 0 | T58: 2775 | U58: 0 | V58: 71958.36 | W58: C265
A59: 2024 | B59: 482266 | C59: 482 | D59: C | E59: 266 | F59: Classroom Instructional Technology Hardware | G59: 2953.64 | H59: 328.18 | I59: 0 | J59: 0 | K59: 0 | L59: 0 | M59: 0 | N59: 0 | O59: 0 | P59: 0 | Q59: 0 | R59: 0 | S59: 0 | T59: 5017.85 | U59: 0 | V59: 8299.67 | W59: C266
A60: 2024 | B60: 482267 | C60: 482 | D60: C | E60: 267 | F60: Other Instructional Technology Hardware | G60: 0 | H60: 0 | I60: 0 | J60: 0 | K60: 0 | L60: 0 | M60: 0 | N60: 0 | O60: 0 | P60: 0 | Q60: 0 | R60: 0 | S60: 0 | T60: 0 | U60: 0 | V60: 0 | W60: C267
A61: 2024 | B61: 482268a | C61: 482 | D61: C | E61: 268a | F61: Classroom Instructional Software | G61: 21306.05 | H61: 2367.33 | I61: 0 | J61: 0 | K61: 0 | L61: 0 | M61: 0 | N61: 0 | O61: 0 | P61: 0 | Q61: 0 | R61: 0 | S61: 0 | T61: 2338 | U61: 0 | V61: 26011.38 | W61: C268a
A62: 2024 | B62: 482268b | C62: 482 | D62: C | E62: 268b | F62: Other Instructional Software | G62: 0 | H62: 0 | I62: 0 | J62: 0 | K62: 0 | L62: 0 | M62: 0 | N62: 0 | O62: 0 | P62: 0 | Q62: 0 | R62: 0 | S62: 0 | T62: 0 | U62: 0 | V62: 0 | W62: C268b
A63: 2024 | B63: 482269 | C63: 482 | D63: C | E63: 269 | F63: Depreciation for Furniture, Equipment & Technology | G63: 0 | H63: 0 | I63: 0 | J63: 0 | K63: 0 | L63: 0 | M63: 0 | N63: 0 | O63: 0 | P63: 0 | Q63: 0 | R63: 0 | S63: 0 | T63: 0 | U63: 0 | V63: 0 | W63: C269
A64: 2024 | B64: 482300 | C64: 482 | D64: C | E64: 300 | F64: Pupil Services | G64: 48081 | H64: 12950.07 | I64: 154324.42 | J64: 0 | K64: 0 | L64: 0 | M64: 0 | N64: 0 | O64: 0 | P64: 0 | Q64: 0 | R64: 0 | S64: 0 | T64: 700 | U64: 0 | V64: 216055.49 | W64: C300
A65: 2024 | B65: 482310 | C65: 482 | D65: C | E65: 310 | F65: Health Services | G65: 0 | H65: 0 | I65: 87987.19 | J65: 0 | K65: 0 | L65: 0 | M65: 0 | N65: 0 | O65: 0 | P65: 0 | Q65: 0 | R65: 0 | S65: 0 | T65: 0 | U65: 0 | V65: 87987.19 | W65: C310
A66: 2024 | B66: 482315 | C66: 482 | D66: C | E66: 315 | F66: Health Services - Contracted | G66: 0 | H66: 0 | I66: 0 | J66: 0 | K66: 0 | L66: 0 | M66: 0 | N66: 0 | O66: 0 | P66: 0 | Q66: 0 | R66: 0 | S66: 0 | T66: 0 | U66: 0 | V66: 0 | W66: C315
A67: 2024 | B67: 482320 | C67: 482 | D67: =VLOOKUP(C67, TYPE, 3, FALSE) -> C | E67: 320 | F67: Athletic Services (including Transportation) | G67: 0 | H67: 0 | I67: 0 | J67: 0 | K67: 0 | L67: 0 | M67: 0 | N67: 0 | O67: 0 | P67: 0 | Q67: 0 | R67: 0 | S67: 0 | T67: 0 | U67: 0 | V67: 0 | W67: C320
A68: 2024 | B68: =C68&E68 -> 482325 | C68: 482 | D68: C | E68: 325 | F68: Athletic Services (including Transportation) - Contracted | G68: 0 | H68: 0 | I68: 0 | J68: 0 | K68: 0 | L68: 0 | M68: 0 | N68: 0 | O68: 0 | P68: 0 | Q68: 0 | R68: 0 | S68: 0 | T68: 0 | U68: 0 | V68: 0 | W68: =D68&E68 -> C325
A69: 2024 | B69: 482330 | C69: 482 | D69: C | E69: 330 | F69: Food Services | G69: 0 | H69: 0 | I69: 0 | J69: 0 | K69: 0 | L69: 0 | M69: 0 | N69: 0 | O69: 0 | P69: 0 | Q69: 0 | R69: 0 | S69: 0 | T69: 0 | U69: 0 | V69: 0 | W69: C330
A70: 2024 | B70: 482335 | C70: 482 | D70: C | E70: 335 | F70: Food Services - Contracted | G70: 0 | H70: 0 | I70: 8131.24 | J70: 0 | K70: 0 | L70: 0 | M70: 0 | N70: 0 | O70: 0 | P70: 0 | Q70: 0 | R70: 0 | S70: 0 | T70: 0 | U70: 0 | V70: 8131.24 | W70: C335
A71: 2024 | B71: 482340 | C71: 482 | D71: C | E71: 340 | F71: Student Transportation (to and from school) | G71: 0 | H71: 0 | I71: 0 | J71: 0 | K71: 0 | L71: 0 | M71: 0 | N71: 0 | O71: 0 | P71: 0 | Q71: 0 | R71: 0 | S71: 0 | T71: 0 | U71: 0 | V71: 0 | W71: C340
A72: 2024 | B72: 482345 | C72: 482 | D72: C | E72: 345 | F72: Student Transportation (to and from school) - Contracted | G72: 48081 | H72: 12950.07 | I72: 0 | J72: 0 | K72: 0 | L72: 0 | M72: 0 | N72: 0 | O72: 0 | P72: 0 | Q72: 0 | R72: 0 | S72: 0 | T72: 700 | U72: 0 | V72: 61731.07 | W72: C345
A73: 2024 | B73: 482350 | C73: 482 | D73: C | E73: 350 | F73: Depreciation of Transportation Vehicles | G73: 0 | H73: 0 | I73: 0 | J73: 0 | K73: 0 | L73: 0 | M73: 0 | N73: 0 | O73: 0 | P73: 0 | Q73: 0 | R73: 0 | S73: 0 | T73: 0 | U73: 0 | V73: 0 | W73: C350
A74: 2024 | B74: 482360 | C74: 482 | D74: C | E74: 360 | F74: Other Student Activities | G74: 0 | H74: 0 | I74: 58205.99 | J74: 0 | K74: 0 | L74: 0 | M74: 0 | N74: 0 | O74: 0 | P74: 0 | Q74: 0 | R74: 0 | S74: 0 | T74: 0 | U74: 0 | V74: 58205.99 | W74: C360
A75: 2024 | B75: 482400 | C75: 482 | D75: C | E75: 400 | F75: Operation & Maintenance of Plant | G75: 0 | H75: 0 | I75: 209505.25 | J75: 0 | K75: 0 | L75: 0 | M75: 0 | N75: 0 | O75: 16263.38 | P75: 0 | Q75: 0 | R75: 0 | S75: 0 | T75: 1697 | U75: 0 | V75: 227465.63 | W75: C400
A76: 2024 | B76: 482410 | C76: 482 | D76: C | E76: 410 | F76: Operation & Maintenance of Buildings and Grounds | G76: 0 | H76: 0 | I76: 147783.8 | J76: 0 | K76: 0 | L76: 0 | M76: 0 | N76: 0 | O76: 14391 | P76: 0 | Q76: 0 | R76: 0 | S76: 0 | T76: 0 | U76: 0 | V76: 162174.8 | W76: C410
A77: 2024 | B77: 482420 | C77: 482 | D77: C | E77: 420 | F77: Utilities | G77: 0 | H77: 0 | I77: 48930.61 | J77: 0 | K77: 0 | L77: 0 | M77: 0 | N77: 0 | O77: 0 | P77: 0 | Q77: 0 | R77: 0 | S77: 0 | T77: 0 | U77: 0 | V77: 48930.61 | W77: C420
A78: 2024 | B78: 482430 | C78: 482 | D78: C | E78: 430 | F78: Maintenance of Equipment | G78: 0 | H78: 0 | I78: 515.38 | J78: 0 | K78: 0 | L78: 0 | M78: 0 | N78: 0 | O78: 1872.38 | P78: 0 | Q78: 0 | R78: 0 | S78: 0 | T78: 0 | U78: 0 | V78: 2387.76 | W78: C430
A79: 2024 | B79: 482440 | C79: 482 | D79: C | E79: 440 | F79: Networking and Telecommunications | G79: 0 | H79: 0 | I79: 12275.46 | J79: 0 | K79: 0 | L79: 0 | M79: 0 | N79: 0 | O79: 0 | P79: 0 | Q79: 0 | R79: 0 | S79: 0 | T79: 1697 | U79: 0 | V79: 13972.46 | W79: C440
A80: 2024 | B80: 482500 | C80: 482 | D80: C | E80: 500 | F80: Fixed Charges | G80: 0 | H80: 0 | I80: 1217111.65 | J80: 0 | K80: 0 | L80: 0 | M80: 0 | N80: 0 | O80: 0 | P80: 0 | Q80: 0 | R80: 0 | S80: 0 | T80: 0 | U80: 0 | V80: 1217111.65 | W80: C500
A81: 2024 | B81: 482510 | C81: 482 | D81: C | E81: 510 | F81: Employee Retirement & Taxes | G81: 0 | H81: 0 | I81: 734235.19 | J81: 0 | K81: 0 | L81: 0 | M81: 0 | N81: 0 | O81: 0 | P81: 0 | Q81: 0 | R81: 0 | S81: 0 | T81: 0 | U81: 0 | V81: 734235.19 | W81: C510
A82: 2024 | B82: 482520 | C82: 482 | D82: C | E82: 520 | F82: Fringe Benefits | G82: 0 | H82: 0 | I82: 431880.12 | J82: 0 | K82: 0 | L82: 0 | M82: 0 | N82: 0 | O82: 0 | P82: 0 | Q82: 0 | R82: 0 | S82: 0 | T82: 0 | U82: 0 | V82: 431880.12 | W82: C520
A83: 2024 | B83: 482530 | C83: 482 | D83: C | E83: 530 | F83: Insurance (non-employee) | G83: 0 | H83: 0 | I83: 40501 | J83: 0 | K83: 0 | L83: 0 | M83: 0 | N83: 0 | O83: 0 | P83: 0 | Q83: 0 | R83: 0 | S83: 0 | T83: 0 | U83: 0 | V83: 40501 | W83: C530
A84: 2024 | B84: 482550 | C84: 482 | D84: C | E84: 550 | F84: Rental/Lease of Equipment | G84: 0 | H84: 0 | I84: 10495.34 | J84: 0 | K84: 0 | L84: 0 | M84: 0 | N84: 0 | O84: 0 | P84: 0 | Q84: 0 | R84: 0 | S84: 0 | T84: 0 | U84: 0 | V84: 10495.34 | W84: C550
A85: 2024 | B85: 482560 | C85: 482 | D85: C | E85: 560 | F85: Short-Term Interest | G85: 0 | H85: 0 | I85: 0 | J85: 0 | K85: 0 | L85: 0 | M85: 0 | N85: 0 | O85: 0 | P85: 0 | Q85: 0 | R85: 0 | S85: 0 | T85: 0 | U85: 0 | V85: 0 | W85: C560
A86: 2024 | B86: 482600 | C86: 482 | D86: C | E86: 600 | F86: Community Services | G86: 0 | H86: 0 | I86: 0 | J86: 0 | K86: 0 | L86: 0 | M86: 0 | N86: 0 | O86: 0 | P86: 0 | Q86: 0 | R86: 0 | S86: 0 | T86: 0 | U86: 0 | V86: 0 | W86: C600
A87: 2024 | B87: 482610 | C87: 482 | D87: C | E87: 610 | F87: Dissemination Activities | G87: 0 | H87: 0 | I87: 0 | J87: 0 | K87: 0 | L87: 0 | M87: 0 | N87: 0 | O87: 0 | P87: 0 | Q87: 0 | R87: 0 | S87: 0 | T87: 0 | U87: 0 | V87: 0 | W87: C610
A88: 2024 | B88: 482620 | C88: 482 | D88: C | E88: 620 | F88: Civic Activities | G88: 0 | H88: 0 | I88: 0 | J88: 0 | K88: 0 | L88: 0 | M88: 0 | N88: 0 | O88: 0 | P88: 0 | Q88: 0 | R88: 0 | S88: 0 | T88: 0 | U88: 0 | V88: 0 | W88: C620
A89: 2024 | B89: 482700 | C89: 482 | D89: C | E89: 700 | F89: Non-Operating / Capital Facilities Costs | G89: 0 | H89: 0 | I89: 350313.53 | J89: 0 | K89: 0 | L89: 0 | M89: 0 | N89: 0 | O89: 0 | P89: 0 | Q89: 0 | R89: 0 | S89: 0 | T89: 0 | U89: 0 | V89: 350313.53 | W89: C700
A90: 2024 | B90: 482720 | C90: 482 | D90: C | E90: 720 | F90: Long-Term Interest, facilities related | G90: 0 | H90: 0 | I90: 0 | J90: 0 | K90: 0 | L90: 0 | M90: 0 | N90: 0 | O90: 0 | P90: 0 | Q90: 0 | R90: 0 | S90: 0 | T90: 0 | U90: 0 | V90: 0 | W90: C720
A91: 2024 | B91: 482725 | C91: 482 | D91: C | E91: 725 | F91: Long-Term Interest, non-facilities related | G91: 0 | H91: 0 | I91: 0 | J91: 0 | K91: 0 | L91: 0 | M91: 0 | N91: 0 | O91: 0 | P91: 0 | Q91: 0 | R91: 0 | S91: 0 | T91: 0 | U91: 0 | V91: 0 | W91: C725
A92: 2024 | B92: 482730 | C92: 482 | D92: C | E92: 730 | F92: Other costs related to capital facilities acquisition | G92: 0 | H92: 0 | I92: 0 | J92: 0 | K92: 0 | L92: 0 | M92: 0 | N92: 0 | O92: 0 | P92: 0 | Q92: 0 | R92: 0 | S92: 0 | T92: 0 | U92: 0 | V92: 0 | W92: C730
A93: 2024 | B93: 482740 | C93: 482 | D93: C | E93: 740 | F93: Rental/Lease of Buildings & Grounds | G93: 0 | H93: 0 | I93: 109218.39 | J93: 0 | K93: 0 | L93: 0 | M93: 0 | N93: 0 | O93: 0 | P93: 0 | Q93: 0 | R93: 0 | S93: 0 | T93: 0 | U93: 0 | V93: 109218.39 | W93: C740
A94: 2024 | B94: 482750 | C94: 482 | D94: C | E94: 750 | F94: Depreciation of Equipment, Building, & Grounds | G94: 0 | H94: 0 | I94: 241095.14 | J94: 0 | K94: 0 | L94: 0 | M94: 0 | N94: 0 | O94: 0 | P94: 0 | Q94: 0 | R94: 0 | S94: 0 | T94: 0 | U94: 0 | V94: 241095.14 | W94: C750
A95: 2024 | B95: 482760 | C95: 482 | D95: C | E95: 760 | F95: Bad debt / loss on disposal of assets | G95: 0 | H95: 0 | I95: 0 | J95: 0 | K95: 0 | L95: 0 | M95: 0 | N95: 0 | O95: 0 | P95: 0 | Q95: 0 | R95: 0 | S95: 0 | T95: 0 | U95: 0 | V95: 0 | W95: C760
A96: 2024 | B96: 482770 | C96: 482 | D96: C | E96: 770 | F96: Other non-operating | G96: 0 | H96: 0 | I96: 0 | J96: 0 | K96: 0 | L96: 0 | M96: 0 | N96: 0 | O96: 0 | P96: 0 | Q96: 0 | R96: 0 | S96: 0 | T96: 0 | U96: 0 | V96: 0 | W96: C770
A97: 2024 | B97: 482800 | C97: 482 | D97: C | E97: 800 | F97: Totals | G97: 2880220.6 | H97: 582838 | I97: 2540713.48 | J97: 0 | K97: 0 | L97: 0 | M97: 0 | N97: 0 | O97: 45945.98 | P97: 0 | Q97: 0 | R97: 0 | S97: 0 | T97: 120448.25 | U97: 0 | V97: 6170166.31 | W97: C800
A98: 2024 | B98: 482910 | C98: 482 | D98: C | E98: 910 | F98: Reference: Capitalized Expenditures | G98: 0 | H98: 0 | I98: 75325 | J98: 0 | K98: 0 | L98: 0 | M98: 0 | N98: 0 | O98: 0 | P98: 0 | Q98: 0 | R98: 0 | S98: 0 | T98: 0 | U98: 0 | V98: 75325 | W98: C910
A99: 2024 | B99: 482920 | C99: 482 | D99: C | E99: 920 | F99: Reference: Deferrals/Carryovers | G99: 0 | H99: 0 | I99: 0 | J99: 0 | K99: 0 | L99: 0 | M99: 0 | N99: 0 | O99: 0 | P99: 0 | Q99: 0 | R99: 0 | S99: 0 | T99: 0 | U99: 0 | V99: 0 | W99: C920
A100: 2024 | B100: 482900 | C100: 482 | D100: C | E100: 900 | F100: Reference: Totals | G100: 0 | H100: 0 | I100: 2616038.48 | J100: 0 | K100: 0 | L100: 0 | M100: 0 | N100: 0 | O100: 45945.98 | P100: 0 | Q100: 0 | R100: 0 | S100: 0 | T100: 120448.25 | U100: 0 | V100: 6245491.31 | W100: C900
A101: 2024 | B101: 489100 | C101: 489 | D101: C | E101: 100 | F101: Administration | G101: 0 | H101: 0 | I101: 1060821.069 | J101: 0 | K101: 0 | L101: 0 | M101: 0 | N101: 0 | O101: 0 | P101: 0 | Q101: 0 | R101: 0 | S101: 0 | T101: 0 | U101: 0 | V101: 1060821.069 | W101: C100
A102: 2024 | B102: 489110 | C102: 489 | D102: C | E102: 110 | F102: Subtotal - Board of Trustees | G102: 0 | H102: 0 | I102: 0 | J102: 0 | K102: 0 | L102: 0 | M102: 0 | N102: 0 | O102: 0 | P102: 0 | Q102: 0 | R102: 0 | S102: 0 | T102: 0 | U102: 0 | V102: 0 | W102: C110
A103: 2024 | B103: 489111 | C103: 489 | D103: C | E103: 111 | F103: Contracted Services | G103: 0 | H103: 0 | I103: 0 | J103: 0 | K103: 0 | L103: 0 | M103: 0 | N103: 0 | O103: 0 | P103: 0 | Q103: 0 | R103: 0 | S103: 0 | T103: 0 | U103: 0 | V103: 0 | W103: C111
A104: 2024 | B104: 489112 | C104: 489 | D104: C | E104: 112 | F104: Travel and other expenses | G104: 0 | H104: 0 | I104: 0 | J104: 0 | K104: 0 | L104: 0 | M104: 0 | N104: 0 | O104: 0 | P104: 0 | Q104: 0 | R104: 0 | S104: 0 | T104: 0 | U104: 0 | V104: 0 | W104: C112
A105: 2024 | B105: 489120 | C105: 489 | D105: C | E105: 120 | F105: Subtotal - School Leaders | G105: 0 | H105: 0 | I105: 208697.19 | J105: 0 | K105: 0 | L105: 0 | M105: 0 | N105: 0 | O105: 0 | P105: 0 | Q105: 0 | R105: 0 | S105: 0 | T105: 0 | U105: 0 | V105: 208697.19 | W105: C120
A106: 2024 | B106: 489121 | C106: 489 | D106: C | E106: 121 | F106: Salaries - Professional | G106: 0 | H106: 0 | I106: 208697.19 | J106: 0 | K106: 0 | L106: 0 | M106: 0 | N106: 0 | O106: 0 | P106: 0 | Q106: 0 | R106: 0 | S106: 0 | T106: 0 | U106: 0 | V106: 208697.19 | W106: C121
A107: 2024 | B107: 489122 | C107: 489 | D107: C | E107: 122 | F107: Contracted Services | G107: 0 | H107: 0 | I107: 0 | J107: 0 | K107: 0 | L107: 0 | M107: 0 | N107: 0 | O107: 0 | P107: 0 | Q107: 0 | R107: 0 | S107: 0 | T107: 0 | U107: 0 | V107: 0 | W107: C122
A108: 2024 | B108: 489120a | C108: 489 | D108: C | E108: 120a | F108: Subtotal - Non-Instructional Administration and Support Staff | G108: 0 | H108: 0 | I108: 774394.0988 | J108: 0 | K108: 0 | L108: 0 | M108: 0 | N108: 0 | O108: 0 | P108: 0 | Q108: 0 | R108: 0 | S108: 0 | T108: 0 | U108: 0 | V108: 774394.0988 | W108: C120a
A109: 2024 | B109: 489121a | C109: 489 | D109: C | E109: 121a | F109: Salaries - Professional and Support Staff | G109: 0 | H109: 0 | I109: 653855.0988 | J109: 0 | K109: 0 | L109: 0 | M109: 0 | N109: 0 | O109: 0 | P109: 0 | Q109: 0 | R109: 0 | S109: 0 | T109: 0 | U109: 0 | V109: 653855.0988 | W109: C121a
A110: 2024 | B110: 489122a | C110: 489 | D110: C | E110: 122a | F110: Contracted Services - Professional and Support Staff | G110: 0 | H110: 0 | I110: 31005 | J110: 0 | K110: 0 | L110: 0 | M110: 0 | N110: 0 | O110: 0 | P110: 0 | Q110: 0 | R110: 0 | S110: 0 | T110: 0 | U110: 0 | V110: 31005 | W110: C122a
A111: 2024 | B111: 489123 | C111: 489 | D111: C | E111: 123 | F111: Recruitment/Advertising | G111: 0 | H111: 0 | I111: 28376 | J111: 0 | K111: 0 | L111: 0 | M111: 0 | N111: 0 | O111: 0 | P111: 0 | Q111: 0 | R111: 0 | S111: 0 | T111: 0 | U111: 0 | V111: 28376 | W111: C123
A112: 2024 | B112: 489124 | C112: 489 | D112: C | E112: 124 | F112: Travel, Dues, and other expenses | G112: 0 | H112: 0 | I112: 61158 | J112: 0 | K112: 0 | L112: 0 | M112: 0 | N112: 0 | O112: 0 | P112: 0 | Q112: 0 | R112: 0 | S112: 0 | T112: 0 | U112: 0 | V112: 61158 | W112: C124
A113: 2024 | B113: 489125 | C113: 489 | D113: C | E113: 125 | F113: Supplies and Materials | G113: 0 | H113: 0 | I113: 0 | J113: 0 | K113: 0 | L113: 0 | M113: 0 | N113: 0 | O113: 0 | P113: 0 | Q113: 0 | R113: 0 | S113: 0 | T113: 0 | U113: 0 | V113: 0 | W113: C125
A114: 2024 | B114: 489126 | C114: 489 | D114: C | E114: 126 | F114: Depreciation - non instructional | G114: 0 | H114: 0 | I114: 0 | J114: 0 | K114: 0 | L114: 0 | M114: 0 | N114: 0 | O114: 0 | P114: 0 | Q114: 0 | R114: 0 | S114: 0 | T114: 0 | U114: 0 | V114: 0 | W114: C126
A115: 2024 | B115: 489130 | C115: 489 | D115: C | E115: 130 | F115: Legal | G115: 0 | H115: 0 | I115: 11606 | J115: 0 | K115: 0 | L115: 0 | M115: 0 | N115: 0 | O115: 0 | P115: 0 | Q115: 0 | R115: 0 | S115: 0 | T115: 0 | U115: 0 | V115: 11606 | W115: C130
A116: 2024 | B116: 489131 | C116: 489 | D116: C | E116: 131 | F116: Salaries - Professional | G116: 0 | H116: 0 | I116: 0 | J116: 0 | K116: 0 | L116: 0 | M116: 0 | N116: 0 | O116: 0 | P116: 0 | Q116: 0 | R116: 0 | S116: 0 | T116: 0 | U116: 0 | V116: 0 | W116: C131
A117: 2024 | B117: 489132 | C117: 489 | D117: C | E117: 132 | F117: Contracted Services | G117: 0 | H117: 0 | I117: 11606 | J117: 0 | K117: 0 | L117: 0 | M117: 0 | N117: 0 | O117: 0 | P117: 0 | Q117: 0 | R117: 0 | S117: 0 | T117: 0 | U117: 0 | V117: 11606 | W117: C132
A118: 2024 | B118: 489133 | C118: 489 | D118: C | E118: 133 | F118: Legal Settlements | G118: 0 | H118: 0 | I118: 0 | J118: 0 | K118: 0 | L118: 0 | M118: 0 | N118: 0 | O118: 0 | P118: 0 | Q118: 0 | R118: 0 | S118: 0 | T118: 0 | U118: 0 | V118: 0 | W118: C133
A119: 2024 | B119: 489170 | C119: 489 | D119: C | E119: 170 | F119: Subtotal - Development (Private) | G119: 0 | H119: 0 | I119: 0 | J119: 0 | K119: 0 | L119: 0 | M119: 0 | N119: 0 | O119: 0 | P119: 0 | Q119: 0 | R119: 0 | S119: 0 | T119: 0 | U119: 0 | V119: 0 | W119: C170
A120: 2024 | B120: 489170a | C120: 489 | D120: C | E120: 170a | F120: Salaries - Professional - Private | G120: 0 | H120: 0 | I120: 0 | J120: 0 | K120: 0 | L120: 0 | M120: 0 | N120: 0 | O120: 0 | P120: 0 | Q120: 0 | R120: 0 | S120: 0 | T120: 0 | U120: 0 | V120: 0 | W120: C170a
A121: 2024 | B121: 489170b | C121: 489 | D121: C | E121: 170b | F121: Contracted Services - Private | G121: 0 | H121: 0 | I121: 0 | J121: 0 | K121: 0 | L121: 0 | M121: 0 | N121: 0 | O121: 0 | P121: 0 | Q121: 0 | R121: 0 | S121: 0 | T121: 0 | U121: 0 | V121: 0 | W121: C170b
A122: 2024 | B122: 489170c | C122: 489 | D122: C | E122: 170c | F122: Fundraising - Private | G122: 0 | H122: 0 | I122: 0 | J122: 0 | K122: 0 | L122: 0 | M122: 0 | N122: 0 | O122: 0 | P122: 0 | Q122: 0 | R122: 0 | S122: 0 | T122: 0 | U122: 0 | V122: 0 | W122: C170c
A123: 2024 | B123: 489171 | C123: 489 | D123: C | E123: 171 | F123: Subtotal - Development (Public) | G123: 0 | H123: 0 | I123: 66123.78 | J123: 0 | K123: 0 | L123: 0 | M123: 0 | N123: 0 | O123: 0 | P123: 0 | Q123: 0 | R123: 0 | S123: 0 | T123: 0 | U123: 0 | V123: 66123.78 | W123: C171
A124: 2024 | B124: 489171a | C124: 489 | D124: C | E124: 171a | F124: Salaries - Professional - Public | G124: 0 | H124: 0 | I124: 66123.78 | J124: 0 | K124: 0 | L124: 0 | M124: 0 | N124: 0 | O124: 0 | P124: 0 | Q124: 0 | R124: 0 | S124: 0 | T124: 0 | U124: 0 | V124: 66123.78 | W124: C171a
A125: 2024 | B125: 489171b | C125: 489 | D125: C | E125: 171b | F125: Contracted Services - Public | G125: 0 | H125: 0 | I125: 0 | J125: 0 | K125: 0 | L125: 0 | M125: 0 | N125: 0 | O125: 0 | P125: 0 | Q125: 0 | R125: 0 | S125: 0 | T125: 0 | U125: 0 | V125: 0 | W125: C171b
A126: 2024 | B126: 489200 | C126: 489 | D126: C | E126: 200 | F126: Instructional Services | G126: 8688686.46 | H126: 2681320.47 | I126: 86804.63 | J126: 0 | K126: 0 | L126: 0 | M126: 0 | N126: 0 | O126: 0 | P126: 0 | Q126: 0 | R126: 0 | S126: 0 | T126: 278840 | U126: 0 | V126: 11735651.56 | W126: C200
A127: 2024 | B127: 489210 | C127: 489 | D127: C | E127: 210 | F127: Instructional Subtotal - Instructional Leadership | G127: 732867.28 | H127: 388789 | I127: 0 | J127: 0 | K127: 0 | L127: 0 | M127: 0 | N127: 0 | O127: 0 | P127: 0 | Q127: 0 | R127: 0 | S127: 0 | T127: 0 | U127: 0 | V127: 1121656.28 | W127: C210
A128: 2024 | B128: 489211 | C128: 489 | D128: C | E128: 211 | F128: Salaries - Professional | G128: 389979 | H128: 336789 | I128: 0 | J128: 0 | K128: 0 | L128: 0 | M128: 0 | N128: 0 | O128: 0 | P128: 0 | Q128: 0 | R128: 0 | S128: 0 | T128: 0 | U128: 0 | V128: 726768 | W128: C211
A129: 2024 | B129: 489212 | C129: 489 | D129: C | E129: 212 | F129: Salaries - Clerical | G129: 342888.28 | H129: 52000 | I129: 0 | J129: 0 | K129: 0 | L129: 0 | M129: 0 | N129: 0 | O129: 0 | P129: 0 | Q129: 0 | R129: 0 | S129: 0 | T129: 0 | U129: 0 | V129: 394888.28 | W129: C212
A130: 2024 | B130: 489213 | C130: 489 | D130: C | E130: 213 | F130: Contracted Services | G130: 0 | H130: 0 | I130: 0 | J130: 0 | K130: 0 | L130: 0 | M130: 0 | N130: 0 | O130: 0 | P130: 0 | Q130: 0 | R130: 0 | S130: 0 | T130: 0 | U130: 0 | V130: 0 | W130: C213
A131: 2024 | B131: 489214 | C131: 489 | D131: =VLOOKUP(C131, TYPE, 3, FALSE) -> C | E131: 214 | F131: Supplies and Materials | G131: 0 | H131: 0 | I131: 0 | J131: 0 | K131: 0 | L131: 0 | M131: 0 | N131: 0 | O131: 0 | P131: 0 | Q131: 0 | R131: 0 | S131: 0 | T131: 0 | U131: 0 | V131: 0 | W131: C214
A132: 2024 | B132: =C132&E132 -> 489215 | C132: 489 | D132: C | E132: 215 | F132: Travel and other expenses | G132: 0 | H132: 0 | I132: 0 | J132: 0 | K132: 0 | L132: 0 | M132: 0 | N132: 0 | O132: 0 | P132: 0 | Q132: 0 | R132: 0 | S132: 0 | T132: 0 | U132: 0 | V132: 0 | W132: =D132&E132 -> C215
A133: 2024 | B133: 489220 | C133: 489 | D133: C | E133: 220 | F133: Instructional Subtotal - Classroom and Specialist Teachers | G133: 6392981.53 | H133: 1257522.47 | I133: 0 | J133: 0 | K133: 0 | L133: 0 | M133: 0 | N133: 0 | O133: 0 | P133: 0 | Q133: 0 | R133: 0 | S133: 0 | T133: 0 | U133: 0 | V133: 7650504 | W133: C220
A134: 2024 | B134: 489221 | C134: 489 | D134: C | E134: 221 | F134: Salaries - Teachers, Classroom | G134: 6392981.53 | H134: 1205052.47 | I134: 0 | J134: 0 | K134: 0 | L134: 0 | M134: 0 | N134: 0 | O134: 0 | P134: 0 | Q134: 0 | R134: 0 | S134: 0 | T134: 0 | U134: 0 | V134: 7598034 | W134: C221
A135: 2024 | B135: 489222 | C135: 489 | D135: C | E135: 222 | F135: Salaries - Teachers, Specialists | G135: 0 | H135: 52470 | I135: 0 | J135: 0 | K135: 0 | L135: 0 | M135: 0 | N135: 0 | O135: 0 | P135: 0 | Q135: 0 | R135: 0 | S135: 0 | T135: 0 | U135: 0 | V135: 52470 | W135: C222
A136: 2024 | B136: 489230 | C136: 489 | D136: C | E136: 230 | F136: Instructional Subtotal - Other Teaching Services | G136: 571674.97 | H136: 753205 | I136: 0 | J136: 0 | K136: 0 | L136: 0 | M136: 0 | N136: 0 | O136: 0 | P136: 0 | Q136: 0 | R136: 0 | S136: 0 | T136: 218401 | U136: 0 | V136: 1543280.97 | W136: C230
A137: 2024 | B137: 489231 | C137: 489 | D137: C | E137: 231 | F137: Salaries - Professional | G137: 388347.37 | H137: 0 | I137: 0 | J137: 0 | K137: 0 | L137: 0 | M137: 0 | N137: 0 | O137: 0 | P137: 0 | Q137: 0 | R137: 0 | S137: 0 | T137: 0 | U137: 0 | V137: 388347.37 | W137: C231
A138: 2024 | B138: 489232 | C138: 489 | D138: C | E138: 232 | F138: Salaries - Non-clerical Paraprofessionals | G138: 0 | H138: 691555 | I138: 0 | J138: 0 | K138: 0 | L138: 0 | M138: 0 | N138: 0 | O138: 0 | P138: 0 | Q138: 0 | R138: 0 | S138: 0 | T138: 218401 | U138: 0 | V138: 909956 | W138: C232
A139: 2024 | B139: 489233 | C139: 489 | D139: C | E139: 233 | F139: Salaries - Clerical | G139: 97554.6 | H139: 0 | I139: 0 | J139: 0 | K139: 0 | L139: 0 | M139: 0 | N139: 0 | O139: 0 | P139: 0 | Q139: 0 | R139: 0 | S139: 0 | T139: 0 | U139: 0 | V139: 97554.6 | W139: C233
A140: 2024 | B140: 489234 | C140: 489 | D140: C | E140: 234 | F140: Contracted Services | G140: 85773 | H140: 61650 | I140: 0 | J140: 0 | K140: 0 | L140: 0 | M140: 0 | N140: 0 | O140: 0 | P140: 0 | Q140: 0 | R140: 0 | S140: 0 | T140: 0 | U140: 0 | V140: 147423 | W140: C234
A141: 2024 | B141: 489240 | C141: 489 | D141: C | E141: 240 | F141: Instructional Subtotal - Professional Development | G141: 62566 | H141: 0 | I141: 0 | J141: 0 | K141: 0 | L141: 0 | M141: 0 | N141: 0 | O141: 0 | P141: 0 | Q141: 0 | R141: 0 | S141: 0 | T141: 0 | U141: 0 | V141: 62566 | W141: C240
A142: 2024 | B142: 489241 | C142: 489 | D142: C | E142: 241 | F142: Salaries - Professional | G142: 0 | H142: 0 | I142: 0 | J142: 0 | K142: 0 | L142: 0 | M142: 0 | N142: 0 | O142: 0 | P142: 0 | Q142: 0 | R142: 0 | S142: 0 | T142: 0 | U142: 0 | V142: 0 | W142: C241
A143: 2024 | B143: 489242 | C143: 489 | D143: C | E143: 242 | F143: Contracted Services | G143: 0 | H143: 0 | I143: 0 | J143: 0 | K143: 0 | L143: 0 | M143: 0 | N143: 0 | O143: 0 | P143: 0 | Q143: 0 | R143: 0 | S143: 0 | T143: 0 | U143: 0 | V143: 0 | W143: C242
A144: 2024 | B144: 489243 | C144: 489 | D144: C | E144: 243 | F144: Supplies and Materials | G144: 0 | H144: 0 | I144: 0 | J144: 0 | K144: 0 | L144: 0 | M144: 0 | N144: 0 | O144: 0 | P144: 0 | Q144: 0 | R144: 0 | S144: 0 | T144: 0 | U144: 0 | V144: 0 | W144: C243
A145: 2024 | B145: 489244 | C145: 489 | D145: C | E145: 244 | F145: Travel and other expenses | G145: 62566 | H145: 0 | I145: 0 | J145: 0 | K145: 0 | L145: 0 | M145: 0 | N145: 0 | O145: 0 | P145: 0 | Q145: 0 | R145: 0 | S145: 0 | T145: 0 | U145: 0 | V145: 62566 | W145: C244
A146: 2024 | B146: 489250 | C146: 489 | D146: C | E146: 250 | F146: Instructional Subtotal - Guidance, Psychological & Testing | G146: 558449.95 | H146: 281804 | I146: 0 | J146: 0 | K146: 0 | L146: 0 | M146: 0 | N146: 0 | O146: 0 | P146: 0 | Q146: 0 | R146: 0 | S146: 0 | T146: 44172 | U146: 0 | V146: 884425.95 | W146: C250
A147: 2024 | B147: 489251 | C147: 489 | D147: C | E147: 251 | F147: Salaries - Professional | G147: 495309.81 | H147: 281804 | I147: 0 | J147: 0 | K147: 0 | L147: 0 | M147: 0 | N147: 0 | O147: 0 | P147: 0 | Q147: 0 | R147: 0 | S147: 0 | T147: 0 | U147: 0 | V147: 777113.81 | W147: C251
A148: 2024 | B148: 489252 | C148: 489 | D148: C | E148: 252 | F148: Salaries - Clerical | G148: 63140.14 | H148: 0 | I148: 0 | J148: 0 | K148: 0 | L148: 0 | M148: 0 | N148: 0 | O148: 0 | P148: 0 | Q148: 0 | R148: 0 | S148: 0 | T148: 0 | U148: 0 | V148: 63140.14 | W148: C252
A149: 2024 | B149: 489253 | C149: 489 | D149: C | E149: 253 | F149: Contracted Services | G149: 0 | H149: 0 | I149: 0 | J149: 0 | K149: 0 | L149: 0 | M149: 0 | N149: 0 | O149: 0 | P149: 0 | Q149: 0 | R149: 0 | S149: 0 | T149: 44172 | U149: 0 | V149: 44172 | W149: C253
A150: 2024 | B150: 489254 | C150: 489 | D150: C | E150: 254 | F150: Supplies and Materials | G150: 0 | H150: 0 | I150: 0 | J150: 0 | K150: 0 | L150: 0 | M150: 0 | N150: 0 | O150: 0 | P150: 0 | Q150: 0 | R150: 0 | S150: 0 | T150: 0 | U150: 0 | V150: 0 | W150: C254
A151: 2024 | B151: 489260 | C151: 489 | D151: C | E151: 260 | F151: Instructional Subtotal - Materials, Equipment & Technology | G151: 370146.73 | H151: 0 | I151: 86804.63 | J151: 0 | K151: 0 | L151: 0 | M151: 0 | N151: 0 | O151: 0 | P151: 0 | Q151: 0 | R151: 0 | S151: 0 | T151: 16267 | U151: 0 | V151: 473218.36 | W151: C260
A152: 2024 | B152: 489261 | C152: 489 | D152: C | E152: 261 | F152: Textbooks & Related Media/Materials | G152: 26662.17 | H152: 0 | I152: 0 | J152: 0 | K152: 0 | L152: 0 | M152: 0 | N152: 0 | O152: 0 | P152: 0 | Q152: 0 | R152: 0 | S152: 0 | T152: 0 | U152: 0 | V152: 26662.17 | W152: C261
A153: 2024 | B153: 489262 | C153: 489 | D153: C | E153: 262 | F153: Other Instructional Materials | G153: 0 | H153: 0 | I153: 86804.63 | J153: 0 | K153: 0 | L153: 0 | M153: 0 | N153: 0 | O153: 0 | P153: 0 | Q153: 0 | R153: 0 | S153: 0 | T153: 0 | U153: 0 | V153: 86804.63 | W153: C262
A154: 2024 | B154: 489263 | C154: 489 | D154: C | E154: 263 | F154: Instructional Equipment | G154: 0 | H154: 0 | I154: 0 | J154: 0 | K154: 0 | L154: 0 | M154: 0 | N154: 0 | O154: 0 | P154: 0 | Q154: 0 | R154: 0 | S154: 0 | T154: 0 | U154: 0 | V154: 0 | W154: C263
A155: 2024 | B155: 489264 | C155: 489 | D155: C | E155: 264 | F155: General Supplies | G155: 36259 | H155: 0 | I155: 0 | J155: 0 | K155: 0 | L155: 0 | M155: 0 | N155: 0 | O155: 0 | P155: 0 | Q155: 0 | R155: 0 | S155: 0 | T155: 0 | U155: 0 | V155: 36259 | W155: C264
A156: 2024 | B156: 489265 | C156: 489 | D156: C | E156: 265 | F156: Other Instructional Services | G156: 16643 | H156: 0 | I156: 0 | J156: 0 | K156: 0 | L156: 0 | M156: 0 | N156: 0 | O156: 0 | P156: 0 | Q156: 0 | R156: 0 | S156: 0 | T156: 1401.23 | U156: 0 | V156: 18044.23 | W156: C265
A157: 2024 | B157: 489266 | C157: 489 | D157: C | E157: 266 | F157: Classroom Instructional Technology Hardware | G157: 290582.56 | H157: 0 | I157: 0 | J157: 0 | K157: 0 | L157: 0 | M157: 0 | N157: 0 | O157: 0 | P157: 0 | Q157: 0 | R157: 0 | S157: 0 | T157: 0 | U157: 0 | V157: 290582.56 | W157: C266
A158: 2024 | B158: 489267 | C158: 489 | D158: C | E158: 267 | F158: Other Instructional Technology Hardware | G158: 0 | H158: 0 | I158: 0 | J158: 0 | K158: 0 | L158: 0 | M158: 0 | N158: 0 | O158: 0 | P158: 0 | Q158: 0 | R158: 0 | S158: 0 | T158: 14865.77 | U158: 0 | V158: 14865.77 | W158: C267
A159: 2024 | B159: 489268a | C159: 489 | D159: C | E159: 268a | F159: Classroom Instructional Software | G159: 0 | H159: 0 | I159: 0 | J159: 0 | K159: 0 | L159: 0 | M159: 0 | N159: 0 | O159: 0 | P159: 0 | Q159: 0 | R159: 0 | S159: 0 | T159: 0 | U159: 0 | V159: 0 | W159: C268a
A160: 2024 | B160: 489268b | C160: 489 | D160: C | E160: 268b | F160: Other Instructional Software | G160: 0 | H160: 0 | I160: 0 | J160: 0 | K160: 0 | L160: 0 | M160: 0 | N160: 0 | O160: 0 | P160: 0 | Q160: 0 | R160: 0 | S160: 0 | T160: 0 | U160: 0 | V160: 0 | W160: C268b
A161: 2024 | B161: 489269 | C161: 489 | D161: C | E161: 269 | F161: Depreciation for Furniture, Equipment & Technology | G161: 0 | H161: 0 | I161: 0 | J161: 0 | K161: 0 | L161: 0 | M161: 0 | N161: 0 | O161: 0 | P161: 0 | Q161: 0 | R161: 0 | S161: 0 | T161: 0 | U161: 0 | V161: 0 | W161: C269
A162: 2024 | B162: 489300 | C162: 489 | D162: C | E162: 300 | F162: Pupil Services | G162: 16643 | H162: 0 | I162: 651151.33 | J162: 0 | K162: 0 | L162: 0 | M162: 0 | N162: 0 | O162: 0 | P162: 0 | Q162: 0 | R162: 0 | S162: 0 | T162: 0 | U162: 0 | V162: 667794.33 | W162: C300
A163: 2024 | B163: 489310 | C163: 489 | D163: C | E163: 310 | F163: Health Services | G163: 0 | H163: 0 | I163: 99906.33 | J163: 0 | K163: 0 | L163: 0 | M163: 0 | N163: 0 | O163: 0 | P163: 0 | Q163: 0 | R163: 0 | S163: 0 | T163: 0 | U163: 0 | V163: 99906.33 | W163: C310
A164: 2024 | B164: 489315 | C164: 489 | D164: C | E164: 315 | F164: Health Services - Contracted | G164: 0 | H164: 0 | I164: 0 | J164: 0 | K164: 0 | L164: 0 | M164: 0 | N164: 0 | O164: 0 | P164: 0 | Q164: 0 | R164: 0 | S164: 0 | T164: 0 | U164: 0 | V164: 0 | W164: C315
A165: 2024 | B165: 489320 | C165: 489 | D165: C | E165: 320 | F165: Athletic Services (including Transportation) | G165: 0 | H165: 0 | I165: 491957 | J165: 0 | K165: 0 | L165: 0 | M165: 0 | N165: 0 | O165: 0 | P165: 0 | Q165: 0 | R165: 0 | S165: 0 | T165: 0 | U165: 0 | V165: 491957 | W165: C320
A166: 2024 | B166: 489325 | C166: 489 | D166: C | E166: 325 | F166: Athletic Services (including Transportation) - Contracted | G166: 0 | H166: 0 | I166: 0 | J166: 0 | K166: 0 | L166: 0 | M166: 0 | N166: 0 | O166: 0 | P166: 0 | Q166: 0 | R166: 0 | S166: 0 | T166: 0 | U166: 0 | V166: 0 | W166: C325
A167: 2024 | B167: 489330 | C167: 489 | D167: C | E167: 330 | F167: Food Services | G167: 0 | H167: 0 | I167: 59288 | J167: 0 | K167: 0 | L167: 0 | M167: 0 | N167: 0 | O167: 0 | P167: 0 | Q167: 0 | R167: 0 | S167: 0 | T167: 0 | U167: 0 | V167: 59288 | W167: C330
A168: 2024 | B168: 489335 | C168: 489 | D168: C | E168: 335 | F168: Food Services - Contracted | G168: 0 | H168: 0 | I168: 0 | J168: 0 | K168: 0 | L168: 0 | M168: 0 | N168: 0 | O168: 0 | P168: 0 | Q168: 0 | R168: 0 | S168: 0 | T168: 0 | U168: 0 | V168: 0 | W168: C335
A169: 2024 | B169: 489340 | C169: 489 | D169: C | E169: 340 | F169: Student Transportation (to and from school) | G169: 16643 | H169: 0 | I169: 0 | J169: 0 | K169: 0 | L169: 0 | M169: 0 | N169: 0 | O169: 0 | P169: 0 | Q169: 0 | R169: 0 | S169: 0 | T169: 0 | U169: 0 | V169: 16643 | W169: C340
A170: 2024 | B170: 489345 | C170: 489 | D170: C | E170: 345 | F170: Student Transportation (to and from school) - Contracted | G170: 0 | H170: 0 | I170: 0 | J170: 0 | K170: 0 | L170: 0 | M170: 0 | N170: 0 | O170: 0 | P170: 0 | Q170: 0 | R170: 0 | S170: 0 | T170: 0 | U170: 0 | V170: 0 | W170: C345
A171: 2024 | B171: 489350 | C171: 489 | D171: C | E171: 350 | F171: Depreciation of Transportation Vehicles | G171: 0 | H171: 0 | I171: 0 | J171: 0 | K171: 0 | L171: 0 | M171: 0 | N171: 0 | O171: 0 | P171: 0 | Q171: 0 | R171: 0 | S171: 0 | T171: 0 | U171: 0 | V171: 0 | W171: C350
A172: 2024 | B172: 489360 | C172: 489 | D172: C | E172: 360 | F172: Other Student Activities | G172: 0 | H172: 0 | I172: 0 | J172: 0 | K172: 0 | L172: 0 | M172: 0 | N172: 0 | O172: 0 | P172: 0 | Q172: 0 | R172: 0 | S172: 0 | T172: 0 | U172: 0 | V172: 0 | W172: C360
A173: 2024 | B173: 489400 | C173: 489 | D173: C | E173: 400 | F173: Operation & Maintenance of Plant | G173: 0 | H173: 0 | I173: 807248.99 | J173: 0 | K173: 0 | L173: 0 | M173: 0 | N173: 0 | O173: 0 | P173: 0 | Q173: 0 | R173: 0 | S173: 0 | T173: 0 | U173: 0 | V173: 807248.99 | W173: C400
A174: 2024 | B174: 489410 | C174: 489 | D174: C | E174: 410 | F174: Operation & Maintenance of Buildings and Grounds | G174: 0 | H174: 0 | I174: 471063.99 | J174: 0 | K174: 0 | L174: 0 | M174: 0 | N174: 0 | O174: 0 | P174: 0 | Q174: 0 | R174: 0 | S174: 0 | T174: 0 | U174: 0 | V174: 471063.99 | W174: C410
A175: 2024 | B175: 489420 | C175: 489 | D175: C | E175: 420 | F175: Utilities | G175: 0 | H175: 0 | I175: 202941 | J175: 0 | K175: 0 | L175: 0 | M175: 0 | N175: 0 | O175: 0 | P175: 0 | Q175: 0 | R175: 0 | S175: 0 | T175: 0 | U175: 0 | V175: 202941 | W175: C420
A176: 2024 | B176: 489430 | C176: 489 | D176: C | E176: 430 | F176: Maintenance of Equipment | G176: 0 | H176: 0 | I176: 133244 | J176: 0 | K176: 0 | L176: 0 | M176: 0 | N176: 0 | O176: 0 | P176: 0 | Q176: 0 | R176: 0 | S176: 0 | T176: 0 | U176: 0 | V176: 133244 | W176: C430
A177: 2024 | B177: 489440 | C177: 489 | D177: C | E177: 440 | F177: Networking and Telecommunications | G177: 0 | H177: 0 | I177: 0 | J177: 0 | K177: 0 | L177: 0 | M177: 0 | N177: 0 | O177: 0 | P177: 0 | Q177: 0 | R177: 0 | S177: 0 | T177: 0 | U177: 0 | V177: 0 | W177: C440
A178: 2024 | B178: 489500 | C178: 489 | D178: C | E178: 500 | F178: Fixed Charges | G178: 0 | H178: 0 | I178: 4774618 | J178: 0 | K178: 0 | L178: 0 | M178: 0 | N178: 0 | O178: 0 | P178: 0 | Q178: 0 | R178: 0 | S178: 0 | T178: 0 | U178: 0 | V178: 4774618 | W178: C500
A179: 2024 | B179: 489510 | C179: 489 | D179: C | E179: 510 | F179: Employee Retirement & Taxes | G179: 0 | H179: 0 | I179: 3115511 | J179: 0 | K179: 0 | L179: 0 | M179: 0 | N179: 0 | O179: 0 | P179: 0 | Q179: 0 | R179: 0 | S179: 0 | T179: 0 | U179: 0 | V179: 3115511 | W179: C510
A180: 2024 | B180: 489520 | C180: 489 | D180: C | E180: 520 | F180: Fringe Benefits | G180: 0 | H180: 0 | I180: 1446006 | J180: 0 | K180: 0 | L180: 0 | M180: 0 | N180: 0 | O180: 0 | P180: 0 | Q180: 0 | R180: 0 | S180: 0 | T180: 0 | U180: 0 | V180: 1446006 | W180: C520
A181: 2024 | B181: 489530 | C181: 489 | D181: C | E181: 530 | F181: Insurance (non-employee) | G181: 0 | H181: 0 | I181: 179357 | J181: 0 | K181: 0 | L181: 0 | M181: 0 | N181: 0 | O181: 0 | P181: 0 | Q181: 0 | R181: 0 | S181: 0 | T181: 0 | U181: 0 | V181: 179357 | W181: C530
A182: 2024 | B182: 489550 | C182: 489 | D182: C | E182: 550 | F182: Rental/Lease of Equipment | G182: 0 | H182: 0 | I182: 33744 | J182: 0 | K182: 0 | L182: 0 | M182: 0 | N182: 0 | O182: 0 | P182: 0 | Q182: 0 | R182: 0 | S182: 0 | T182: 0 | U182: 0 | V182: 33744 | W182: C550
A183: 2024 | B183: 489560 | C183: 489 | D183: C | E183: 560 | F183: Short-Term Interest | G183: 0 | H183: 0 | I183: 0 | J183: 0 | K183: 0 | L183: 0 | M183: 0 | N183: 0 | O183: 0 | P183: 0 | Q183: 0 | R183: 0 | S183: 0 | T183: 0 | U183: 0 | V183: 0 | W183: C560
A184: 2024 | B184: 489600 | C184: 489 | D184: C | E184: 600 | F184: Community Services | G184: 0 | H184: 0 | I184: 0 | J184: 0 | K184: 0 | L184: 0 | M184: 0 | N184: 0 | O184: 0 | P184: 0 | Q184: 0 | R184: 0 | S184: 0 | T184: 0 | U184: 0 | V184: 0 | W184: C600
A185: 2024 | B185: 489610 | C185: 489 | D185: C | E185: 610 | F185: Dissemination Activities | G185: 0 | H185: 0 | I185: 0 | J185: 0 | K185: 0 | L185: 0 | M185: 0 | N185: 0 | O185: 0 | P185: 0 | Q185: 0 | R185: 0 | S185: 0 | T185: 0 | U185: 0 | V185: 0 | W185: C610
A186: 2024 | B186: 489620 | C186: 489 | D186: C | E186: 620 | F186: Civic Activities | G186: 0 | H186: 0 | I186: 0 | J186: 0 | K186: 0 | L186: 0 | M186: 0 | N186: 0 | O186: 0 | P186: 0 | Q186: 0 | R186: 0 | S186: 0 | T186: 0 | U186: 0 | V186: 0 | W186: C620
A187: 2024 | B187: 489700 | C187: 489 | D187: C | E187: 700 | F187: Non-Operating / Capital Facilities Costs | G187: 0 | H187: 0 | I187: 1826780 | J187: 0 | K187: 0 | L187: 0 | M187: 0 | N187: 0 | O187: 0 | P187: 0 | Q187: 0 | R187: 0 | S187: 0 | T187: 0 | U187: 0 | V187: 1826780 | W187: C700
A188: 2024 | B188: 489720 | C188: 489 | D188: C | E188: 720 | F188: Long-Term Interest, facilities related | G188: 0 | H188: 0 | I188: 0 | J188: 0 | K188: 0 | L188: 0 | M188: 0 | N188: 0 | O188: 0 | P188: 0 | Q188: 0 | R188: 0 | S188: 0 | T188: 0 | U188: 0 | V188: 0 | W188: C720
A189: 2024 | B189: 489725 | C189: 489 | D189: C | E189: 725 | F189: Long-Term Interest, non-facilities related | G189: 0 | H189: 0 | I189: 0 | J189: 0 | K189: 0 | L189: 0 | M189: 0 | N189: 0 | O189: 0 | P189: 0 | Q189: 0 | R189: 0 | S189: 0 | T189: 0 | U189: 0 | V189: 0 | W189: C725
A190: 2024 | B190: 489730 | C190: 489 | D190: C | E190: 730 | F190: Other costs related to capital facilities acquisition | G190: 0 | H190: 0 | I190: 0 | J190: 0 | K190: 0 | L190: 0 | M190: 0 | N190: 0 | O190: 0 | P190: 0 | Q190: 0 | R190: 0 | S190: 0 | T190: 0 | U190: 0 | V190: 0 | W190: C730
A191: 2024 | B191: 489740 | C191: 489 | D191: C | E191: 740 | F191: Rental/Lease of Buildings & Grounds | G191: 0 | H191: 0 | I191: 1774200 | J191: 0 | K191: 0 | L191: 0 | M191: 0 | N191: 0 | O191: 0 | P191: 0 | Q191: 0 | R191: 0 | S191: 0 | T191: 0 | U191: 0 | V191: 1774200 | W191: C740
A192: 2024 | B192: 489750 | C192: 489 | D192: C | E192: 750 | F192: Depreciation of Equipment, Building, & Grounds | G192: 0 | H192: 0 | I192: 52580 | J192: 0 | K192: 0 | L192: 0 | M192: 0 | N192: 0 | O192: 0 | P192: 0 | Q192: 0 | R192: 0 | S192: 0 | T192: 0 | U192: 0 | V192: 52580 | W192: C750
A193: 2024 | B193: 489760 | C193: 489 | D193: C | E193: 760 | F193: Bad debt / loss on disposal of assets | G193: 0 | H193: 0 | I193: 0 | J193: 0 | K193: 0 | L193: 0 | M193: 0 | N193: 0 | O193: 0 | P193: 0 | Q193: 0 | R193: 0 | S193: 0 | T193: 0 | U193: 0 | V193: 0 | W193: C760
A194: 2024 | B194: 489770 | C194: 489 | D194: C | E194: 770 | F194: Other non-operating | G194: 0 | H194: 0 | I194: 0 | J194: 0 | K194: 0 | L194: 0 | M194: 0 | N194: 0 | O194: 0 | P194: 0 | Q194: 0 | R194: 0 | S194: 0 | T194: 0 | U194: 0 | V194: 0 | W194: C770
A195: 2024 | B195: 489800 | C195: 489 | D195: =VLOOKUP(C195, TYPE, 3, FALSE) -> C | E195: 800 | F195: Totals | G195: 8705329.46 | H195: 2681320.47 | I195: 9207424.019 | J195: 0 | K195: 0 | L195: 0 | M195: 0 | N195: 0 | O195: 0 | P195: 0 | Q195: 0 | R195: 0 | S195: 0 | T195: 278840 | U195: 0 | V195: 20872913.95 | W195: C800
A196: 2024 | B196: =C196&E196 -> 489910 | C196: 489 | D196: C | E196: 910 | F196: Reference: Capitalized Expenditures | G196: 0 | H196: 0 | I196: 0 | J196: 0 | K196: 0 | L196: 0 | M196: 0 | N196: 0 | O196: 0 | P196: 0 | Q196: 0 | R196: 0 | S196: 0 | T196: 0 | U196: 0 | V196: 0 | W196: =D196&E196 -> C910
A197: 2024 | B197: 489920 | C197: 489 | D197: C | E197: 920 | F197: Reference: Deferrals/Carryovers | G197: 0 | H197: 0 | I197: 0 | J197: 0 | K197: 0 | L197: 0 | M197: 0 | N197: 0 | O197: 0 | P197: 0 | Q197: 0 | R197: 0 | S197: 0 | T197: 0 | U197: 0 | V197: 0 | W197: C920
A198: 2024 | B198: 489900 | C198: 489 | D198: C | E198: 900 | F198: Reference: Totals | G198: 0 | H198: 0 | I198: 9207424.019 | J198: 0 | K198: 0 | L198: 0 | M198: 0 | N198: 0 | O198: 0 | P198: 0 | Q198: 0 | R198: 0 | S198: 0 | T198: 278840 | U198: 0 | V198: 20872913.95 | W198: C900
A199: 2024 | B199: 409100 | C199: 409 | D199: C | E199: 100 | F199: Administration | G199: 0 | H199: 0 | I199: 2005004.43 | J199: 0 | K199: 0 | L199: 0 | M199: 0 | N199: 0 | O199: 0 | P199: 0 | Q199: 0 | R199: 0 | S199: 0 | T199: 62694 | U199: 0 | V199: 2067698.43 | W199: C100
A200: 2024 | B200: 409110 | C200: 409 | D200: C | E200: 110 | F200: Subtotal - Board of Trustees | G200: 0 | H200: 0 | I200: 14898 | J200: 0 | K200: 0 | L200: 0 | M200: 0 | N200: 0 | O200: 0 | P200: 0 | Q200: 0 | R200: 0 | S200: 0 | T200: 0 | U200: 0 | V200: 14898 | W200: C110
... 2050 more rows

Sheet FACTS (hidden)
A1: LEA | B1: Charter School | C1: Type | D1: Acct. Cohort | E1: Acct. Liaison | F1: Location | G1: Charter Status 7/1/2018 | H1: Charter Granted | I1: Counts Toward Numeric Cap | J1: Year Opened (Fall) | K1: FY19 Years of Operation | L1: 1st Charter Renewal | M1: 2nd Charter Renewal | N1: 3rd Charter Renewal | O1: 4th Charter Renewal Year | P1: 1st Charter Renewal | Q1: 2nd Charter Renewal | R1: 3rd Charter Renewal | S1: 4th Charter Renewal | T1: Last Charter Renewal | U1: Charter Expires | V1: Charter Expires | W1: Regional | X1: EMO | Y1: Max Grade Span | Z1: Max. Enroll # | AA1: Location Type | AB1: School Type | AC1: If Closed: School Year of Closure | AD1: Closure type
A2: 445 | B2: Abby Kelley Foster Charter Public School | C2: C | D2: 2 | F2: Worcester | G2: No Status | H2: 1998 | I2: Yes | J2: 1998 | K2: 21 | L2: 2003 | M2: 2008 | N2: 2013 | O2: 2018 | P2: 2003 | Q2: 2008 | R2: 2013 | S2: 2018 | T2: 2018 | U2: 2023 | V2: 2023 | W2: Yes | X2: Former | Y2: K-12 | Z2: 1426 | AA2: Urban | AB2: K12 | AC2: NA
A3: 412 | B3: Academy of the Pacific Rim Charter Public School | C3: C | D3: 1 | F3: Boston | G3: No Status | H3: 1995 | I3: Yes | J3: 1997 | K3: 22 | L3: 2002 | M3: 2007 | N3: 2012 | O3: 2017 | P3: 2002 | Q3: 2007 | R3: 2012 | S3: 2017 | T3: 2017 | U3: 2022 | V3: 2022 | W3: No | X3: No | Y3: 05-12 | Z3: 545 | AA3: Boston | AB3: MSHS | AC3: NA
A4: 430 | B4: Advanced Math and Science Academy Charter School | C4: C | D4: 4 | F4: Marlborough | G4: No Status | H4: 2004 | I4: Yes | J4: 2005 | K4: 14 | L4: 2010 | M4: 2015 | N4: 2020 | O4: 2025 | P4: 2010 | Q4: 2015 | R4: NA | S4: NA | T4: 2015 | U4: 2020 | V4: 2020 | W4: Yes | X4: No | Y4: 06-12 | Z4: 966 | AA4: Suburb | AB4: MSHS | AC4: NA
A5: 409 | B5: Alma del Mar Charter School | C5: C | D5: 5 | F5: New Bedford | G5: No Status | H5: 2011 | I5: Yes | J5: 2011 | K5: 8 | L5: 2016 | M5: 2021 | N5: 2026 | O5: 2031 | P5: 2016 | Q5: NA | R5: NA | S5: NA | T5: 2016 | U5: 2021 | V5: 2021 | W5: No | X5: No | Y5: K-08 | Z5: 450 | AA5: Urban | AB5: ESMS | AC5: NA
A6: 3509 | B6: Argosy Collegiate Charter School | C6: C | D6: 3 | F6: Fall River | G6: No Status | H6: 2014 | I6: No | J6: 2014 | K6: 5 | L6: 2019 | M6: 2024 | N6: 2029 | O6: 2034 | P6: NA | Q6: NA | R6: NA | S6: NA | T6: 0 | U6: 2019 | V6: 2019 | W6: No | X6: No | Y6: 06-12 | Z6: 644 | AA6: Urban | AB6: MSHS | AC6: NA
A7: 491 | B7: Atlantis Charter School | C7: C | D7: 4 | F7: Fall River | G7: No Status | H7: 1994 | I7: Yes | J7: 1995 | K7: 24 | L7: 2000 | M7: 2005 | N7: 2010 | O7: 2015 | P7: 2000 | Q7: 2005 | R7: 2010 | S7: 2015 | T7: 2015 | U7: 2020 | V7: 2020 | W7: No | X7: No | Y7: K-12 | Z7: 1378 | AA7: Urban | AB7: K12 | AC7: NA
A8: 427 | B8: Barnstable Community Horace Mann Charter Public School | C8: HM | D8: 3 | F8: Barnstable | G8: No Status | H8: 2004 | I8: Yes | J8: 2004 | K8: 15 | L8: 2009 | M8: 2014 | N8: 2019 | O8: 2024 | P8: 2009 | Q8: 2014 | R8: NA | S8: NA | T8: 2014 | U8: 2019 | V8: 2019 | W8: NA | X8: No | Y8: K-03 | Z8: 475 | AA8: Suburb | AB8: ES | AC8: NA
A9: 3502 | B9: Baystate Academy Charter Public School | C9: C | D9: 2 | F9: Springfield | G9: Conditions | H9: 2012 | I9: No | J9: 2013 | K9: 6 | L9: 2018 | M9: 2023 | N9: 2028 | O9: 2033 | P9: 2018 | Q9: NA | R9: NA | S9: NA | T9: 2018 | U9: 2023 | V9: 2023 | W9: No | X9: No | Y9: 06-12 | Z9: 560 | AA9: Urban | AB9: MSHS | AC9: NA
A10: 420 | B10: Benjamin Banneker Charter Public School | C10: C | D10: 5 | F10: Cambridge | G10: No Status | H10: 1995 | I10: Yes | J10: 1996 | K10: 23 | L10: 2001 | M10: 2006 | N10: 2011 | O10: 2016 | P10: 2001 | Q10: 2006 | R10: 2011 | S10: 2016 | T10: 2016 | U10: 2021 | V10: 2021 | W10: No | X10: No | Y10: PK-06 | Z10: 350 | AA10: Urban | AB10: ESMS | AC10: NA
A11: 447 | B11: Benjamin Franklin Classical Charter Public School | C11: C | D11: 4 | F11: Franklin | G11: No Status | H11: 1994 | I11: Yes | J11: 1995 | K11: 24 | L11: 2000 | M11: 2005 | N11: 2010 | O11: 2015 | P11: 2000 | Q11: 2005 | R11: 2010 | S11: 2015 | T11: 2015 | U11: 2020 | V11: 2020 | W11: Yes | X11: No | Y11: K-08 | Z11: 900 | AA11: Suburb | AB11: ESMS | AC11: NA
A12: 3511 | B12: Bentley Academy Charter School | C12: HM | D12: 4 | F12: Salem | G12: No Status | H12: 2015 | I12: Yes | J12: 2015 | K12: 4 | L12: 2020 | M12: 2025 | N12: 2030 | O12: 2035 | P12: NA | Q12: NA | R12: NA | S12: NA | T12: 0 | U12: 2020 | V12: 2020 | W12: No | X12: No | Y12: K-05 | Z12: 350 | AA12: Urban | AB12: ES | AC12: NA
A13: 414 | B13: Berkshire Arts and Technology Charter Public School | C13: C | D13: 3 | F13: Adams | G13: No Status | H13: 2003 | I13: Yes | J13: 2004 | K13: 15 | L13: 2009 | M13: 2014 | N13: 2019 | O13: 2024 | P13: 2009 | Q13: 2014 | R13: NA | S13: NA | T13: 2014 | U13: 2019 | V13: 2019 | W13: Yes | X13: No | Y13: 06-12 | Z13: 363 | AA13: Rural | AB13: MSHS | AC13: NA
A14: 449 | B14: Boston Collegiate Charter School | C14: C | D14: 2 | F14: Boston | G14: No Status | H14: 1998 | I14: Yes | J14: 1998 | K14: 21 | L14: 2003 | M14: 2008 | N14: 2013 | O14: 2018 | P14: 2003 | Q14: 2008 | R14: 2013 | S14: 2018 | T14: 2018 | U14: 2023 | V14: 2023 | W14: No | X14: No | Y14: 05-12 | Z14: 700 | AA14: Boston | AB14: MSHS | AC14: NA
A15: 424 | B15: Boston Day and Evening Academy Charter School | C15: HM | D15: 2 | F15: Boston | G15: No Status | H15: 1998 | I15: Yes | J15: 1998 | K15: 21 | L15: 2003 | M15: 2008 | N15: 2013 | O15: 2018 | P15: 2003 | Q15: 2008 | R15: 2013 | S15: 2018 | T15: 2018 | U15: 2023 | V15: 2023 | W15: NA | X15: No | Y15: 09-12 | Z15: 405 | AA15: Boston | AB15: HS | AC15: NA
A16: 411 | B16: Boston Green Academy Horace Mann Charter School | C16: HM | D16: 5 | F16: Boston | G16: Probation | H16: 2011 | I16: Yes | J16: 2011 | K16: 8 | L16: 2016 | M16: 2021 | N16: 2026 | O16: 2031 | P16: 2016 | Q16: NA | R16: NA | S16: NA | T16: 2016 | U16: 2021 | V16: 2021 | W16: NA | X16: No | Y16: 06-12 | Z16: 595 | AA16: Boston | AB16: MSHS | AC16: NA
A17: 416 | B17: Boston Preparatory Charter Public School | C17: C | D17: 3 | F17: Boston | G17: No Status | H17: 2003 | I17: Yes | J17: 2004 | K17: 15 | L17: 2009 | M17: 2014 | N17: 2019 | O17: 2024 | P17: 2009 | Q17: 2014 | R17: NA | S17: NA | T17: 2014 | U17: 2019 | V17: 2019 | W17: No | X17: No | Y17: 06-12 | Z17: 700 | AA17: Boston | AB17: MSHS | AC17: NA
A18: 481 | B18: Boston Renaissance Charter Public School | C18: C | D18: 4 | F18: Boston | G18: Conditions | H18: 1994 | I18: Yes | J18: 1995 | K18: 24 | L18: 2000 | M18: 2005 | N18: 2010 | O18: 2015 | P18: 2000 | Q18: 2005 | R18: 2010 | S18: 2015 | T18: 2015 | U18: 2020 | V18: 2020 | W18: No | X18: Former | Y18: PK-06 | Z18: 944 | AA18: Boston | AB18: ESMS | AC18: NA
A19: 417 | B19: Bridge Boston Charter School | C19: C | D19: 5 | F19: Boston | G19: No Status | H19: 2011 | I19: No | J19: 2011 | K19: 8 | L19: 2016 | M19: 2021 | N19: 2026 | O19: 2031 | P19: 2016 | Q19: NA | R19: NA | S19: NA | T19: 2016 | U19: 2021 | V19: 2021 | W19: No | X19: No | Y19: PK-8 | Z19: 335 | AA19: Boston | AB19: ESMS | AC19: NA
A20: 428 | B20: Brooke Charter School | C20: C | D20: 1 | F20: Boston | G20: No Status | H20: 2001 | I20: Yes | J20: 2002 | K20: 17 | L20: 2007 | M20: 2012 | N20: 2017 | O20: 2022 | P20: 2007 | Q20: 2012 | R20: 2017 | S20: NA | T20: 2017 | U20: 2022 | V20: 2022 | W20: Yes | X20: No | Y20: K-12 | Z20: 2221 | AA20: Boston | AB20: K12 | AC20: NA
A21: 432 | B21: Cape Cod Lighthouse Charter School | C21: C | D21: 4 | F21: Harwich | G21: No Status | H21: 1994 | I21: Yes | J21: 1995 | K21: 24 | L21: 2000 | M21: 2005 | N21: 2010 | O21: 2015 | P21: 2000 | Q21: 2005 | R21: 2010 | S21: 2015 | T21: 2015 | U21: 2020 | V21: 2020 | W21: Yes | X21: No | Y21: 06-08 | Z21: 260 | AA21: Suburb | AB21: MS | AC21: NA
A22: 418 | B22: Christa McAuliffe Charter School | C22: C | D22: 1 | F22: Framingham | G22: No Status | H22: 2001 | I22: Yes | J22: 2002 | K22: 17 | L22: 2007 | M22: 2012 | N22: 2017 | O22: 2022 | P22: 2007 | Q22: 2012 | R22: 2017 | S22: NA | T22: 2017 | U22: 2022 | V22: 2022 | W22: Yes | X22: Former | Y22: 06-08 | Z22: 396 | AA22: Suburb | AB22: MS | AC22: NA
A23: 437 | B23: City on a Hill Charter Public School Circuit Street | C23: C | D23: 4 | F23: Boston | G23: No Status | H23: 1994 | I23: Yes | J23: 1995 | K23: 24 | L23: 2000 | M23: 2005 | N23: 2010 | O23: 2015 | P23: 2000 | Q23: 2005 | R23: 2010 | S23: 2015 | T23: 2015 | U23: 2020 | V23: 2020 | W23: No | X23: No | Y23: 09-12 | Z23: 280 | AA23: Boston | AB23: HS | AC23: NA
A24: 3504 | B24: City on a Hill Charter Public School Dudley Square | C24: C | D24: 2 | F24: Boston | G24: No Status | H24: 2013 | I24: No | J24: 2013 | K24: 6 | L24: 2018 | M24: 2023 | N24: 2028 | O24: 2033 | P24: 2018 | Q24: NA | R24: NA | S24: NA | T24: 2018 | U24: 2023 | V24: 2023 | W24: No | X24: No | Y24: 09-12 | Z24: 280 | AA24: Boston | AB24: HS | AC24: NA
A25: 3507 | B25: City On A Hill Charter Public School New Bedford | C25: C | D25: 3 | F25: New Bedford | G25: No Status | H25: 2013 | I25: Yes | J25: 2014 | K25: 5 | L25: 2019 | M25: 2024 | N25: 2029 | O25: 2034 | P25: NA | Q25: NA | R25: NA | S25: NA | T25: 0 | U25: 2019 | V25: 2019 | W25: No | X25: No | Y25: 09-12 | Z25: 280 | AA25: Urban | AB25: HS | AC25: NA
A26: 438 | B26: Codman Academy Charter Public School | C26: C | D26: 5 | F26: Boston | G26: Conditions | H26: 2001 | I26: Yes | J26: 2001 | K26: 18 | L26: 2006 | M26: 2011 | N26: 2016 | O26: 2021 | P26: 2006 | Q26: 2011 | R26: 2016 | S26: NA | T26: 2016 | U26: 2021 | V26: 2021 | W26: No | X26: No | Y26: PK-12 | Z26: 345 | AA26: Boston | AB26: K12 | AC26: NA
A27: 3503 | B27: Collegiate Charter School of Lowell | C27: C | D27: 2 | F27: Lowell | G27: No Status | H27: 2012 | I27: No | J27: 2013 | K27: 6 | L27: 2018 | M27: 2023 | N27: 2028 | O27: 2033 | P27: 2018 | Q27: NA | R27: NA | S27: NA | T27: 2018 | U27: 2023 | V27: 2023 | W27: No | X27: Yes | Y27: K-12 | Z27: 1200 | AA27: Urban | AB27: K12 | AC27: NA
A28: 436 | B28: Community Charter School of Cambridge | C28: C | D28: 4 | F28: Cambridge | G28: No Status | H28: 2004 | I28: Yes | J28: 2005 | K28: 14 | L28: 2010 | M28: 2015 | N28: 2020 | O28: 2025 | P28: 2010 | Q28: 2015 | R28: NA | S28: NA | T28: 2015 | U28: 2020 | V28: 2020 | W28: No | X28: No | Y28: 06-12 | Z28: 420 | AA28: Urban | AB28: MSHS | AC28: NA
A29: 426 | B29: Community Day Charter Public School - Gateway | C29: C | D29: 1 | F29: Lawrence | G29: No Status | H29: 2011 | I29: No | J29: 2012 | K29: 7 | L29: 2017 | M29: 2022 | N29: 2027 | O29: 2032 | P29: 2017 | Q29: NA | R29: NA | S29: NA | T29: 2017 | U29: 2022 | V29: 2022 | W29: No | X29: Yes | Y29: PK-08 | Z29: 400 | AA29: Urban | AB29: ESMS | AC29: NA
A30: 440 | B30: Community Day Charter Public School - Prospect | C30: C | D30: 4 | F30: Lawrence | G30: No Status | H30: 1994 | I30: Yes | J30: 1995 | K30: 24 | L30: 2000 | M30: 2005 | N30: 2010 | O30: 2015 | P30: 2000 | Q30: 2005 | R30: 2010 | S30: 2015 | T30: 2015 | U30: 2020 | V30: 2020 | W30: No | X30: Yes | Y30: PK-08 | Z30: 400 | AA30: Urban | AB30: ESMS | AC30: NA
A31: 431 | B31: Community Day Charter Public School - R. Kingman Webster | C31: C | D31: 1 | F31: Lawrence | G31: No Status | H31: 2011 | I31: No | J31: 2012 | K31: 7 | L31: 2017 | M31: 2022 | N31: 2027 | O31: 2032 | P31: 2017 | Q31: NA | R31: NA | S31: NA | T31: 2017 | U31: 2022 | V31: 2022 | W31: No | X31: Yes | Y31: PK-08 | Z31: 400 | AA31: Urban | AB31: ESMS | AC31: NA
A32: 439 | B32: Conservatory Lab Charter School | C32: C | D32: 3 | F32: Boston | G32: No Status | H32: 1998 | I32: Yes | J32: 1999 | K32: 20 | L32: 2004 | M32: 2009 | N32: 2014 | O32: 2019 | P32: 2004 | Q32: 2009 | R32: 2014 | S32: NA | T32: 2014 | U32: 2019 | V32: 2019 | W32: No | X32: No | Y32: PK-08 | Z32: 444 | AA32: Boston | AB32: ESMS | AC32: NA
A33: 407 | B33: Dudley Street Neighborhood Charter School | C33: HM | D33: 1 | F33: Boston | G33: No Status | H33: 2012 | I33: Yes | J33: 2012 | K33: 7 | L33: 2017 | M33: 2022 | N33: 2027 | O33: 2032 | P33: 2017 | Q33: NA | R33: NA | S33: NA | T33: 2017 | U33: 2022 | V33: 2022 | W33: NA | X33: No | Y33: PK-5 | Z33: 325 | AA33: Boston | AB33: ES | AC33: NA
A34: 452 | B34: Edward M. Kennedy Academy for Health Careers: A Horace Mann Charter Public School | C34: HM | D34: 2 | F34: Boston | G34: No Status | H34: 1998 | I34: Yes | J34: 1998 | K34: 21 | L34: 2003 | M34: 2008 | N34: 2013 | O34: 2018 | P34: 2003 | Q34: 2008 | R34: 2013 | S34: 2018 | T34: 2018 | U34: 2023 | V34: 2023 | W34: NA | X34: No | Y34: 09-12 | Z34: 448 | AA34: Boston | AB34: HS | AC34: NA
A35: 410 | B35: Excel Academy Charter School | C35: C | D35: 2 | F35: Boston/Chelsea | G35: No Status | H35: 2003 | I35: Yes | J35: 2003 | K35: 16 | L35: 2008 | M35: 2013 | N35: 2018 | O35: 2023 | P35: 2008 | Q35: 2013 | R35: 2018 | S35: NA | T35: 2018 | U35: 2023 | V35: 2023 | W35: Yes | X35: No | Y35: 05-12 | Z35: 1344 | AA35: Boston | AB35: MSHS | AC35: NA
A36: 413 | B36: Four Rivers Charter Public School | C36: C | D36: 2 | F36: Greenfield | G36: No Status | H36: 2002 | I36: Yes | J36: 2003 | K36: 16 | L36: 2008 | M36: 2013 | N36: 2018 | O36: 2023 | P36: 2008 | Q36: 2013 | R36: 2018 | S36: NA | T36: 2018 | U36: 2023 | V36: 2023 | W36: Yes | X36: No | Y36: 07-12 | Z36: 220 | AA36: Urban | AB36: MSHS | AC36: NA
A37: 446 | B37: Foxborough Regional Charter School | C37: C | D37: 2 | F37: Foxborough | G37: No Status | H37: 1998 | I37: Yes | J37: 1998 | K37: 21 | L37: 2003 | M37: 2008 | N37: 2013 | O37: 2018 | P37: 2003 | Q37: 2008 | R37: 2013 | S37: 2018 | T37: 2018 | U37: 2023 | V37: 2023 | W37: Yes | X37: Former | Y37: K-12 | Z37: 1700 | AA37: Suburb | AB37: K12 | AC37: NA
A38: 478 | B38: Francis W. Parker Charter Essential School | C38: C | D38: 4 | F38: Devens | G38: No Status | H38: 1994 | I38: Yes | J38: 1995 | K38: 24 | L38: 2000 | M38: 2005 | N38: 2010 | O38: 2015 | P38: 2000 | Q38: 2005 | R38: 2010 | S38: 2015 | T38: 2015 | U38: 2020 | V38: 2020 | W38: Yes | X38: No | Y38: 07-12 | Z38: 400 | AA38: Suburb | AB38: MSHS | AC38: NA
A39: 496 | B39: Global Learning Charter Public School | C39: C | D39: 1 | F39: New Bedford | G39: No Status | H39: 2006 | I39: Yes | J39: 2007 | K39: 12 | L39: 2012 | M39: 2017 | N39: 2022 | O39: 2027 | P39: 2012 | Q39: 2017 | R39: NA | S39: NA | T39: 2017 | U39: 2022 | V39: 2022 | W39: No | X39: No | Y39: 05-12 | Z39: 500 | AA39: Urban | AB39: MSHS | AC39: NA
A40: 499 | B40: Hampden Charter School of Science | C40: C | D40: 3 | F40: Chicopee | G40: No Status | H40: 2008 | I40: Yes | J40: 2009 | K40: 10 | L40: 2014 | M40: 2019 | N40: 2024 | O40: 2029 | P40: 2014 | Q40: NA | R40: NA | S40: NA | T40: 2014 | U40: 2019 | V40: 2019 | W40: Yes | X40: No | Y40: 06-12 | Z40: 560 | AA40: Urban | AB40: MSHS | AC40: NA
A41: 3516 | B41: Hampden Charter School of Science West | C41: C | F41: Westfield | G41: No Status | H41: 2017 | I41: No | J41: 2018 | K41: 1 | L41: 2023 | M41: 2028 | N41: 2033 | O41: 2038 | P41: NA | Q41: NA | R41: NA | S41: NA | T41: 0 | U41: 2023 | V41: 2023 | W41: Yes | X41: No | Y41: 06-12 | Z41: 588 | AA41: Rural | AB41: MSHS | AC41: NA
A42: 419 | B42: Helen Y Davis Leadership Academy Charter Public School | C42: C | D42: 2 | F42: Boston | G42: Probation | H42: 2002 | I42: Yes | J42: 2003 | K42: 16 | L42: 2008 | M42: 2013 | N42: 2018 | O42: 2023 | P42: 2008 | Q42: 2013 | R42: 2018 | S42: NA | T42: 2018 | U42: 2023 | V42: 2023 | W42: No | X42: No | Y42: 06-08 | Z42: 216 | AA42: Boston | AB42: MS | AC42: NA
A43: 455 | B43: Hill View Montessori Charter Public School | C43: C | D43: 3 | F43: Haverhill | G43: No Status | H43: 2003 | I43: Yes | J43: 2004 | K43: 15 | L43: 2009 | M43: 2014 | N43: 2019 | O43: 2024 | P43: 2009 | Q43: 2014 | R43: NA | S43: NA | T43: 2014 | U43: 2019 | V43: 2019 | W43: No | X43: No | Y43: K-08 | Z43: 306 | AA43: Urban | AB43: ESMS | AC43: NA
A44: 450 | B44: Hilltown Cooperative Charter Public School | C44: C | D44: 4 | F44: East Hampton | G44: No Status | H44: 1994 | I44: Yes | J44: 1995 | K44: 24 | L44: 2000 | M44: 2005 | N44: 2010 | O44: 2015 | P44: 2000 | Q44: 2005 | R44: 2010 | S44: 2015 | T44: 2015 | U44: 2020 | V44: 2020 | W44: Yes | X44: No | Y44: K-08 | Z44: 218 | AA44: Rural | AB44: ESMS | AC44: NA
A45: 453 | B45: Holyoke Community Charter School | C45: C | D45: 4 | F45: Holyoke | G45: No Status | H45: 2001 | I45: Yes | J45: 2005 | K45: 14 | L45: 2010 | M45: 2015 | N45: 2020 | O45: 2025 | P45: 2010 | Q45: 2015 | R45: NA | S45: NA | T45: 2015 | U45: 2020 | V45: 2020 | W45: No | X45: Yes | Y45: K-08 | Z45: 702 | AA45: Urban | AB45: ESMS | AC45: NA
A46: 435 | B46: Innovation Academy Charter School | C46: C | D46: 5 | F46: Tyngsborough | G46: No Status | H46: 1995 | I46: Yes | J46: 1996 | K46: 23 | L46: 2001 | M46: 2006 | N46: 2011 | O46: 2016 | P46: 2001 | Q46: 2006 | R46: 2011 | S46: 2016 | T46: 2016 | U46: 2021 | V46: 2021 | W46: Yes | X46: Former | Y46: 05-12 | Z46: 800 | AA46: Suburb | AB46: MSHS | AC46: NA
A47: 463 | B47: KIPP Academy Boston Charter School | C47: C | D47: 1 | F47: Boston | G47: No Status | H47: 2011 | I47: No | J47: 2012 | K47: 7 | L47: 2017 | M47: 2022 | N47: 2027 | O47: 2032 | P47: 2017 | Q47: NA | R47: NA | S47: NA | T47: 2017 | U47: 2022 | V47: 2022 | W47: No | X47: No | Y47: K-08 | Z47: 588 | AA47: Boston | AB47: ESMS | AC47: NA
A48: 429 | B48: KIPP Academy Lynn Charter School | C48: C | D48: 3 | F48: Lynn | G48: No Status | H48: 2004 | I48: Yes | J48: 2004 | K48: 15 | L48: 2009 | M48: 2014 | N48: 2019 | O48: 2024 | P48: 2009 | Q48: 2014 | R48: NA | S48: NA | T48: 2014 | U48: 2019 | V48: 2019 | W48: No | X48: No | Y48: K-12 | Z48: 1586 | AA48: Urban | AB48: MSHS | AC48: NA
A49: 454 | B49: Lawrence Family Development Charter School | C49: C | D49: 4 | F49: Lawrence | G49: No Status | H49: 1995 | I49: Yes | J49: 1995 | K49: 24 | L49: 2000 | M49: 2005 | N49: 2010 | O49: 2015 | P49: 2000 | Q49: 2005 | R49: 2010 | S49: 2015 | T49: 2015 | U49: 2020 | V49: 2020 | W49: No | X49: No | Y49: PK-08 | Z49: 800 | AA49: Urban | AB49: ESMS | AC49: NA
A50: 3514 | B50: Libertas Academy Charter School (New school opening FY18) | C50: C | D50: Springfield | E50: No | F50: Springfield | G50: No Status | H50: 2016 | I50: No | J50: 2017 | K50: 2 | L50: 2022 | M50: 2027 | N50: 2032 | O50: 2037 | P50: NA | Q50: NA | R50: NA | S50: NA | T50: 0 | U50: 2022 | V50: 2022 | W50: No | X50: No | Y50: 06-12 | Z50: 630 | AA50: Urban | AB50: ESMS | AC50: NA
A51: 456 | B51: Lowell Community Charter Public School | C51: C | D51: 4 | F51: Lowell | G51: No Status | H51: 1999 | I51: Yes | J51: 2000 | K51: 19 | L51: 2005 | M51: 2010 | N51: 2015 | O51: 2020 | P51: 2005 | Q51: 2010 | R51: 2015 | S51: NA | T51: 2015 | U51: 2020 | V51: 2020 | W51: No | X51: Former | Y51: PK-08 | Z51: 800 | AA51: Urban | AB51: ESMS | AC51: NA
A52: 458 | B52: Lowell Middlesex Academy Charter School | C52: C | D52: 4 | F52: Lowell | G52: No Status | H52: 1994 | I52: Yes | J52: 1995 | K52: 24 | L52: 2000 | M52: 2005 | N52: 2010 | O52: 2015 | P52: 2000 | Q52: 2005 | R52: 2010 | S52: 2015 | T52: 2015 | U52: 2020 | V52: 2020 | W52: No | X52: No | Y52: 09-12 | Z52: 150 | AA52: Urban | AB52: HS | AC52: NA
A53: 3517 | B53: Map Academy Charter School | C53: C | F53: Plymouth | G53: No Status | H53: 2017 | I53: Yes | J53: 2018 | K53: 1 | L53: 2023 | M53: 2028 | N53: 2033 | O53: 2038 | P53: NA | Q53: NA | R53: NA | S53: NA | T53: 0 | U53: 2023 | V53: 2023 | W53: Yes | X53: No | Y53: 09-12 | Z53: 300 | AA53: Suburb | AB53: HS | AC53: NA
A54: 464 | B54: Marblehead Community Charter Public School | C54: C | D54: 4 | F54: Marblehead | G54: No Status | H54: 1994 | I54: Yes | J54: 1995 | K54: 24 | L54: 2000 | M54: 2005 | N54: 2010 | O54: 2015 | P54: 2000 | Q54: 2005 | R54: 2010 | S54: 2015 | T54: 2015 | U54: 2020 | V54: 2020 | W54: No | X54: No | Y54: 04-08 | Z54: 230 | AA54: Suburb | AB54: ESMS | AC54: NA
A55: 466 | B55: Martha's Vineyard Public Charter School | C55: C | D55: 5 | F55: West Tisbury | G55: No Status | H55: 1995 | I55: Yes | J55: 1996 | K55: 23 | L55: 2001 | M55: 2006 | N55: 2011 | O55: 2016 | P55: 2001 | Q55: 2006 | R55: 2011 | S55: 2016 | T55: 2016 | U55: 2021 | V55: 2021 | W55: Yes | X55: No | Y55: K-12 | Z55: 180 | AA55: Suburb | AB55: K12 | AC55: NA
A56: 492 | B56: Martin Luther King, Jr. Charter School of Excellence | C56: C | D56: 5 | F56: Springfield | G56: Conditions | H56: 2005 | I56: Yes | J56: 2006 | K56: 13 | L56: 2011 | M56: 2016 | N56: 2021 | O56: 2026 | P56: 2011 | Q56: 2016 | R56: NA | S56: NA | T56: 2016 | U56: 2021 | V56: 2021 | W56: No | X56: No | Y56: K-05 | Z56: 360 | AA56: Urban | AB56: ES | AC56: NA
A57: 469 | B57: Match Charter Public School | C57: C | D57: 4 | F57: Boston | G57: No Status | H57: 1999 | I57: Yes | J57: 2000 | K57: 19 | L57: 2005 | M57: 2010 | N57: 2015 | O57: 2020 | P57: 2005 | Q57: 2010 | R57: 2015 | S57: NA | T57: 2015 | U57: 2020 | V57: 2020 | W57: No | X57: No | Y57: PK-12 | Z57: 1250 | AA57: Boston | AB57: K12 | AC57: NA
A58: 470 | B58: Mystic Valley Regional Charter School | C58: C | D58: 2 | F58: Malden | G58: No Status | H58: 1998 | I58: Yes | J58: 1998 | K58: 21 | L58: 2003 | M58: 2008 | N58: 2013 | O58: 2018 | P58: 2003 | Q58: 2008 | R58: 2013 | S58: 2018 | T58: 2018 | U58: 2023 | V58: 2023 | W58: Yes | X58: Former | Y58: K-12 | Z58: 1900 | AA58: Urban | AB58: K12 | AC58: NA
A59: 444 | B59: Neighborhood House Charter School | C59: C | D59: 4 | F59: Boston | G59: No Status | H59: 1994 | I59: Yes | J59: 1995 | K59: 24 | L59: 2000 | M59: 2005 | N59: 2010 | O59: 2015 | P59: 2000 | Q59: 2005 | R59: 2010 | S59: 2015 | T59: 2015 | U59: 2020 | V59: 2020 | W59: No | X59: No | Y59: PK-12 | Z59: 828 | AA59: Boston | AB59: K12 | AC59: NA
A60: 3513 | B60: New Heights Charter School of Brockton | C60: C | D60: 315 | E60: 315 | F60: Brockton | G60: No Status | H60: 2016 | I60: No | J60: 2016 | K60: 3 | L60: 2021 | M60: 2026 | N60: 2031 | O60: 2036 | P60: NA | Q60: NA | R60: NA | S60: NA | T60: 0 | U60: 2021 | V60: 2021 | W60: Yes | X60: No | Y60: 06-12 | Z60: 735 | AA60: Urban | AB60: ESMS | AC60: NA
A61: 3515 | B61: Old Sturbridge Academy Charter Public School | C61: C | F61: Sturbridge | G61: No Status | H61: 2017 | I61: Yes | J61: 2017 | K61: 2 | L61: 2022 | M61: 2027 | N61: 2032 | O61: 2037 | P61: NA | Q61: NA | R61: NA | S61: NA | T61: 0 | U61: 2022 | V61: 2022 | W61: Yes | X61: Yes | Y61: K-08 | Z61: 360 | AA61: Rural | AB61: ESMS | AC61: NA
A62: 3501 | B62: Paulo Freire Social Justice Charter School | C62: C | D62: 2 | F62: Holyoke | G62: Probation | H62: 2012 | I62: No | J62: 2013 | K62: 6 | L62: 2018 | M62: 2023 | N62: 2028 | O62: 2033 | P62: 2018 | Q62: NA | R62: NA | S62: NA | T62: 2018 | U62: 2023 | V62: 2023 | W62: Yes | X62: No | Y62: 09-12 | Z62: 500 | AA62: Urban | AB62: HS | AC62: NA
A63: 493 | B63: Phoenix Academy Charter Public High School, Chelsea | C63: C | D63: 5 | F63: Chelsea | G63: No Status | H63: 2005 | I63: Yes | J63: 2006 | K63: 13 | L63: 2011 | M63: 2016 | N63: 2021 | O63: 2026 | P63: 2011 | Q63: 2016 | R63: NA | S63: NA | T63: 2016 | U63: 2021 | V63: 2021 | W63: Yes | X63: No | Y63: 09-12 | Z63: 225 | AA63: Urban | AB63: HS | AC63: NA
A64: 3518 | B64: Phoenix Academy Public Charter High School, Lawrence | C64: C | F64: Lawrence | G64: No Status | H64: 2018 | I64: No | J64: 2018 | K64: 1 | L64: 2023 | M64: 2028 | N64: 2033 | O64: 2038 | P64: NA | Q64: NA | R64: NA | S64: NA | T64: 0 | U64: 2023 | V64: 2023 | W64: Yes | X64: No | Y64: 09-12 | Z64: 250 | AA64: Urban | AB64: HS | AC64: NA
A65: 3508 | B65: Phoenix Academy Public Charter High School, Springfield | C65: C | D65: 3 | F65: Springfield | G65: No Status | H65: 2013 | I65: No | J65: 2014 | K65: 5 | L65: 2019 | M65: 2024 | N65: 2029 | O65: 2034 | P65: NA | Q65: NA | R65: NA | S65: NA | T65: 0 | U65: 2019 | V65: 2019 | W65: Yes | X65: No | Y65: 09-12 | Z65: 250 | AA65: Urban | AB65: HS | AC65: NA
A66: 494 | B66: Pioneer Charter School of Science | C66: C | D66: 1 | F66: Everett | G66: No Status | H66: 2006 | I66: Yes | J66: 2007 | K66: 12 | L66: 2012 | M66: 2017 | N66: 2022 | O66: 2027 | P66: 2012 | Q66: 2017 | R66: NA | S66: NA | T66: 2017 | U66: 2022 | V66: 2022 | W66: Yes | X66: No | Y66: K-12 | Z66: 780 | AA66: Urban | AB66: K12 | AC66: NA
A67: 3506 | B67: Pioneer Charter School of Science II | C67: C | D67: 3 | F67: Saugus | G67: No Status | H67: 2013 | I67: No | J67: 2013 | K67: 6 | L67: 2018 | M67: 2023 | N67: 2028 | O67: 2033 | P67: 2018 | Q67: NA | R67: NA | S67: NA | T67: 2018 | U67: 2023 | V67: 2023 | W67: Yes | X67: No | Y67: 07-12 | Z67: 360 | AA67: Urban | AB67: MSHS | AC67: NA
A68: 497 | B68: Pioneer Valley Chinese Immersion Charter School | C68: C | D68: 1 | F68: Hadley | G68: No Status | H68: 2007 | I68: Yes | J68: 2007 | K68: 12 | L68: 2012 | M68: 2017 | N68: 2022 | O68: 2027 | P68: 2012 | Q68: 2017 | R68: NA | S68: NA | T68: 2017 | U68: 2022 | V68: 2022 | W68: Yes | X68: No | Y68: K-12 | Z68: 584 | AA68: Suburb | AB68: K12 | AC68: NA
A69: 479 | B69: Pioneer Valley Performing Arts Charter Public School | C69: C | D69: 5 | F69: South Hadley | G69: No Status | H69: 1996 | I69: Yes | J69: 1996 | K69: 23 | L69: 2001 | M69: 2006 | N69: 2011 | O69: 2016 | P69: 2001 | Q69: 2006 | R69: 2011 | S69: 2016 | T69: 2016 | U69: 2021 | V69: 2021 | W69: Yes | X69: No | Y69: 07-12 | Z69: 400 | AA69: Suburb | AB69: MSHS | AC69: NA
A70: 487 | B70: Prospect Hill Academy Charter School | C70: C | D70: 5 | F70: Somerville (K-6); Cambridge (7-12) | G70: No Status | H70: 1996 | I70: Yes | J70: 1996 | K70: 23 | L70: 2001 | M70: 2006 | N70: 2011 | O70: 2016 | P70: 2001 | Q70: 2006 | R70: 2011 | S70: 2016 | T70: 2016 | U70: 2021 | V70: 2021 | W70: Yes | X70: Former | Y70: PK-12 | Z70: 1200 | AA70: Urban | AB70: K12 | AC70: NA
A71: 483 | B71: Rising Tide Charter Public School | C71: C | D71: 2 | F71: Plymouth | G71: No Status | H71: 1998 | I71: Yes | J71: 1998 | K71: 21 | L71: 2003 | M71: 2008 | N71: 2013 | O71: 2018 | P71: 2003 | Q71: 2008 | R71: 2013 | S71: 2018 | T71: 2018 | U71: 2023 | V71: 2023 | W71: Yes | X71: Former | Y71: 05-12 | Z71: 700 | AA71: Suburb | AB71: MSHS | AC71: NA
A72: 482 | B72: River Valley Charter School | C72: C | D72: 3 | F72: Newburyport | G72: No Status | H72: 1999 | I72: Yes | J72: 1999 | K72: 20 | L72: 2004 | M72: 2009 | N72: 2014 | O72: 2019 | P72: 2004 | Q72: 2009 | R72: 2014 | S72: NA | T72: 2014 | U72: 2019 | V72: 2019 | W72: Yes | X72: No | Y72: K-08 | Z72: 288 | AA72: Rural | AB72: ESMS | AC72: NA
A73: 484 | B73: Roxbury Preparatory Charter School | C73: C | D73: 3 | F73: Boston | G73: No Status | H73: 1998 | I73: Yes | J73: 1999 | K73: 20 | L73: 2004 | M73: 2009 | N73: 2014 | O73: 2019 | P73: 2004 | Q73: 2009 | R73: 2014 | S73: NA | T73: 2014 | U73: 2019 | V73: 2019 | W73: No | X73: Yes | Y73: 05-12 | Z73: 1800 | AA73: Boston | AB73: MSHS | AC73: NA
A74: 441 | B74: Sabis International Charter School | C74: C | D74: 4 | F74: Springfield | G74: Conditions | H74: 1995 | I74: Yes | J74: 1995 | K74: 24 | L74: 2000 | M74: 2005 | N74: 2010 | O74: 2015 | P74: 2000 | Q74: 2005 | R74: 2010 | S74: 2015 | T74: 2015 | U74: 2020 | V74: 2020 | W74: No | X74: Yes | Y74: K-12 | Z74: 1574 | AA74: Urban | AB74: K12 | AC74: NA
A75: 485 | B75: Salem Academy Charter School | C75: C | D75: 3 | F75: Salem | G75: No Status | H75: 2003 | I75: Yes | J75: 2004 | K75: 15 | L75: 2009 | M75: 2014 | N75: 2019 | O75: 2024 | P75: 2009 | Q75: 2014 | R75: NA | S75: NA | T75: 2014 | U75: 2019 | V75: 2019 | W75: No | X75: No | Y75: 06-12 | Z75: 480 | AA75: Urban | AB75: MSHS | AC75: NA
A76: 486 | B76: Seven Hills Charter Public School | C76: C | D76: 5 | F76: Worcester | G76: No Status | H76: 1994 | I76: Yes | J76: 1996 | K76: 23 | L76: 2001 | M76: 2006 | N76: 2011 | O76: 2016 | P76: 2001 | Q76: 2006 | R76: 2011 | S76: 2016 | T76: 2016 | U76: 2021 | V76: 2021 | W76: No | X76: Former | Y76: K-08 | Z76: 666 | AA76: Urban | AB76: ESMS | AC76: NA
A77: 474 | B77: Sizer School, A North Central Charter Essential School | C77: C | D77: 1 | F77: Fitchburg | G77: Conditions | H77: 2001 | I77: Yes | J77: 2002 | K77: 17 | L77: 2007 | M77: 2012 | N77: 2017 | O77: 2022 | P77: 2007 | Q77: 2012 | R77: 2017 | S77: NA | T77: 2017 | U77: 2022 | V77: 2022 | W77: Yes | X77: No | Y77: 07-12 | Z77: 400 | AA77: Urban | AB77: MSHS | AC77: NA
A78: 488 | B78: South Shore Charter Public School | C78: C | D78: 4 | F78: Norwell | G78: No Status | H78: 1994 | I78: Yes | J78: 1995 | K78: 24 | L78: 2000 | M78: 2005 | N78: 2010 | O78: 2015 | P78: 2000 | Q78: 2005 | R78: 2010 | S78: 2015 | T78: 2015 | U78: 2020 | V78: 2020 | W78: Yes | X78: No | Y78: K-12 | Z78: 1075 | AA78: Rural | AB78: K12 | AC78: NA
A79: 3510 | B79: Springfield Preparatory Charter School | C79: C | D79: 4 | F79: Springfield | G79: No Status | H79: 2014 | I79: No | J79: 2015 | K79: 4 | L79: 2020 | M79: 2025 | N79: 2030 | O79: 2035 | P79: NA | Q79: NA | R79: NA | S79: NA | T79: 0 | U79: 2020 | V79: 2020 | W79: No | X79: No | Y79: K-08 | Z79: 486 | AA79: Urban | AB79: ESMS | AC79: NA
A80: 489 | B80: Sturgis Charter Public School | C80: C | D80: 2 | F80: Hyannis | G80: No Status | H80: 1998 | I80: Yes | J80: 1998 | K80: 21 | L80: 2003 | M80: 2008 | N80: 2013 | O80: 2018 | P80: 2003 | Q80: 2008 | R80: 2013 | S80: 2018 | T80: 2018 | U80: 2023 | V80: 2023 | W80: Yes | X80: No | Y80: 09-12 | Z80: 850 | AA80: Suburb | AB80: HS | AC80: NA
A81: 480 | B81: UP Academy Charter School of Boston | C81: HM | D81: 5 | F81: Boston | G81: No Status | H81: 2011 | I81: Yes | J81: 2011 | K81: 8 | L81: 2016 | M81: 2021 | N81: 2026 | O81: 2031 | P81: 2016 | Q81: NA | R81: NA | S81: NA | T81: 2016 | U81: 2021 | V81: 2021 | W81: NA | X81: Yes | Y81: 06-08 | Z81: 540 | AA81: Boston | AB81: MS | AC81: NA
A82: 3505 | B82: UP Academy Charter School of Dorchester | C82: HM | D82: 2 | F82: Boston | G82: Conditions | H82: 2013 | I82: Yes | J82: 2013 | K82: 6 | L82: 2018 | M82: 2023 | N82: 2028 | O82: 2033 | P82: 2018 | Q82: NA | R82: NA | S82: NA | T82: 2018 | U82: 2023 | V82: 2023 | W82: NA | X82: Yes | Y82: PK-08 | Z82: 820 | AA82: Boston | AB82: ESMS | AC82: NA
A83: 498 | B83: Veritas Preparatory Charter School | C83: C | D83: 1 | F83: Springfield | G83: No Status | H83: 2011 | I83: Yes | J83: 2012 | K83: 7 | L83: 2017 | M83: 2022 | N83: 2027 | O83: 2032 | P83: 2017 | Q83: NA | R83: NA | S83: NA | T83: 2017 | U83: 2022 | V83: 2022 | W83: No | X83: No | Y83: 05-08 | Z83: 432 | AA83: Urban | AB83: MS | AC83: NA
A84: 3519 | B84: Worcester Cultural Academy Charter Public School | C84: C | F84: Worcester
A85: Closed Schools | O85: NA
A86: 415 | B86: Amesbury Academy Charter Public School | C86: HM | D86: 5 | F86: Amesbury | G86: NA | H86: 2001 | I86: NA | J86: 2001 | K86: NA | L86: 2006 | M86: 2011 | N86: Post-Opening Surrender | O86: NA | U86: NA | V86: NA | W86: No | X86: No | Y86: 9-12 | Z86: 50 | AA86: Rural | AB86: HS | AC86: 2015 | AD86: surrender
A87: 423 | B87: Barnstable Horace Mann Charter School | C87: HM | D87: NA | E87: NA | F87: Barnstable | G87: NA | H87: 1998 | I87: NA | J87: 1999 | K87: NA | L87: 2004 | M87: 2009 | N87: Post-Opening Surrender | O87: NA | U87: NA | V87: NA | W87: No | X87: No | Y87: 04-05 | Z87: 1000 | AA87: Suburb | AB87: MS | AC87: 2012 | AD87: surrender
A88: 425 | B88: Boston University Residential Charter School | C88: C | D88: NA | E88: NA | F88: Granby | G88: NA | H88: 1994 | I88: NA | J88: 1997 | K88: NA | L88: Post-Opening Surrender | M88: NA | N88: NA | O88: NA | U88: NA | V88: NA | W88: No | X88: No | Y88: 42594 | Z88: NA | AA88: Rural | AB88: MSHS | AC88: 2000 | AD88: surrender
A89: 457 | B89: Brooke Charter School East Boston (FY17-will merge with 0428 and 0457 as Brooke Charter School LEA, 428 K-12) | C89: C | D89: 1 | E89: VLOOKUP(A22, LIAISONS, 3, FALSE) | F89: Boston | G89: NA | H89: 2011 | I89: No | J89: 2012 | K89: NA | L89: Returned due to merger | M89: NA | N89: NA | O89: NA | U89: NA | V89: NA | W89: Yes | X89: No | Y89: K-08 | Z89: 510 | AA89: Boston | AB89: ESMS | AC89: 2016 | AD89: consolidation
A90: 443 | B90: Brooke Charter School Mattapan (FY17-will merge with 0428 and 0457 as Brooke Charter School LEA 428, K-12) | C90: C | D90: 5 | F90: Boston | G90: NA | H90: 2011 | I90: No | J90: 2011 | K90: NA | L90: Returned due to merger | M90: NA | N90: NA | O90: NA | U90: NA | V90: NA | W90: No | X90: No | Y90: K-08 | Z90: 510 | AA90: Boston | AB90: ESMS | AC90: 2016 | AD90: consolidation
A91: 434 | B91: Champion Charter Public School | C91: HM | D91: NA | E91: NA | F91: Brockton | G91: NA | H91: 1998 | I91: NA | J91: 1998 | K91: NA | L91: Post-Opening Surrender | M91: NA | N91: NA | O91: NA | U91: NA | V91: NA | W91: No | X91: No | Y91: 09-12 | Z91: 125 | AA91: Urban | AB91: HS | AC91: 2008 | AD91: surrender
A92: 433 | B92: Dorchester Prep | C92: C | D92: NA | E92: NA | F92: Boston | G92: NA | H92: 2011 | I92: NA | J92: NA | K92: NA | L92: Returned due to merger | M92: NA | N92: NA | O92: NA | U92: NA | V92: NA | W92: No | X92: Former | Y92: 05-12 | Z92: 600 | AA92: Urban | AB92: MSHS | AC92: NA | AD92: consolidation
A93: 475 | B93: Dorchester Collegiate Academy Charter School | C93: C | D93: 3 | F93: Boston | G93: NA | H93: 2008 | I93: NA | J93: 2009 | K93: NA | L93: 2014 | M93: Revocation | N93: NA | O93: NA | U93: NA | V93: NA | W93: No | X93: No | Y93: 04-08 | Z93: 238 | AA93: Boston | AB93: ESMS | AC93: 2016 | AD93: revocation
A94: 459 | B94: Excel Academy Charter School - Boston II | C94: C | D94: NA | E94: NA | F94: Boston | G94: NA | H94: 2011 | I94: NA | J94: 2012 | K94: NA | L94: Returned due to merger | M94: NA | N94: NA | O94: NA | U94: NA | V94: NA | W94: No | X94: No | Y94: 05-12 | Z94: 448 | AA94: Boston | AB94: MSHS | AC94: 2014 | AD94: consolidation
A95: 461 | B95: Excel Academy Charter School - Chelsea | C95: C | D95: NA | E95: NA | F95: Chelsea | G95: NA | H95: 2011 | I95: NA | J95: 2011 | K95: NA | L95: Returned due to merger | M95: NA | N95: NA | O95: NA | U95: NA | V95: NA | W95: No | X95: No | Y95: 05-12 | Z95: 448 | AA95: Urban | AB95: MSHS | AC95: 2014 | AD95: consolidation
A96: 495 | B96: Fall River Maritime Charter Public School | C96: C | D96: NA | E96: NA | F96: Fall River | G96: NA | H96: 2006 | I96: NA | J96: NA | K96: NA | L96: Pre-Opening Surrender | M96: NA | N96: NA | O96: NA | U96: NA | V96: NA | W96: No | X96: Former | Y96: 05-08 | Z96: 80 | AA96: Urban | AB96: MS | AC96: NA | AD96: surrender
A97: 442 | B97: Frederick Douglass Charter School | C97: C | D97: NA | E97: NA | F97: Boston | G97: NA | H97: 1999 | I97: NA | J97: 2000 | K97: NA | L97: Non-Renewal | M97: NA | N97: NA | O97: NA | U97: NA | V97: NA | W97: No | X97: No | Y97: 06-12 | Z97: 408 | AA97: Boston | AB97: MSHS | AC97: 2005 | AD97: revocation
A98: 448 | B98: Gloucester Community Arts Charter School | C98: C | D98: NA | E98: NA | F98: Gloucester | G98: NA | H98: 2009 | I98: NA | J98: 2010 | K98: NA | L98: Post-Opening Surrender | M98: NA | N98: NA | O98: NA | U98: NA | V98: NA | W98: No | X98: No | Y98: K-08 | Z98: 240 | AA98: Urban | AB98: ESMS | AC98: 2013 | AD98: surrender
A99: 462 | B99: Grove Hall Prep | C99: C | D99: NA | E99: NA | F99: Boston | G99: NA | H99: 2011 | I99: NA | J99: 2011 | K99: NA | L99: Returned due to merger | M99: NA | N99: NA | O99: NA | U99: NA | V99: NA | W99: No | X99: Former | Y99: 05-12 | Z99: 600 | AA99: Urban | AB99: MS | AC99: 2012 | AD99: consolidation
A100: 448 | B100: Horace Mann Charter School of Essential Studies | C100: HM | D100: NA | E100: NA | F100: Springfield | G100: NA | H100: 1999 | I100: NA | J100: NA | K100: NA | L100: Pre-Opening Surrender | M100: NA | N100: NA | O100: NA | U100: NA | V100: NA | W100: No | X100: No | Y100: 09-12 | Z100: 600 | AA100: Urban | AB100: ESMS | AC100: NA | AD100: surrender
A101: 460 | B101: Lynn Community Charter School | C101: C | D101: NA | E101: NA | F101: Lynn | G101: NA | H101: 1996 | I101: NA | J101: 1997 | K101: NA | L101: Non-Renewal | M101: NA | N101: NA | O101: NA | U101: NA | V101: NA | W101: No | X101: No | Y101: K-08 | Z101: 270 | AA101: Urban | AB101: ESMS | AC101: 2002 | AD101: non-renewal
A102: 465 | B102: MATCH Community Day Charter Public School | C102: C | D102: NA | E102: NA | F102: Boston | G102: NA | H102: 2011 | I102: NA | J102: 2011 | K102: NA | L102: Returned due to merger | M102: NA | N102: NA | O102: NA | U102: NA | V102: NA | W102: No | X102: No | Y102: PK-12 | Z102: 700 | AA102: Boston | AB102: K12 | AC102: 2014 | AD102: consolidation
A103: 472 | B103: New Bedford Global Learning Charter School | C103: HM | D103: NA | E103: NA | F103: New Bedford | G103: NA | H103: 2000 | I103: NA | J103: 2002 | K103: NA | L103: Post-Opening Surrender | M103: NA | N103: NA | O103: NA | U103: NA | V103: NA | W103: No | X103: No | Y103: 05-12 | Z103: 400 | AA103: Urban | AB103: MSHS | AC103: 2007 | AD103: expired
A104: 471 | B104: New Leadership Charter School | C104: HM | D104: NA | E104: NA | F104: Springfield | G104: NA | H104: 1998 | I104: NA | J104: 1998 | K104: NA | L104: 2003 | M104: 2008 | N104: Post-Opening Surrender | O104: NA | U104: NA | V104: NA | W104: No | X104: No | Y104: 06-12 | Z104: 500 | AA104: Urban | AB104: MSHS | AC104: 2013 | AD104: expired
A105: 467 | B105: New Liberty Charter School of Salem | C105: HM | D105: NA | E105: NA | F105: Salem | G105: NA | H105: 2011 | I105: NA | J105: 2011 | K105: NA | L105: Post-Opening Surrender | M105: NA | N105: NA | O105: NA | U105: NA | V105: NA | W105: NA | X105: No | Y105: 09-12 | Z105: 125 | AA105: Urban | AB105: HS | AC105: 2016 | AD105: expired
A106: 473 | B106: North Star Academy Charter School | C106: C | D106: NA | E106: NA | F106: Springfield | G106: NA | H106: 1995 | I106: NA | J106: 1996 | K106: NA | L106: Post-Opening Surrender | M106: NA | N106: NA | O106: NA | U106: NA | V106: NA | W106: No | X106: No | Y106: 09-12 | Z106: 250 | AA106: Urban | AB106: HS | AC106: 2001 | AD106: surrender
A107: 476 | B107: Northern Bristol County Charter School | C107: C | D107: NA | E107: NA | F107: Bristol County | G107: NA | H107: 2001 | I107: NA | J107: NA | K107: NA | L107: Pre-Opening Surrender | M107: NA | N107: NA | O107: NA | U107: NA | V107: NA | W107: Yes | X107: No | Y107: K-08 | Z107: 500 | AA107: Urban | AB107: ESMS | AC107: NA | AD107: surrender
A108: 451 | B108: Robert M. Hughes Academy Charter Public School | C108: C | D108: NA | E108: NA | F108: Springfield | G108: NA | H108: 1999 | I108: NA | J108: 1999 | K108: NA | L108: 2004 | M108: 2009 | N108: Revocation | O108: NA | U108: NA | V108: NA | W108: No | X108: No | Y108: K-08 | Z108: 180 | AA108: Urban | AB108: ESMS | AC108: 2010 | AD108: revocation
A109: 422 | B109: Roxbury Charter High Public School | C109: C | D109: NA | E109: NA | F109: Boston | G109: NA | H109: 2002 | I109: NA | J109: 2003 | K109: NA | L109: Revocation | M109: NA | N109: NA | O109: NA | U109: NA | V109: NA | W109: No | X109: No | Y109: 09-12 | Z109: 400 | AA109: Boston | AB109: HS | AC109: 2005 | AD109: revocation
A110: 477 | B110: Silver Hill Horace Mann Charter School | C110: HM | D110: NA | E110: NA | F110: Haverhill | G110: NA | H110: 2008 | I110: NA | J110: 2008 | K110: NA | L110: 2013 | M110: Post-Opening Surrender | V110: NA | W110: NA | X110: No | Y110: K-05 | Z110: 580 | AA110: Urban | AB110: ES | AC110: 2018 | AD110: surrender
A111: 421 | B111: South End College Preparatory Charter School | C111: C | D111: NA | E111: NA | F111: Boston | G111: NA | H111: 2002 | I111: NA | J111: NA | K111: NA | L111: Pre-Opening Surrender | M111: NA | N111: NA | O111: NA | U111: NA | V111: NA | W111: No | X111: No | Y111: K-08 | Z111: 500 | AA111: Boston | AB111: ESMS | AC111: 2003 | AD111: surrender
A112: 476 | B112: Spirit of Knowledge Charter School | C112: C | D112: NA | E112: NA | F112: Worcester | G112: NA | H112: 2010 | I112: NA | J112: 2010 | K112: NA | L112: Post-Opening Surrender | M112: NA | N112: NA | O112: NA | U112: NA | V112: NA | W112: No | X112: No | Y112: 07-12 | Z112: 275 | AA112: Urban | AB112: MSHS | AC112: 2014 | AD112: surrender
A113: 3512 | B113: UP Academy Charter School of Springfield | C113: HM | D113: NA | E113: NA | F113: Springfield | G113: NA | H113: NA | I113: NA | J113: NA | K113: NA | L113: Pre-Opening Surrender | U113: 5 | V113: NA | W113: NA | X113: Yes | Y113: 06-08 | Z113: 800 | AA113: Urban | AB113: MS | AC113: NA | AD113: surrender
A114: 490 | B114: Uphams Corner Charter School | C114: C | D114: NA | E114: NA | F114: Boston | G114: NA | H114: 2002 | I114: NA | J114: 2002 | K114: NA | L114: 2007 | M114: Revocation | N114: NA | O114: NA | U114: NA | V114: NA | W114: No | X114: No | Y114: 05-08 | Z114: 200 | AA114: Boston | AB114: MS | AC114: 2009 | AD114: revocation
A115: 498 | B115: Youth Build Boston Charter School | C115: C | D115: NA | E115: NA | F115: Boston | G115: NA | H115: 1994 | I115: NA | J115: 1995 | K115: NA | L115: Revocation | M115: NA | N115: NA | O115: NA | U115: NA | V115: NA | W115: No | X115: No | Y115: 09-12 | Z115: 300 | AA115: Boston | AB115: HS | AC115: 1997 | AD115: surrender
B116: Total Currently Operating Commonwealths: | C116: 74
B117: Total Currently Operating Horace Manns (I): | C117: 3
B118: Total Currently Operating Horace Manns (II): | C118: 0
B119: Total Currently Operating Horace Manns (III): | C119: 5
B120: Total Charters Approved but not yet open: | C120: 0
B121: Total Charters Closed or Never Opened Since 1994: | C121: 30
B122: Total Charters Granted by BOE Since 1994: | C122: 112
A123: Updated Augst 2018

Sheet TEACHEREPIMS (hidden)
A1: Return to Index
A5: ORG_CODE | C5: LEA | D5: FTE_24D | E5: HC_24D
A6: 35030000 | C6: 3503 | D6: 74.73 | E6: 89
A7: 35050000 | C7: 3505 | D7: 55.5 | E7: 56
A8: 35060000 | C8: 3506 | D8: 50.821 | E8: 52
A9: 35160000 | C9: 3516 | D9: 37.605 | E9: 38
A10: 35130000 | C10: 3513 | D10: 46.573 | E10: 53
A11: 35080000 | C11: 3508 | D11: 13.388 | E11: 16
A12: 35100000 | C12: 3510 | D12: 41.488 | E12: 43
A13: 35180000 | C13: 3518 | D13: 12.006 | E13: 12
A14: 04100000 | C14: 410 | D14: 128.745 | E14: 140
A15: 04110000 | C15: 411 | D15: 42.89 | E15: 49
A16: 04170000 | C16: 417 | D16: 33 | E16: 33
A17: 04280000 | C17: 428 | D17: 181.448 | E17: 194
A18: 04400000 | C18: 440 | D18: 130.032 | E18: 132
A19: 04460000 | C19: 446 | D19: 118.047 | E19: 120
A20: 04470000 | C20: 447 | D20: 55.288 | E20: 56
A21: 04490000 | C21: 449 | D21: 73.474 | E21: 87
A22: 04500000 | C22: 450 | D22: 21.11 | E22: 24
A23: 04550000 | C23: 455 | D23: 23 | E23: 23
A24: 04560000 | C24: 456 | D24: 70 | E24: 70
A25: 04690000 | C25: 469 | D25: 118.11 | E25: 125
A26: 04790000 | C26: 479 | D26: 41.893 | E26: 44
A27: 04890000 | C27: 489 | D27: 87.374 | E27: 101
A28: 04920000 | C28: 492 | D28: 34.671 | E28: 35
A29: 04120000 | C29: 412 | D29: 52.397 | E29: 58
A30: 04180000 | C30: 418 | D30: 29.771 | E30: 33
A31: 04200000 | C31: 420 | D31: 21 | E31: 21
A32: 04540000 | C32: 454 | D32: 64 | E32: 64
A33: 04780000 | C33: 478 | D33: 40.769 | E33: 45
A34: 04830000 | C34: 483 | D34: 55.91 | E34: 59
A35: 04860000 | C35: 486 | D35: 32.497 | E35: 33
A36: 04870000 | C36: 487 | D36: 87.808 | E36: 96
A37: 04880000 | C37: 488 | D37: 94.328 | E37: 101
A38: 04910000 | C38: 491 | D38: 107.637 | E38: 107
A39: 04440000 | C39: 444 | D39: 75.036 | E39: 81
A40: 04520000 | C40: 452 | D40: 37.549 | E40: 40
A41: 04640000 | C41: 464 | D41: 17.999 | E41: 18
A42: 04300000 | C42: 430 | D42: 80.851 | E42: 85
A43: 04530000 | C43: 453 | D43: 33.1 | E43: 34
A44: 04980000 | C44: 498 | D44: 56.88 | E44: 61
A45: 04090000 | C45: 409 | D45: 90 | E45: 90
A46: 04990000 | C46: 499 | D46: 43.349 | E46: 45
A47: 35020000 | C47: 3502 | D47: 58.472 | E47: 59
A48: 35090000 | C48: 3509 | D48: 49.111 | E48: 54
A49: 35140000 | C49: 3514 | D49: 52.002 | E49: 54
A50: 35150000 | C50: 3515 | D50: 28.005 | E50: 29
A51: 35170000 | C51: 3517 | D51: 25.943 | E51: 26
A52: 04070000 | C52: 407 | D52: 19 | E52: 19
A53: 04130000 | C53: 413 | D53: 14.779 | E53: 19
A54: 04160000 | C54: 416 | D54: 59.747 | E54: 65
A55: 04190000 | C55: 419 | D55: 10.8 | E55: 12
A56: 04360000 | C56: 436 | D56: 28.216 | E56: 41
A57: 04380000 | C57: 438 | D57: 45.948 | E57: 53
A58: 04410000 | C58: 441 | D58: 85.853 | E58: 93
A59: 04450000 | C59: 445 | D59: 124.562 | E59: 126
A60: 04580000 | C60: 458 | D60: 7.499 | E60: 8
A61: 04630000 | C61: 463 | D61: 50.068 | E61: 51
A62: 04660000 | C62: 466 | D62: 19.882 | E62: 24
A63: 04700000 | C63: 470 | D63: 99.94 | E63: 104
A64: 04820000 | C64: 482 | D64: 26.8 | E64: 27
A65: 04840000 | C65: 484 | D65: 55.417 | E65: 64
A66: 35190000 | C66: 3519 | D66: 9 | E66: 9
A67: 04370000 | C67: 437 | D67: 22.813 | E67: 30
A68: 04390000 | C68: 439 | D68: 28.5 | E68: 31
A69: 04740000 | C69: 474 | D69: 33.187 | E69: 39
A70: 04810000 | C70: 481 | D70: 80.353 | E70: 81
A71: 04850000 | C71: 485 | D71: 41.185 | E71: 46
A72: 04960000 | C72: 496 | D72: 41.243 | E72: 47
A73: 04290000 | C73: 429 | D73: 113.947 | E73: 122
A74: 04930000 | C74: 493 | D74: 17.1 | E74: 18
A75: 04240000 | C75: 424 | D75: 25.352 | E75: 31
A76: 04800000 | C76: 480 | D76: 32 | E76: 32
A77: 04320000 | C77: 432 | D77: 22.486 | E77: 27
A78: 04350000 | C78: 435 | D78: 71.074 | E78: 79
A79: 04940000 | C79: 494 | D79: 72.552 | E79: 75
A80: 04970000 | C80: 497 | D80: 66.187 | E80: 74
A81: 04140000 | C81: 414 | D81: 38.249 | E81: 43
A82: 39010000 | C82: 3901 | D82: 75 | E82: 77
A83: 39020000 | C83: 3902 | D83: 76 | E83: 129

Sheet FTE (hidden)
A1: LEA | B1: FTE | C1: Type | D1: Source | F1: Return to Index
A2: 409 | B2: 1038.78 | C2: C | D2: Final FY24 Charter School Tuition and Enrollment
A3: 410 | B3: 1361.61 | C3: C | D3: Final FY24 Charter School Tuition and Enrollment
A4: 412 | B4: 452.62 | C4: C | D4: Final FY24 Charter School Tuition and Enrollment
A5: 413 | B5: 212.95 | C5: C | D5: Final FY24 Charter School Tuition and Enrollment
A6: 414 | B6: 362.34 | C6: C | D6: Final FY24 Charter School Tuition and Enrollment
A7: 416 | B7: 695.84 | C7: C | D7: Final FY24 Charter School Tuition and Enrollment
A8: 417 | B8: 334.16 | C8: C | D8: Final FY24 Charter School Tuition and Enrollment
A9: 418 | B9: 290.63 | C9: C | D9: Final FY24 Charter School Tuition and Enrollment
A10: 419 | B10: 88.3 | C10: C | D10: Final FY24 Charter School Tuition and Enrollment
A11: 420 | B11: 343.69 | C11: C | D11: Final FY24 Charter School Tuition and Enrollment
A12: 428 | B12: 2210.49 | C12: C | D12: Final FY24 Charter School Tuition and Enrollment
A13: 429 | B13: 1613.13 | C13: C | D13: Final FY24 Charter School Tuition and Enrollment
A14: 430 | B14: 965.77 | C14: C | D14: Final FY24 Charter School Tuition and Enrollment
A15: 432 | B15: 249.75 | C15: C | D15: Final FY24 Charter School Tuition and Enrollment
A16: 435 | B16: 790.54 | C16: C | D16: Final FY24 Charter School Tuition and Enrollment
A17: 436 | B17: 259.34 | C17: C | D17: Final FY24 Charter School Tuition and Enrollment
A18: 437 | B18: 188.71 | C18: C | D18: Final FY24 Charter School Tuition and Enrollment
A19: 438 | B19: 339.9 | C19: C | D19: Final FY24 Charter School Tuition and Enrollment
A20: 439 | B20: 451.65 | C20: C | D20: Final FY24 Charter School Tuition and Enrollment
A21: 440 | B21: 1197.49 | C21: C | D21: Final FY24 Charter School Tuition and Enrollment
A22: 441 | B22: 1481.31 | C22: C | D22: Final FY24 Charter School Tuition and Enrollment
A23: 444 | B23: 836.55 | C23: C | D23: Final FY24 Charter School Tuition and Enrollment
A24: 445 | B24: 1421.35 | C24: C | D24: Final FY24 Charter School Tuition and Enrollment
A25: 446 | B25: 1508.34 | C25: C | D25: Final FY24 Charter School Tuition and Enrollment
A26: 447 | B26: 886.32 | C26: C | D26: Final FY24 Charter School Tuition and Enrollment
A27: 449 | B27: 693.67 | C27: C | D27: Final FY24 Charter School Tuition and Enrollment
A28: 450 | B28: 217.47 | C28: C | D28: Final FY24 Charter School Tuition and Enrollment
A29: 453 | B29: 694.92 | C29: C | D29: Final FY24 Charter School Tuition and Enrollment
A30: 454 | B30: 878.75 | C30: C | D30: Final FY24 Charter School Tuition and Enrollment
A31: 455 | B31: 305.57 | C31: C | D31: Final FY24 Charter School Tuition and Enrollment
A32: 456 | B32: 813.47 | C32: C | D32: Final FY24 Charter School Tuition and Enrollment
A33: 458 | B33: 111.97 | C33: C | D33: Final FY24 Charter School Tuition and Enrollment
A34: 463 | B34: 597.92 | C34: C | D34: Final FY24 Charter School Tuition and Enrollment
A35: 464 | B35: 174.01 | C35: C | D35: Final FY24 Charter School Tuition and Enrollment
A36: 466 | B36: 177.85 | C36: C | D36: Final FY24 Charter School Tuition and Enrollment
A37: 469 | B37: 1157.56 | C37: C | D37: Final FY24 Charter School Tuition and Enrollment
A38: 470 | B38: 1654.39 | C38: C | D38: Final FY24 Charter School Tuition and Enrollment
A39: 474 | B39: 309.64 | C39: C | D39: Final FY24 Charter School Tuition and Enrollment
A40: 478 | B40: 366.86 | C40: C | D40: Final FY24 Charter School Tuition and Enrollment
A41: 479 | B41: 404.6 | C41: C | D41: Final FY24 Charter School Tuition and Enrollment
A42: 481 | B42: 937.78 | C42: C | D42: Final FY24 Charter School Tuition and Enrollment
A43: 482 | B43: 287.51 | C43: C | D43: Final FY24 Charter School Tuition and Enrollment
A44: 483 | B44: 617.19 | C44: C | D44: Final FY24 Charter School Tuition and Enrollment
A45: 484 | B45: 1105.4 | C45: C | D45: Final FY24 Charter School Tuition and Enrollment
A46: 485 | B46: 483.31 | C46: C | D46: Final FY24 Charter School Tuition and Enrollment
A47: 486 | B47: 667.8 | C47: C | D47: Final FY24 Charter School Tuition and Enrollment
A48: 487 | B48: 911.16 | C48: C | D48: Final FY24 Charter School Tuition and Enrollment
A49: 488 | B49: 1060.19 | C49: C | D49: Final FY24 Charter School Tuition and Enrollment
A50: 489 | B50: 824.74 | C50: C | D50: Final FY24 Charter School Tuition and Enrollment
A51: 491 | B51: 1257.81 | C51: C | D51: Final FY24 Charter School Tuition and Enrollment
A52: 492 | B52: 357.44 | C52: C | D52: Final FY24 Charter School Tuition and Enrollment
A53: 493 | B53: 190.02 | C53: C | D53: Final FY24 Charter School Tuition and Enrollment
A54: 494 | B54: 780.02 | C54: C | D54: Final FY24 Charter School Tuition and Enrollment
A55: 496 | B55: 499.6 | C55: C | D55: Final FY24 Charter School Tuition and Enrollment
A56: 497 | B56: 547.94 | C56: C | D56: Final FY24 Charter School Tuition and Enrollment
A57: 498 | B57: 598.77 | C57: C | D57: Final FY24 Charter School Tuition and Enrollment
A58: 499 | B58: 540.43 | C58: C | D58: Final FY24 Charter School Tuition and Enrollment
A59: 3502 | B59: 398.24 | C59: C | D59: Final FY24 Charter School Tuition and Enrollment
A60: 3503 | B60: 1194.01 | C60: C | D60: Final FY24 Charter School Tuition and Enrollment
A61: 3506 | B61: 565.21 | C61: C | D61: Final FY24 Charter School Tuition and Enrollment
A62: 3508 | B62: 157.94 | C62: C | D62: Final FY24 Charter School Tuition and Enrollment
A63: 3509 | B63: 566.56 | C63: C | D63: Final FY24 Charter School Tuition and Enrollment
A64: 3510 | B64: 485.14 | C64: C | D64: Final FY24 Charter School Tuition and Enrollment
A65: 3513 | B65: 731.83 | C65: C | D65: Final FY24 Charter School Tuition and Enrollment
A66: 3514 | B66: 503.93 | C66: C | D66: Final FY24 Charter School Tuition and Enrollment
A67: 3515 | B67: 349.37 | C67: C | D67: Final FY24 Charter School Tuition and Enrollment
A68: 3516 | B68: 392.21 | C68: C | D68: Final FY24 Charter School Tuition and Enrollment
A69: 3517 | B69: 278.61 | C69: C | D69: Final FY24 Charter School Tuition and Enrollment
A70: 3518 | B70: 104.43 | C70: C | D70: Final FY24 Charter School Tuition and Enrollment
A71: 3519 | B71: 130.34 | C71: C | D71: Final FY24 Charter School Tuition and Enrollment
A72: 407 | B72: 333.3470588 | C72: HM | D72: Days of Membership Report
A73: 411 | B73: 441.6642768 | C73: HM | D73: Days of Membership Report
A74: 424 | B74: 287.7034451 | C74: HM | D74: Days of Membership Report
A75: 452 | B75: 367.5665928 | C75: HM | D75: Days of Membership Report
A76: 480 | B76: 159.2444444 | C76: HM | D76: Days of Membership Report
A77: 3505 | B77: 580.0671739 | C77: HM | D77: Days of Membership Report
A78: 3901 | B78: 1204.34 | C78: VS | D78: School Choice Tuition File
A79: 3902 | B79: 2936.91 | C79: VS | D79: School Choice Tuition File
